Inv Transaction,Supplier Name,Headserv Name,Stratdir Name,Account description,Redact Name,Paid Date,Sum of Inv Amount,Proclass,merchant
5424046,INSPIREDSPACES TAMESIDE LTD,Environmental Services,Director of Place,Fees,,01/07/2021,4785.31,390000,"Works - Construction, Repair & Maintenance"
5421840,EXPERIAN LTD,Hosted Services,Hosted Services,Professional Services,,01/07/2021,9001,200000,Financial Services
5421963,Redacted,Childrens Services,Children's Services,Childrens Homes Outside Local Authority Fees,Redacted Supplier,01/07/2021,12178.66,321100,Social Community Care Supplies & Services - Children
5421959,Redacted,Childrens Services,Children's Services,Foster Carer Agency Fees,Redacted Supplier,01/07/2021,4207.01,321100,Social Community Care Supplies & Services - Children
5421920,PROGRESSIVE CARE LTD,Childrens Services,Children's Services,Childrens Homes Outside Local Authority Fees,,01/07/2021,15832.14,321000,Social Community Care Supplies & Services - Adult
5421918,PROGRESSIVE CARE LTD,Childrens Services,Children's Services,Living With Formal Support,,01/07/2021,5142.86,321000,Social Community Care Supplies & Services - Adult
5424370,TAMESIDE SPORTS TRUST,Childrens Services,Children's Services,Community Based Activities,,01/07/2021,116860,290000,Arts & Leisure Services
5421965,PROGRESS CARE HOUSING ASSOCIATION LIMITED,Adult Social Care,Adults,Non-Authority Accommodation Rental,,01/07/2021,5661.49,250000,Housing Management
5421672,Bright Opportunities,Adult Social Care,Adults,Homecare Fees,,01/07/2021,1080,-999999,Unclassifiable
5421671,Bright Opportunities,Adult Social Care,Adults,Homecare Fees,,01/07/2021,1080,-999999,Unclassifiable
5421876,Northern Community Pathways Limited,Childrens Services,Children's Services,Living With Formal Support,,01/07/2021,2680,321100,Social Community Care Supplies & Services - Children
5421879,Northern Community Pathways Limited,Childrens Services,Children's Services,Living With Formal Support,,01/07/2021,2680,321100,Social Community Care Supplies & Services - Children
5421879,Northern Community Pathways Limited,Childrens Services,Children's Services,Semi independent - Weekly Living Allowances,,01/07/2021,236.8,321100,Social Community Care Supplies & Services - Children
5421877,Northern Community Pathways Limited,Childrens Services,Children's Services,Living With Formal Support,,01/07/2021,2680,321100,Social Community Care Supplies & Services - Children
5421877,Northern Community Pathways Limited,Childrens Services,Children's Services,Semi independent - Weekly Living Allowances,,01/07/2021,236.8,321100,Social Community Care Supplies & Services - Children
5421878,Northern Community Pathways Limited,Childrens Services,Children's Services,Living With Formal Support,,01/07/2021,2204.2,321100,Social Community Care Supplies & Services - Children
5421874,Olive Branch Fostering LTD,Childrens Services,Children's Services,Foster Carer Agency Fees,,01/07/2021,1045.24,321100,Social Community Care Supplies & Services - Children
5421872,Olive Branch Fostering LTD,Childrens Services,Children's Services,Foster Carer Agency Fees,,01/07/2021,2128.86,321100,Social Community Care Supplies & Services - Children
5421871,Olive Branch Fostering LTD,Childrens Services,Children's Services,Foster Carer Agency Fees,,01/07/2021,987.07,321100,Social Community Care Supplies & Services - Children
5421875,Olive Branch Fostering LTD,Childrens Services,Children's Services,Foster Carer Agency Fees,,01/07/2021,2254.32,321100,Social Community Care Supplies & Services - Children
5421835,INSPIRE COMMUNITY SERVICES LIMITED,Childrens Services,Children's Services,Living With Formal Support,,01/07/2021,2606.79,170000,Education
5421853,INSPIRE COMMUNITY SERVICES LIMITED,Childrens Services,Children's Services,Living With Formal Support,,01/07/2021,4216.31,170000,Education
5421852,INSPIRE COMMUNITY SERVICES LIMITED,Childrens Services,Children's Services,Living With Formal Support,,01/07/2021,4216.31,170000,Education
5421850,INSPIRE COMMUNITY SERVICES LIMITED,Childrens Services,Children's Services,Living With Formal Support,,01/07/2021,4279.24,170000,Education
5421786,BELMONT PARKHILL LTD,Contingency,Contingency,Nursing Home Long Stay Fees,,01/07/2021,62424,321000,Social Community Care Supplies & Services - Adult
5424040,INSPIREDSPACES TAMESIDE LTD,Environmental Services,Director of Place,Fees,,01/07/2021,7295.91,390000,"Works - Construction, Repair & Maintenance"
5424565,CAPITA - NNDR REFUNDS,(blank),(blank),COVID-19 Restart Grant Non-essential Retail - RV less than or equal to 15k,,01/07/2021,2667,400000,Non 3rd Party spend  
5424565,CAPITA - NNDR REFUNDS,(blank),(blank),COVID-19 Restart Grant Hosp Accom Leisure Personal Gym - RV less than or equal to 15k,,01/07/2021,24000,400000,Non 3rd Party spend  
5424045,INSPIREDSPACES TAMESIDE LTD,(blank),(blank),Fees,,01/07/2021,11391.92,390000,"Works - Construction, Repair & Maintenance"
5424026,INSPIREDSPACES TAMESIDE LTD,Environmental Services,Director of Place,Fees,,01/07/2021,512.96,390000,"Works - Construction, Repair & Maintenance"
5424030,INSPIREDSPACES TAMESIDE LTD,Environmental Services,Director of Place,Fees,,01/07/2021,1910.67,390000,"Works - Construction, Repair & Maintenance"
5424028,INSPIREDSPACES TAMESIDE LTD,Environmental Services,Director of Place,Fees,,01/07/2021,4188.96,390000,"Works - Construction, Repair & Maintenance"
5424023,INSPIREDSPACES TAMESIDE LTD,Environmental Services,Director of Place,Fees,,01/07/2021,4162.9,390000,"Works - Construction, Repair & Maintenance"
5424024,INSPIREDSPACES TAMESIDE LTD,Environmental Services,Director of Place,Fees,,01/07/2021,3728.54,390000,"Works - Construction, Repair & Maintenance"
5424037,INSPIREDSPACES TAMESIDE LTD,(blank),(blank),Building Works,,01/07/2021,17354.5,390000,"Works - Construction, Repair & Maintenance"
5424037,INSPIREDSPACES TAMESIDE LTD,(blank),(blank),Fees,,01/07/2021,347.09,390000,"Works - Construction, Repair & Maintenance"
5424038,INSPIREDSPACES TAMESIDE LTD,Cultural and Customer Services,"Community,Environmental,Adult and Health Services",New Build Construction Costs,,01/07/2021,134391.08,390000,"Works - Construction, Repair & Maintenance"
5424047,INSPIREDSPACES TAMESIDE LTD,Place,Growth,Fees,,01/07/2021,287.66,390000,"Works - Construction, Repair & Maintenance"
5424047,INSPIREDSPACES TAMESIDE LTD,Place,Growth,Security Services,,01/07/2021,14382.94,390000,"Works - Construction, Repair & Maintenance"
5424049,INSPIREDSPACES TAMESIDE LTD,Environmental Services,Director of Place,Fees,,01/07/2021,1176.32,390000,"Works - Construction, Repair & Maintenance"
5424032,INSPIREDSPACES TAMESIDE LTD,Place,Growth,Fees,,01/07/2021,212.09,390000,"Works - Construction, Repair & Maintenance"
5424032,INSPIREDSPACES TAMESIDE LTD,Place,Growth,Other Accommodation Related Costs,,01/07/2021,10604.64,390000,"Works - Construction, Repair & Maintenance"
5424025,INSPIREDSPACES TAMESIDE LTD,(blank),(blank),Building Works,,01/07/2021,9005.28,390000,"Works - Construction, Repair & Maintenance"
5424025,INSPIREDSPACES TAMESIDE LTD,(blank),(blank),Fees,,01/07/2021,180.11,390000,"Works - Construction, Repair & Maintenance"
5424042,INSPIREDSPACES TAMESIDE LTD,Environmental Services,Director of Place,Fees,,01/07/2021,2689.11,390000,"Works - Construction, Repair & Maintenance"
5424048,INSPIREDSPACES TAMESIDE LTD,Place,Growth,Fees,,01/07/2021,3798.3,390000,"Works - Construction, Repair & Maintenance"
5422297,STRUCTEC (NW) LTD,Housing,Director of Place,Mandatory Adaptations Grant (DFG),,01/07/2021,4135.9,321000,Social Community Care Supplies & Services - Adult
5421967,FORENSIC TESTING SERVICE LTD,Childrens Services,Children's Services,Professional Medical Services,,01/07/2021,830.4,180000,Environmental Services
5421056,FORENSIC TESTING SERVICE LTD,Childrens Services,Children's Services,Professional Services,,01/07/2021,780.4,180000,Environmental Services
3250819,DENNIS EAGLE LTD,Transport,Director of Place,Debits Goods Received,,01/07/2021,748.84,380000,Vehicle Management
3250819,G B OILS TA CARLTON FUELS,Transport,Director of Place,Diesel Fuel,,01/07/2021,21550.1,380000,Vehicle Management
3250819,A & J MOTORSPARES,Operations and Neighbourhoods,Operations and Neighbourhoods,General Materials,,01/07/2021,758.4,380000,Vehicle Management
3250819,JOHNSONS APPARELMASTER LTD,Operations and Neighbourhoods,Operations and Neighbourhoods,Protective Clothing,,01/07/2021,569.2,141300,Clothing
3250819,HTF TYRE SERVICES LTD,Operations and Neighbourhoods,Operations and Neighbourhoods,Tyre Costs,,01/07/2021,1207.31,380000,Vehicle Management
3250819,RRG GROUP  LTD,Operations and Neighbourhoods,Operations and Neighbourhoods,General Materials,,01/07/2021,797.26,380000,Vehicle Management
3250819,Quantum Production Ltd T/A Quantum Cryogenics,Operations and Neighbourhoods,Operations and Neighbourhoods,General Equipment Repair & Maintenance,,01/07/2021,646.92,100000,Building Construction Materials
5421927,HEXAGON CARE SERVICES LTD,Childrens Services,Children's Services,Childrens Homes Outside Local Authority Fees,,01/07/2021,24335,321000,Social Community Care Supplies & Services - Adult
5421418,CAPSTONE FOSTER CARE,Childrens Services,Children's Services,Foster Carer Agency Fees,,01/07/2021,3385.8,321000,Social Community Care Supplies & Services - Adult
5421933,HEXAGON CARE SERVICES LTD,Childrens Services,Children's Services,Childrens Homes Outside Local Authority Fees,,01/07/2021,11049.29,321000,Social Community Care Supplies & Services - Adult
5424576,AD HOC CHAPS PAYMENT,Operations and Neighbourhoods,Operations and Neighbourhoods,Other Accommodation Related Costs,,01/07/2021,820,400002,Chaps Payments
5425284,AD HOC CHAPS PAYMENT,(blank),(blank),Grants to Organisations,,01/07/2021,5000,400002,Chaps Payments
5425309,AD HOC CHAPS PAYMENT,Multiple Heads of Service,Multiple Strategic Directorates,Salaries & Wages Advances(Hold),,01/07/2021,600,400002,Chaps Payments
5424571,AD HOC CHAPS PAYMENT,Operations and Neighbourhoods,Operations and Neighbourhoods,Other Accommodation Related Costs,,01/07/2021,800,400002,Chaps Payments
5425306,AD HOC CHAPS PAYMENT,Multiple Heads of Service,Multiple Strategic Directorates,Salaries & Wages Advances(Hold),,01/07/2021,1200,400002,Chaps Payments
5424570,AD HOC CHAPS PAYMENT,Multiple Heads of Service,Multiple Strategic Directorates,Debits,,01/07/2021,900,400002,Chaps Payments
5425351,AD HOC CHAPS PAYMENT,Multiple Heads of Service,Multiple Strategic Directorates,Salaries & Wages Advances(Hold),,01/07/2021,500,400002,Chaps Payments
5425337,AD HOC CHAPS PAYMENT,Operations and Neighbourhoods,Operations and Neighbourhoods,Other Accommodation Related Costs,,01/07/2021,550,400002,Chaps Payments
5425322,AD HOC CHAPS PAYMENT,Multiple Heads of Service,Multiple Strategic Directorates,Salaries & Wages Advances(Hold),,01/07/2021,2380,400002,Chaps Payments
5424559,CAPITA - NNDR REFUNDS,(blank),(blank),COVID-19 Restart Grant Hosp Accom Leisure Personal Gym - RV less than or equal to 15k,,01/07/2021,16000,400000,Non 3rd Party spend  
5424551,CAPITA - NNDR REFUNDS,(blank),(blank),COVID-19 Restart Grant Hosp Accom Leisure Personal Gym - RV less than or equal to 15k,,01/07/2021,16000,400000,Non 3rd Party spend  
5425235,CAPITA - NNDR REFUNDS,(blank),(blank),COVID-19 Restart Grant Non-essential Retail - RV less than or equal to 15k,,01/07/2021,5334,400000,Non 3rd Party spend  
5425235,CAPITA - NNDR REFUNDS,(blank),(blank),COVID-19 Restart Grant Hosp Accom Leisure Personal Gym - RV less than or equal to 15k,,01/07/2021,112000,400000,Non 3rd Party spend  
5424581,CAPITA - NNDR REFUNDS,(blank),(blank),COVID-19 Restart Grant Hosp Accom Leisure Personal Gym - RV less than or equal to 15k,,01/07/2021,24000,400000,Non 3rd Party spend  
5424579,CAPITA - NNDR REFUNDS,(blank),(blank),COVID-19 Restart Grant Hosp Accom Leisure Personal Gym - RV less than or equal to 15k,,01/07/2021,8000,400000,Non 3rd Party spend  
5424579,CAPITA - NNDR REFUNDS,(blank),(blank),COVID-19 Restart Grant Non-essential Retail - RV greater than or equal to 51k,,01/07/2021,6000,400000,Non 3rd Party spend  
5424567,AD HOC CHAPS PAYMENT,Multiple Heads of Service,Multiple Strategic Directorates,Debits,,01/07/2021,625.31,400002,Chaps Payments
5424554,SANTANDER UK PLC,Finance,Finance & IT,National Giro,,01/07/2021,4943.83,200000,Financial Services
5421893,Redacted,Childrens Services,Children's Services,Childrens Homes Outside Local Authority Fees,Redacted Supplier,01/07/2021,13148.42,321100,Social Community Care Supplies & Services - Children
5421892,Redacted,Childrens Services,Children's Services,Childrens Homes Outside Local Authority Fees,Redacted Supplier,01/07/2021,13148.42,321100,Social Community Care Supplies & Services - Children
5421843,Redacted,Childrens Services,Children's Services,Childrens Homes Outside Local Authority Fees,Redacted Supplier,01/07/2021,13148.42,321100,Social Community Care Supplies & Services - Children
5421954,TAMESIDE CITIZENS ADVICE BUREAU LTD,Operations and Neighbourhoods,Operations and Neighbourhoods,Grants to Citizens' Advice Bureau,,01/07/2021,9667,321000,Social Community Care Supplies & Services - Adult
5424801,BOTTOMLINE TECHNOLOGIES LIMITED,Digital Tameside,Finance & IT,Computer Software Maintenance Costs,,01/07/2021,4118.4,270000,Information Communication Technology
5424357,P MCGUINNESS & CO LTD,Place,Growth,Engineers Works,,01/07/2021,795,390000,"Works - Construction, Repair & Maintenance"
5421900,PORTAKABIN LTD,Place,Growth,Building Maintenance,,01/07/2021,251.33,190000,Facilities & Management Services
5421900,PORTAKABIN LTD,Place,Growth,Facility Rental,,01/07/2021,433.33,190000,Facilities & Management Services
5416896,STAFFORDSHIRE UNIVERSITY,Childrens Services,Children's Services,Living With Formal Support,,01/07/2021,8629.43,EDUCATION,Education
5424343,R & P PRINTERS,GMPF (FX),GMPF (FX),Printing And Stationery,,01/07/2021,660.6,190000,Facilities & Management Services
5421930,HEXAGON CARE SERVICES LTD,Childrens Services,Children's Services,Childrens Homes Outside Local Authority Fees,,01/07/2021,19463.57,321000,Social Community Care Supplies & Services - Adult
5424574,AD HOC CHAPS PAYMENT,Multiple Heads of Service,Multiple Strategic Directorates,Salaries & Wages Advances(Hold),,01/07/2021,720,400002,Chaps Payments
5422413,Achieve Training,Childrens Services,Children's Services,Professional Child Services,,01/07/2021,7507.5,UNCLASS,Unclassifiable
5425188,ZZ-Young Creative Limited,Contingency,Contingency,COVID-19 Additional Restrictions Support - Discretionary,,01/07/2021,5000,UNCLASS,Unclassifiable
5425203,ZZ-COATED STEEL PRODUCTS LTD,Contingency,Contingency,COVID-19 Additional Restrictions Support - Discretionary,,01/07/2021,5000,UNCLASS,Unclassifiable
5424737,UK Care Secure Transport Services,Childrens Services,Children's Services,Fees,,01/07/2021,2331.5,UNCLASS,Unclassifiable
5421909,Nurtured Future Living Ltd,Childrens Services,Children's Services,Childrens Homes Outside Local Authority Fees,,01/07/2021,12000,322003,Social Community Care Supplies & Services - Children
5422499,Achieve Training,Childrens Services,Children's Services,Professional Child Services,,01/07/2021,11550,UNCLASS,Unclassifiable
5422500,Achieve Training,Childrens Services,Children's Services,Professional Child Services,,01/07/2021,14437.5,UNCLASS,Unclassifiable
5422412,Achieve Training,Childrens Services,Children's Services,Professional Child Services,,01/07/2021,10587.5,UNCLASS,Unclassifiable
5421945,Care 4 Every Child Ltd,Childrens Services,Children's Services,Childrens Homes Outside Local Authority Fees,,01/07/2021,34046.86,401399,Social Community Care Supplies & Services - Children
5421951,GREENLEAF HEALTH & SOCIAL CARE,Adult Social Care,Adults,Homecare Fees,,01/07/2021,3845.74,250000,Housing Management
5421914,Stanfield Care Services Limited,Childrens Services,Children's Services,Childrens Homes Outside Local Authority Fees,,01/07/2021,27342.9,401003,Social Community Care Supplies & Services - Children
5421883,Rite Directions Ltd,Childrens Services,Children's Services,Living With Formal Support,,01/07/2021,6132.24,390000,"Works - Construction, Repair & Maintenance"
5421883,Rite Directions Ltd,Childrens Services,Children's Services,Semi independent - Weekly Living Allowances,,01/07/2021,262.17,390000,"Works - Construction, Repair & Maintenance"
5421881,KBW Barristers Chambers,Childrens Services,Children's Services,Legal Fees,,01/07/2021,800,280000,Legal Services
5421962,EML Payments,Adult Social Care,Adults,Subscriptions,,01/07/2021,990.5,201000,Financial Services
5421941,Beacon Counselling,People and Workforce Development,Governance,Professional Medical Services,,01/07/2021,4175,310000,Healthcare
5421809,CFS CARE LIMITED,Childrens Services,Children's Services,Living With Formal Support,,01/07/2021,4871.43,321100,Social Community Care Supplies & Services - Children
5421809,CFS CARE LIMITED,Childrens Services,Children's Services,Semi independent - Weekly Living Allowances,,01/07/2021,296,321100,Social Community Care Supplies & Services - Children
5421806,CFS CARE LIMITED,Childrens Services,Children's Services,Living With Formal Support,,01/07/2021,5314.2,321100,Social Community Care Supplies & Services - Children
5421806,CFS CARE LIMITED,Childrens Services,Children's Services,Semi independent - Weekly Living Allowances,,01/07/2021,296,321100,Social Community Care Supplies & Services - Children
5421829,CFS CARE LIMITED,Childrens Services,Children's Services,Living With Formal Support,,01/07/2021,5314.29,321100,Social Community Care Supplies & Services - Children
5421829,CFS CARE LIMITED,Childrens Services,Children's Services,Semi independent - Weekly Living Allowances,,01/07/2021,294.5,321100,Social Community Care Supplies & Services - Children
5421805,CFS CARE LIMITED,Childrens Services,Children's Services,Living With Formal Support,,01/07/2021,4871.43,321100,Social Community Care Supplies & Services - Children
5421837,CFS CARE LIMITED,Childrens Services,Children's Services,Living With Formal Support,,01/07/2021,5314.29,321100,Social Community Care Supplies & Services - Children
5421801,CFS CARE LIMITED,Childrens Services,Children's Services,Living With Formal Support,,01/07/2021,5314.29,321100,Social Community Care Supplies & Services - Children
5425372,Sky High Achievers Ashton,Childrens Services,Children's Services,Nursery Services,,01/07/2021,614.7,321100,Social Community Care Supplies & Services - Children
5421864,CW Advisory Services LLP,Finance,Finance & IT,Professional Services,,01/07/2021,700,-999999,Unclassifiable
5424295,GREENSCAPE,Adult Social Care,Adults,Professional Services,,01/07/2021,2967,390000,"Works - Construction, Repair & Maintenance"
5421863,Redacted,Childrens Services,Children's Services,Childrens Homes Outside Local Authority Fees,Redacted Supplier,01/07/2021,12621,321100,Social Community Care Supplies & Services - Children
5421901,Redacted,Childrens Services,Children's Services,Childrens Homes Outside Local Authority Fees,Redacted Supplier,01/07/2021,14910,321100,Social Community Care Supplies & Services - Children
5421867,Redacted,Childrens Services,Children's Services,Childrens Homes Outside Local Authority Fees,Redacted Supplier,01/07/2021,12621,321100,Social Community Care Supplies & Services - Children
5421906,CARE 4 CHILDREN RESIDENTIAL SERVICES LTD,Childrens Services,Children's Services,Foster Carer Agency Fees,,01/07/2021,3053.7,321100,Social Community Care Supplies & Services - Children
5421926,CARE 4 CHILDREN RESIDENTIAL SERVICES LTD,Childrens Services,Children's Services,Foster Carer Agency Fees,,01/07/2021,5142.9,321100,Social Community Care Supplies & Services - Children
5421903,CARE 4 CHILDREN RESIDENTIAL SERVICES LTD,Childrens Services,Children's Services,Foster Carer Agency Fees,,01/07/2021,4885.8,321100,Social Community Care Supplies & Services - Children
5421905,CARE 4 CHILDREN RESIDENTIAL SERVICES LTD,Childrens Services,Children's Services,Foster Carer Agency Fees,,01/07/2021,3305.1,321100,Social Community Care Supplies & Services - Children
5421924,CARE 4 CHILDREN RESIDENTIAL SERVICES LTD,Childrens Services,Children's Services,Foster Carer Agency Fees,,01/07/2021,3184.2,321100,Social Community Care Supplies & Services - Children
5421899,UNIVERSITY HOSPITALS BIRMINGHAM NHS FOUNDATION TRUST,Childrens Services,Children's Services,Training Course Costs,,01/07/2021,4500,150000,Consultancy
5421899,UNIVERSITY HOSPITALS BIRMINGHAM NHS FOUNDATION TRUST,Population Health,Population Health,Training Course Costs,,01/07/2021,8000,150000,Consultancy
5421815,BY THE BRIDGE NORTH WEST LTD,Childrens Services,Children's Services,Foster Carer Agency Fees,,01/07/2021,4380,908001,Public Bodies
5421811,BY THE BRIDGE NORTH WEST LTD,Childrens Services,Children's Services,Foster Carer Agency Fees,,01/07/2021,4380,908001,Public Bodies
5421808,BY THE BRIDGE NORTH WEST LTD,Childrens Services,Children's Services,Foster Carer Agency Fees,,01/07/2021,4292.4,908001,Public Bodies
5421824,BY THE BRIDGE NORTH WEST LTD,Childrens Services,Children's Services,Foster Carer Agency Fees,,01/07/2021,3962.7,908001,Public Bodies
5421820,BY THE BRIDGE NORTH WEST LTD,Childrens Services,Children's Services,Foster Carer Agency Fees,,01/07/2021,3962.7,908001,Public Bodies
5421821,BY THE BRIDGE NORTH WEST LTD,Childrens Services,Children's Services,Foster Carer Agency Fees,,01/07/2021,3933.6,908001,Public Bodies
5421904,CARE 4 CHILDREN RESIDENTIAL SERVICES LTD,Childrens Services,Children's Services,Foster Carer Agency Fees,,01/07/2021,7135.71,321100,Social Community Care Supplies & Services - Children
5421810,BY THE BRIDGE NORTH WEST LTD,Childrens Services,Children's Services,Foster Carer Agency Fees,,01/07/2021,4181.37,908001,Public Bodies
5421947,CAPITA BUSINESS SERVICES LIMITED,Exchequer,Governance,Computer Software Maintenance Costs,,01/07/2021,2500,270000,Information Communication Technology
5421813,BY THE BRIDGE NORTH WEST LTD,Childrens Services,Children's Services,Foster Carer Agency Fees,,01/07/2021,3165,908001,Public Bodies
5421934,HEXAGON CARE SERVICES LTD,Childrens Services,Children's Services,Childrens Homes Outside Local Authority Fees,,01/07/2021,22120.71,321000,Social Community Care Supplies & Services - Adult
5425044,MOSSLEY PRIVATE HIRE,Education,Children's Services,Transport Of Pupils,,01/07/2021,2700,360000,Public Transport
5421949,DOMAIN CARE NORTH WEST LTD,Adult Social Care,Adults,Homecare Fees,,01/07/2021,1657.14,321100,Social Community Care Supplies & Services - Children
5425040,MOSSLEY PRIVATE HIRE,Education,Children's Services,Transport Of Pupils,,01/07/2021,2750,360000,Public Transport
5425041,MOSSLEY PRIVATE HIRE,Education,Children's Services,Transport Of Pupils,,01/07/2021,2750,360000,Public Transport
5425045,MOSSLEY PRIVATE HIRE,Education,Children's Services,Transport Of Pupils,,01/07/2021,2115,360000,Public Transport
5425039,MOSSLEY PRIVATE HIRE,Education,Children's Services,Transport Of Ola Pupils,,01/07/2021,2838,360000,Public Transport
5425042,MOSSLEY PRIVATE HIRE,Education,Children's Services,Transport Of Pupils,,01/07/2021,2250,360000,Public Transport
5425043,MOSSLEY PRIVATE HIRE,Education,Children's Services,Transport Of Pupils,,01/07/2021,2250,360000,Public Transport
5421858,AMARA CARE LTD,Adult Social Care,Adults,Homecare Fees,,01/07/2021,8449.67,321000,Social Community Care Supplies & Services - Adult
5424035,INSPIREDSPACES TAMESIDE LTD,Environmental Services,Director of Place,Fees,,01/07/2021,5251.82,390000,"Works - Construction, Repair & Maintenance"
5421816,BY THE BRIDGE NORTH WEST LTD,Childrens Services,Children's Services,Foster Carer Agency Fees,,01/07/2021,4611.3,908001,Public Bodies
5421861,AMARA CARE LTD,Adult Social Care,Adults,Homecare Fees,,01/07/2021,10424.06,321000,Social Community Care Supplies & Services - Adult
5425167,CYGNET HEALTH CARE LTD,Education,Children's Services,Independent School Fees,,01/07/2021,3021,310000,Healthcare
5424956,MATTHEWS ENVIRONMENTAL SOLUTIONS LTD,(blank),(blank),Engineers -External,,01/07/2021,138509.11,390000,"Works - Construction, Repair & Maintenance"
5422612,LINK ASSET SERVICES,Finance,Finance & IT,Professional Services,,01/07/2021,15200,200000,Financial Services
5421823,BY THE BRIDGE NORTH WEST LTD,Childrens Services,Children's Services,Foster Carer Agency Fees,,01/07/2021,4050,908001,Public Bodies
5421812,BY THE BRIDGE NORTH WEST LTD,Childrens Services,Children's Services,Foster Carer Agency Fees,,01/07/2021,3165,908001,Public Bodies
5421817,BY THE BRIDGE NORTH WEST LTD,Childrens Services,Children's Services,Foster Carer Agency Fees,,01/07/2021,3167.1,908001,Public Bodies
5425221,HILL DICKINSON LLP,Governance,Governance,Legal Fees,,01/07/2021,15818.39,280000,Legal Services
5421937,FSN Facilities Management Ltd,Governance,Governance,Miscellaneous Expenses,,01/07/2021,3322,190000,Facilities & Management Services
5421880,Northern Community Pathways Limited,Childrens Services,Children's Services,Living With Formal Support,,02/07/2021,2680,321100,Social Community Care Supplies & Services - Children
5421880,Northern Community Pathways Limited,Childrens Services,Children's Services,Semi independent - Weekly Living Allowances,,02/07/2021,236.8,321100,Social Community Care Supplies & Services - Children
5422191,DHL Parcel UK Ltd (UK Mail),People and Workforce Development,Governance,Postages,,02/07/2021,2447.59,300000,Mail Services
5425231,Hyde Accessible Transport Limited,Education,Children's Services,Transport Of Pupils,,02/07/2021,1620,360000,Public Transport
5422173,DHL Parcel UK Ltd (UK Mail),Exchequer,Governance,Printing And Stationery,,02/07/2021,2761.64,300000,Mail Services
5425226,Hyde Accessible Transport Limited,Education,Children's Services,Transport Of Post 16 Pupils,,02/07/2021,1687.5,360000,Public Transport
5425227,Hyde Accessible Transport Limited,Education,Children's Services,Transport Of Post 16 Pupils,,02/07/2021,1687.5,360000,Public Transport
5425233,Hyde Accessible Transport Limited,Education,Children's Services,Transport Of Pupils,,02/07/2021,945,360000,Public Transport
5425224,Hyde Accessible Transport Limited,Education,Children's Services,Transport Of Post 16 Pupils,,02/07/2021,1350,360000,Public Transport
5425228,Hyde Accessible Transport Limited,Education,Children's Services,Transport Of Post 16 Pupils,,02/07/2021,1050,360000,Public Transport
5425234,Hyde Accessible Transport Limited,Education,Children's Services,Transport Of Pupils,,02/07/2021,2025,360000,Public Transport
5425229,Hyde Accessible Transport Limited,Education,Children's Services,Transport Of Pupils,,02/07/2021,2250,360000,Public Transport
5425237,Hyde Accessible Transport Limited,Education,Children's Services,Transport Of Pupils,,02/07/2021,1620,360000,Public Transport
5425222,Hyde Accessible Transport Limited,Education,Children's Services,Transport Of Post 16 Pupils,,02/07/2021,1125,360000,Public Transport
5425223,Hyde Accessible Transport Limited,Education,Children's Services,Transport Of Post 16 Pupils,,02/07/2021,1125,360000,Public Transport
5422253,Exclusec Security Solutions Ltd,Contingency,Contingency,Security Services,,02/07/2021,4428.95,-999999,Unclassifiable
5422386,Compass Fostering North LTD,Childrens Services,Children's Services,Foster Carer Agency Fees,,02/07/2021,3322.2,321100,Social Community Care Supplies & Services - Children
5422385,Compass Fostering North LTD,Childrens Services,Children's Services,Foster Carer Agency Fees,,02/07/2021,3322.2,321100,Social Community Care Supplies & Services - Children
5422376,Compass Fostering North LTD,Childrens Services,Children's Services,Foster Carer Agency Fees,,02/07/2021,3112.77,321100,Social Community Care Supplies & Services - Children
5422375,Compass Fostering North LTD,Childrens Services,Children's Services,Foster Carer Agency Fees,,02/07/2021,2899.8,321100,Social Community Care Supplies & Services - Children
5422369,Compass Fostering North LTD,Childrens Services,Children's Services,Foster Carer Agency Fees,,02/07/2021,3334.5,321100,Social Community Care Supplies & Services - Children
5422378,Compass Fostering North LTD,Childrens Services,Children's Services,Foster Carer Agency Fees,,02/07/2021,3256.98,321100,Social Community Care Supplies & Services - Children
5422379,Compass Fostering North LTD,Childrens Services,Children's Services,Foster Carer Agency Fees,,02/07/2021,3257.1,321100,Social Community Care Supplies & Services - Children
5424418,Headsets4Business Limited,Contingency,Contingency,IT Equipment,,02/07/2021,2200,270000,Information Communication Technology
5422289,LIBERTY SUPPORT SERVICES LTD,Adult Social Care,Adults,Homecare Fees,,02/07/2021,19030.59,321000,Social Community Care Supplies & Services - Adult
5422170,The Networking People (TNP) Ltd,Digital Tameside,Finance & IT,Security Services,,02/07/2021,600,270000,Information Communication Technology
5422422,THE ADOLESCENT & CHILDRENS TRUST,Childrens Services,Children's Services,Foster Carer Agency Fees,,02/07/2021,3113.64,321100,Social Community Care Supplies & Services - Children
5422421,THE ADOLESCENT & CHILDRENS TRUST,Childrens Services,Children's Services,Foster Carer Agency Fees,,02/07/2021,3257.79,321100,Social Community Care Supplies & Services - Children
5422420,THE ADOLESCENT & CHILDRENS TRUST,Childrens Services,Children's Services,Foster Carer Agency Fees,,02/07/2021,4051.49,321100,Social Community Care Supplies & Services - Children
5422308,CARETECH COMMUNITY SERVICES LIMITED,Adult Social Care,Adults,Residential Home Long Stay Fees,,02/07/2021,6066.3,321000,Social Community Care Supplies & Services - Adult
5422307,CARETECH COMMUNITY SERVICES LIMITED,Adult Social Care,Adults,Residential Home Long Stay Fees,,02/07/2021,4461.3,321000,Social Community Care Supplies & Services - Adult
5422309,CARETECH COMMUNITY SERVICES LIMITED,Adult Social Care,Adults,Residential Home Long Stay Fees,,02/07/2021,4632.6,321000,Social Community Care Supplies & Services - Adult
5422315,CARETECH COMMUNITY SERVICES LIMITED,Adult Social Care,Adults,Residential Home Long Stay Fees,,02/07/2021,7287,321000,Social Community Care Supplies & Services - Adult
5422316,CARETECH COMMUNITY SERVICES LIMITED,Adult Social Care,Adults,Residential Home Long Stay Fees,,02/07/2021,3643.5,321000,Social Community Care Supplies & Services - Adult
5422310,CARETECH COMMUNITY SERVICES LIMITED,Adult Social Care,Adults,Residential Home Long Stay Fees,,02/07/2021,6766.5,321000,Social Community Care Supplies & Services - Adult
5422311,CARETECH COMMUNITY SERVICES LIMITED,Adult Social Care,Adults,Residential Home Long Stay Fees,,02/07/2021,3123,321000,Social Community Care Supplies & Services - Adult
5424304,INSPIREDSPACES TAMESIDE LTD,Place,Growth,Facilities Management Services,,02/07/2021,12609.99,390000,"Works - Construction, Repair & Maintenance"
5424304,INSPIREDSPACES TAMESIDE LTD,Place,Growth,Fees,,02/07/2021,252.2,390000,"Works - Construction, Repair & Maintenance"
5424306,INSPIREDSPACES TAMESIDE LTD,Place,Growth,Fees,,02/07/2021,128.73,390000,"Works - Construction, Repair & Maintenance"
5424306,INSPIREDSPACES TAMESIDE LTD,Place,Growth,Other Accommodation Related Costs,,02/07/2021,6436.5,390000,"Works - Construction, Repair & Maintenance"
5424305,INSPIREDSPACES TAMESIDE LTD,Place,Growth,Facilities Management Services,,02/07/2021,24254.71,390000,"Works - Construction, Repair & Maintenance"
5424305,INSPIREDSPACES TAMESIDE LTD,Place,Growth,Fees,,02/07/2021,485.09,390000,"Works - Construction, Repair & Maintenance"
5424302,INSPIREDSPACES TAMESIDE LTD,Place,Growth,Fees,,02/07/2021,41.17,390000,"Works - Construction, Repair & Maintenance"
5424302,INSPIREDSPACES TAMESIDE LTD,Place,Growth,Repairs & Maintenance Heavy Catering Equipment,,02/07/2021,2058.56,390000,"Works - Construction, Repair & Maintenance"
5422387,Compass Fostering North LTD,Childrens Services,Children's Services,Foster Carer Agency Fees,,02/07/2021,3234.6,321100,Social Community Care Supplies & Services - Children
5422382,Compass Fostering North LTD,Childrens Services,Children's Services,Foster Carer Agency Fees,,02/07/2021,3497.1,321100,Social Community Care Supplies & Services - Children
5423297,Compass Fostering North LTD,Childrens Services,Children's Services,Foster Carer Agency Fees,,02/07/2021,3229.62,321100,Social Community Care Supplies & Services - Children
5422009,PARALLEL PARENTS,Childrens Services,Children's Services,Foster Carer Agency Fees,,02/07/2021,3241.05,321100,Social Community Care Supplies & Services - Children
5424421,JACKSON & TAYLOR LTD,Housing,Director of Place,Mandatory Adaptations Grant (DFG),,02/07/2021,3817,390000,"Works - Construction, Repair & Maintenance"
5422226,SWIIS FOSTER CARE LTD,Childrens Services,Children's Services,Foster Carer Agency Fees,,02/07/2021,711.76,321100,Social Community Care Supplies & Services - Children
5422231,SWIIS FOSTER CARE LTD,Childrens Services,Children's Services,Foster Carer Agency Fees,,02/07/2021,760.48,321100,Social Community Care Supplies & Services - Children
5422219,SWIIS FOSTER CARE LTD,Childrens Services,Children's Services,Foster Carer Agency Fees,,02/07/2021,722.47,321100,Social Community Care Supplies & Services - Children
5422230,SWIIS FOSTER CARE LTD,Childrens Services,Children's Services,Foster Carer Agency Fees,,02/07/2021,1694.98,321100,Social Community Care Supplies & Services - Children
5422138,TURNER GROUNDSCARE,Operations and Neighbourhoods,Operations and Neighbourhoods,General Equipment Purchase,,02/07/2021,1837.16,390000,"Works - Construction, Repair & Maintenance"
5422124,Redacted,Childrens Services,Children's Services,Childrens Homes Outside Local Authority Fees,Redacted Supplier,02/07/2021,14149.33,321100,Social Community Care Supplies & Services - Children
5422108,Redacted,Childrens Services,Children's Services,Childrens Homes Outside Local Authority Fees,Redacted Supplier,02/07/2021,11713.66,321100,Social Community Care Supplies & Services - Children
5422127,Redacted,Childrens Services,Children's Services,Childrens Homes Outside Local Authority Fees,Redacted Supplier,02/07/2021,18267.68,321100,Social Community Care Supplies & Services - Children
5422107,Redacted,Childrens Services,Children's Services,Childrens Homes Outside Local Authority Fees,Redacted Supplier,02/07/2021,9068.64,321100,Social Community Care Supplies & Services - Children
5422109,Redacted,Childrens Services,Children's Services,Childrens Homes Outside Local Authority Fees,Redacted Supplier,02/07/2021,12377.99,321100,Social Community Care Supplies & Services - Children
5418529,OFFERTON SAND & GRAVEL LIMITED,Operations and Neighbourhoods,Operations and Neighbourhoods,General Materials,,02/07/2021,1929.87,240000,Horticultural
5419285,OFFERTON SAND & GRAVEL LIMITED,Operations and Neighbourhoods,Operations and Neighbourhoods,General Materials,,02/07/2021,1549.71,240000,Horticultural
5418648,OFFERTON SAND & GRAVEL LIMITED,Operations and Neighbourhoods,Operations and Neighbourhoods,General Materials,,02/07/2021,1542.54,240000,Horticultural
5422117,Redacted,Adult Social Care,Adults,Homecare Fees,Redacted Supplier,02/07/2021,1973.12,321100,Social Community Care Supplies & Services - Children
5422445,TREASURED MEMORIES LTD,Operations and Neighbourhoods,Operations and Neighbourhoods,Building Works,,02/07/2021,3540,120000,Cemetery & Crematorium
5422448,TREASURED MEMORIES LTD,Operations and Neighbourhoods,Operations and Neighbourhoods,Plaques,,02/07/2021,7080,120000,Cemetery & Crematorium
5422015,PARALLEL PARENTS,Childrens Services,Children's Services,Foster Carer Agency Fees,,02/07/2021,3807.42,321100,Social Community Care Supplies & Services - Children
5422013,PARALLEL PARENTS,Childrens Services,Children's Services,Foster Carer Agency Fees,,02/07/2021,3807.42,321100,Social Community Care Supplies & Services - Children
5422031,PARALLEL PARENTS,Childrens Services,Children's Services,Foster Carer Agency Fees,,02/07/2021,3431.7,321100,Social Community Care Supplies & Services - Children
5422026,PARALLEL PARENTS,Childrens Services,Children's Services,Foster Carer Agency Fees,,02/07/2021,3483.78,321100,Social Community Care Supplies & Services - Children
5422008,PARALLEL PARENTS,Childrens Services,Children's Services,Foster Carer Agency Fees,,02/07/2021,3211.6,321100,Social Community Care Supplies & Services - Children
5422030,PARALLEL PARENTS,Childrens Services,Children's Services,Foster Carer Agency Fees,,02/07/2021,3241.05,321100,Social Community Care Supplies & Services - Children
5424420,JACKSON & TAYLOR LTD,Housing,Director of Place,Mandatory Adaptations Grant (DFG),,02/07/2021,8138.92,390000,"Works - Construction, Repair & Maintenance"
5422025,PARALLEL PARENTS,Childrens Services,Children's Services,Foster Carer Agency Fees,,02/07/2021,2462.94,321100,Social Community Care Supplies & Services - Children
5422017,PARALLEL PARENTS,Childrens Services,Children's Services,Foster Carer Agency Fees,,02/07/2021,3712.87,321100,Social Community Care Supplies & Services - Children
5422029,PARALLEL PARENTS,Childrens Services,Children's Services,Foster Carer Agency Fees,,02/07/2021,3526.87,321100,Social Community Care Supplies & Services - Children
5422033,PARALLEL PARENTS,Childrens Services,Children's Services,Foster Carer Agency Fees,,02/07/2021,3180.6,321100,Social Community Care Supplies & Services - Children
5422028,PARALLEL PARENTS,Childrens Services,Children's Services,Foster Carer Agency Fees,,02/07/2021,5314.33,321100,Social Community Care Supplies & Services - Children
5422011,PARALLEL PARENTS,Childrens Services,Children's Services,Foster Carer Agency Fees,,02/07/2021,2883.93,321100,Social Community Care Supplies & Services - Children
5422010,PARALLEL PARENTS,Childrens Services,Children's Services,Foster Carer Agency Fees,,02/07/2021,2883.93,321100,Social Community Care Supplies & Services - Children
5422012,PARALLEL PARENTS,Childrens Services,Children's Services,Foster Carer Agency Fees,,02/07/2021,3931.42,321100,Social Community Care Supplies & Services - Children
5422024,PARALLEL PARENTS,Childrens Services,Children's Services,Foster Carer Agency Fees,,02/07/2021,4242.04,321100,Social Community Care Supplies & Services - Children
5422022,PARALLEL PARENTS,Childrens Services,Children's Services,Foster Carer Agency Fees,,02/07/2021,4242.04,321100,Social Community Care Supplies & Services - Children
5422019,PARALLEL PARENTS,Childrens Services,Children's Services,Foster Carer Agency Fees,,02/07/2021,4242.04,321100,Social Community Care Supplies & Services - Children
5422018,PARALLEL PARENTS,Childrens Services,Children's Services,Foster Carer Agency Fees,,02/07/2021,4242.04,321100,Social Community Care Supplies & Services - Children
5422020,PARALLEL PARENTS,Childrens Services,Children's Services,Foster Carer Agency Fees,,02/07/2021,6195.97,321100,Social Community Care Supplies & Services - Children
5424430,DIRECT CARE (TAMESIDE) LTD,Adult Social Care,Adults,Homecare Fees,,02/07/2021,43189.78,321000,Social Community Care Supplies & Services - Adult
5424429,DIRECT CARE (TAMESIDE) LTD,Adult Social Care,Adults,Homecare Fees,,02/07/2021,42225.76,321000,Social Community Care Supplies & Services - Adult
5424658,DIRECT CARE (TAMESIDE) LTD,Adult Social Care,Adults,Homecare Fees,,02/07/2021,40276.34,321000,Social Community Care Supplies & Services - Adult
5424660,DIRECT CARE (TAMESIDE) LTD,Adult Social Care,Adults,Homecare Fees,,02/07/2021,39330.77,321000,Social Community Care Supplies & Services - Adult
5422259,MOSSCARE HOUSING LTD,Adult Social Care,Adults,Non-Authority Accommodation Rental,,02/07/2021,30385.9,321000,Social Community Care Supplies & Services - Adult
5422115,ARCO LIMITED,Operations and Neighbourhoods,Operations and Neighbourhoods,Protective Clothing,,02/07/2021,582.2,140000,Clothing
5422370,Compass Fostering North LTD,Childrens Services,Children's Services,Foster Carer Agency Fees,,02/07/2021,3159,321100,Social Community Care Supplies & Services - Children
5422368,Compass Fostering North LTD,Childrens Services,Children's Services,Foster Carer Agency Fees,,02/07/2021,3159,321100,Social Community Care Supplies & Services - Children
5422380,Compass Fostering North LTD,Childrens Services,Children's Services,Foster Carer Agency Fees,,02/07/2021,3171.27,321100,Social Community Care Supplies & Services - Children
5422101,Next Stage 4 Life Limited,Childrens Services,Children's Services,Childrens Homes Outside Local Authority Fees,,02/07/2021,21857.1,321000,Social Community Care Supplies & Services - Adult
5422087,THREE CIRCLES FOSTERING LTD,Childrens Services,Children's Services,Foster Carer Agency Fees,,02/07/2021,3975.71,321100,Social Community Care Supplies & Services - Children
5424382,CURZON ASHTON FOOTBALL CLUB,Contingency,Contingency,Room Hire,,02/07/2021,2000,290000,Arts & Leisure Services
5422451,Transunion Internal UK Limited,Hosted Services,Hosted Services,Professional Services,,02/07/2021,16800,150000,Consultancy
5422277,CLOVERLEAF ADVOCACY 2000 LTD,Adult Social Care,Adults,Professional Services,,02/07/2021,12250,321000,Social Community Care Supplies & Services - Adult
5422276,HANDICARE LIMITED,Housing,Director of Place,Mandatory Adaptations Grant (DFG),,02/07/2021,1031.13,321100,Social Community Care Supplies & Services - Children
5422150,Redacted,Childrens Services,Children's Services,Childrens Homes Outside Local Authority Fees,Redacted Supplier,02/07/2021,17571.43,321000,Social Community Care Supplies & Services - Adult
5422148,Redacted,Childrens Services,Children's Services,Childrens Homes Outside Local Authority Fees,Redacted Supplier,02/07/2021,17571.43,321000,Social Community Care Supplies & Services - Adult
5422105,Redacted,Childrens Services,Children's Services,Childrens Homes Outside Local Authority Fees,Redacted Supplier,02/07/2021,17571.43,321000,Social Community Care Supplies & Services - Adult
5422102,Redacted,Adult Social Care,Adults,Nursing Home Long Stay Fees,Redacted Supplier,02/07/2021,15000,321000,Social Community Care Supplies & Services - Adult
5422078,DAISY CORPORATE SERVICES TRADING LIMITED,Digital Tameside,Finance & IT,Telephone Landline Costs,,02/07/2021,2382.14,908001,Public Bodies
5422141,The Pathways Group Ltd,Childrens Services,Children's Services,Living With Formal Support,,02/07/2021,3835.71,321000,Social Community Care Supplies & Services - Adult
5422142,The Pathways Group Ltd,Childrens Services,Children's Services,Living With Formal Support,,02/07/2021,4225.71,321000,Social Community Care Supplies & Services - Adult
5424406,PERSON CENTRED CARE SERVICES LIMITED,Adult Social Care,Adults,Homecare Fees,,02/07/2021,7033.48,310000,Healthcare
5422272,Redacted,Childrens Services,Children's Services,Childrens Homes Outside Local Authority Fees,Redacted Supplier,02/07/2021,16363.66,321000,Social Community Care Supplies & Services - Adult
5422271,Redacted,Childrens Services,Children's Services,Childrens Homes Outside Local Authority Fees,Redacted Supplier,02/07/2021,16363.66,321000,Social Community Care Supplies & Services - Adult
5422139,Redacted,Childrens Services,Children's Services,Childrens Homes Outside Local Authority Fees,Redacted Supplier,02/07/2021,9600,321100,Social Community Care Supplies & Services - Children
5422104,ROYAL MENCAP SOCIETY,Adult Social Care,Adults,Voluntary Organisations Fees,,02/07/2021,12394.24,321000,Social Community Care Supplies & Services - Adult
5422467,KONICA MINOLTA BUSINESS SOLUTIONS (UK) LTD,Digital Tameside,Finance & IT,Printing And Stationery,,02/07/2021,6467.01,270000,Information Communication Technology
5423892,Onward Homes,Adult Social Care,Adults,Homecare Fees,,02/07/2021,1986.49,190000,Facilities & Management Services
5422130,SURECARE TAMESIDE & OLDHAM,Adult Social Care,Adults,Homecare Fees,,02/07/2021,1632.11,111230,Catering
5425490,Capita ESS Limited,Education,Children's Services,Free School Meal Costs,,02/07/2021,3150,-999999,Unclassifiable
5422268,Oyster Partnership,Place,Growth,Agency Staff,,02/07/2021,2200,261313,Human Resources
5422266,N-Compass Northwest,Adult Social Care,Adults,Professional Services,,02/07/2021,14773.75,-999999,Unclassifiable
5422265,N-Compass Northwest,Adult Social Care,Adults,Professional Services,,02/07/2021,14773.75,-999999,Unclassifiable
5422263,CARTER BROWN - THE EXPERT SERVICE LIMITED,Childrens Services,Children's Services,Professional Child Services,,02/07/2021,2080.2,280000,Legal Services
5425230,Hyde Accessible Transport Limited,Education,Children's Services,Transport Of Pupils,,02/07/2021,1350,360000,Public Transport
5422126,Foster Careline Ltd,Childrens Services,Children's Services,Foster Carer Agency Fees,,02/07/2021,3615.66,321000,Social Community Care Supplies & Services - Adult
5422123,Foster Careline Ltd,Childrens Services,Children's Services,Foster Carer Agency Fees,,02/07/2021,3615.66,321000,Social Community Care Supplies & Services - Adult
5422120,G2V Recruitment Group Limited t/a Vivid Resourcing,Place,Growth,Agency Staff,,02/07/2021,2500,280000,Legal Services
5422122,G2V Recruitment Group Limited t/a Vivid Resourcing,Place,Growth,Recruitment Campaign,,02/07/2021,2925,280000,Legal Services
5422352,Beacon Counselling,People and Workforce Development,Governance,Professional Medical Services,,02/07/2021,3160,310000,Healthcare
5422064,Furniture Resource Centre Ltd,Operations and Neighbourhoods,Operations and Neighbourhoods,"Fixtures, Fittings & Furniture Purchase",,02/07/2021,1376,UNCLASS,Unclassifiable
5422069,Furniture Resource Centre Ltd,Operations and Neighbourhoods,Operations and Neighbourhoods,"Fixtures, Fittings & Furniture Purchase",,02/07/2021,1413.62,UNCLASS,Unclassifiable
5422089,YOUNG PEOPLE FIRST LIMITED,Childrens Services,Children's Services,Living With Formal Support,,02/07/2021,850,321100,Social Community Care Supplies & Services - Children
5422094,YOUNG PEOPLE FIRST LIMITED,Childrens Services,Children's Services,Living With Formal Support,,02/07/2021,2730,321100,Social Community Care Supplies & Services - Children
5422403,iCare Solutions,Adult Social Care,Adults,Homecare Fees,,02/07/2021,12487.5,310000,Healthcare
5422405,iCare Solutions,Adult Social Care,Adults,Homecare Fees,,02/07/2021,12566.59,310000,Healthcare
5422254,Valtech,Operations and Neighbourhoods,Operations and Neighbourhoods,Professional Medical Services,,02/07/2021,648.15,-999999,Unclassifiable
5422252,APS Group,Operations and Neighbourhoods,Operations and Neighbourhoods,Professional Medical Services,,02/07/2021,1163.09,-999999,Unclassifiable
5422251,Home Instead Senior Care,Adult Social Care,Adults,Homecare Fees,,02/07/2021,1596.45,321000,Social Community Care Supplies & Services - Adult
5422250,The Trafford College Group,Education,Children's Services,Post 16 FE College Fees,,02/07/2021,3024.81,170000,Education
5422429,BRIDGELEA PUPIL REFERRAL UNIT,Childrens Services,Children's Services,Professional Services,,02/07/2021,1920,400000,Non 3rd Party spend  
5422428,BRIDGELEA PUPIL REFERRAL UNIT,Childrens Services,Children's Services,Professional Services,,02/07/2021,525,400000,Non 3rd Party spend  
5422248,Restorative Social Care Services,Childrens Services,Children's Services,Living With Formal Support,,02/07/2021,3011.34,321100,Social Community Care Supplies & Services - Children
5422248,Restorative Social Care Services,Childrens Services,Children's Services,Semi independent - Weekly Living Allowances,,02/07/2021,261.33,321100,Social Community Care Supplies & Services - Children
5422247,Restorative Social Care Services,Childrens Services,Children's Services,Living With Formal Support,,02/07/2021,2307.33,321100,Social Community Care Supplies & Services - Children
5422247,Restorative Social Care Services,Childrens Services,Children's Services,Semi independent - Weekly Living Allowances,,02/07/2021,261.33,321100,Social Community Care Supplies & Services - Children
5422318,CARETECH COMMUNITY SERVICES LIMITED,Adult Social Care,Adults,Residential Home Long Stay Fees,,02/07/2021,5673.6,321000,Social Community Care Supplies & Services - Adult
5422083,THREE CIRCLES FOSTERING LTD,Childrens Services,Children's Services,Foster Carer Agency Fees,,02/07/2021,3993.69,321100,Social Community Care Supplies & Services - Children
5422125,Foster Careline Ltd,Childrens Services,Children's Services,Foster Carer Agency Fees,,02/07/2021,3475.1,321000,Social Community Care Supplies & Services - Adult
5422090,THREE CIRCLES FOSTERING LTD,Childrens Services,Children's Services,Foster Carer Agency Fees,,02/07/2021,3681.25,321100,Social Community Care Supplies & Services - Children
5422436,NATIONAL FOSTERING AGENCY LTD,Childrens Services,Children's Services,Foster Carer Agency Fees,,02/07/2021,3116.74,321100,Social Community Care Supplies & Services - Children
5422432,NATIONAL FOSTERING AGENCY LTD,Childrens Services,Children's Services,Foster Carer Agency Fees,,02/07/2021,3116.74,321100,Social Community Care Supplies & Services - Children
5422437,NATIONAL FOSTERING AGENCY LTD,Childrens Services,Children's Services,Foster Carer Agency Fees,,02/07/2021,3092.25,321100,Social Community Care Supplies & Services - Children
5422431,NATIONAL FOSTERING AGENCY LTD,Childrens Services,Children's Services,Foster Carer Agency Fees,,02/07/2021,3218.42,321100,Social Community Care Supplies & Services - Children
5422433,NATIONAL FOSTERING AGENCY LTD,Childrens Services,Children's Services,Foster Carer Agency Fees,,02/07/2021,3493.7,321100,Social Community Care Supplies & Services - Children
5422438,NATIONAL FOSTERING AGENCY LTD,Childrens Services,Children's Services,Foster Carer Agency Fees,,02/07/2021,3542.99,321100,Social Community Care Supplies & Services - Children
5422323,FORENSIC TESTING SERVICE LTD,Childrens Services,Children's Services,Professional Medical Services,,02/07/2021,560.27,180000,Environmental Services
5422327,PETERS LIMITED (PETERS BOOKSELLING SERVICES),Operations and Neighbourhoods,Operations and Neighbourhoods,Purchase Books,,02/07/2021,1137.72,170000,Education
5422442,TUDOR (UK) LTD T/A TUDOR ENVIRONMENTAL,Operations and Neighbourhoods,Operations and Neighbourhoods,General Equipment Purchase,,02/07/2021,2910.74,240000,Horticultural
5422494,NEW BRIDGE ACADEMY TRUST,Education,Children's Services,Other Local Authorities Fees,,02/07/2021,24755.24,170000,Education
5422492,NEW BRIDGE ACADEMY TRUST,Education,Children's Services,Other Local Authorities Fees,,02/07/2021,12368.45,170000,Education
5422496,NEW BRIDGE ACADEMY TRUST,Education,Children's Services,Other Local Authorities Fees,,02/07/2021,11346.73,170000,Education
5422493,NEW BRIDGE ACADEMY TRUST,Education,Children's Services,Other Local Authorities Fees,,02/07/2021,5784.35,170000,Education
5422158,DUNELM ECOLGY LTD,Hosted Services,Hosted Services,Professional Services,,02/07/2021,4450,-999999,Unclassifiable
5422295,Optima Health and Social Care Ltd,Childrens Services,Children's Services,Homecare Fees,,02/07/2021,630,UNCLASS,Unclassifiable
5422293,Optima Health and Social Care Ltd,Childrens Services,Children's Services,Homecare Fees,,02/07/2021,630,UNCLASS,Unclassifiable
5424395,ABLE CARE AND SUPPORT SERVICES LTD,Adult Social Care,Adults,Homecare Fees,,02/07/2021,13763.7,321000,Social Community Care Supplies & Services - Adult
5424595,ABLE CARE AND SUPPORT SERVICES LTD,Adult Social Care,Adults,Homecare Fees,,02/07/2021,13556.14,321000,Social Community Care Supplies & Services - Adult
5422156,COMMUNITY INTEGRATED CARE,Adult Social Care,Adults,Homecare Fees,,02/07/2021,20112.46,321000,Social Community Care Supplies & Services - Adult
5424243,INSPIREDSPACES TAMESIDE LTD,(blank),(blank),Survey/Surveyors Fees,,02/07/2021,804.11,390000,"Works - Construction, Repair & Maintenance"
5422076,THREE CIRCLES FOSTERING LTD,Childrens Services,Children's Services,Foster Carer Agency Fees,,02/07/2021,1674.79,321100,Social Community Care Supplies & Services - Children
5422096,THREE CIRCLES FOSTERING LTD,Childrens Services,Children's Services,Foster Carer Agency Fees,,02/07/2021,5301,321100,Social Community Care Supplies & Services - Children
5422095,THREE CIRCLES FOSTERING LTD,Childrens Services,Children's Services,Foster Carer Agency Fees,,02/07/2021,1939.71,321100,Social Community Care Supplies & Services - Children
5422084,THREE CIRCLES FOSTERING LTD,Childrens Services,Children's Services,Foster Carer Agency Fees,,02/07/2021,3871.37,321100,Social Community Care Supplies & Services - Children
5422092,THREE CIRCLES FOSTERING LTD,Childrens Services,Children's Services,Foster Carer Agency Fees,,02/07/2021,3398.92,321100,Social Community Care Supplies & Services - Children
5422091,THREE CIRCLES FOSTERING LTD,Childrens Services,Children's Services,Foster Carer Agency Fees,,02/07/2021,3534,321100,Social Community Care Supplies & Services - Children
5422093,THREE CIRCLES FOSTERING LTD,Childrens Services,Children's Services,Foster Carer Agency Fees,,02/07/2021,3534,321100,Social Community Care Supplies & Services - Children
5422088,THREE CIRCLES FOSTERING LTD,Childrens Services,Children's Services,Foster Carer Agency Fees,,02/07/2021,4101.3,321100,Social Community Care Supplies & Services - Children
5422085,THREE CIRCLES FOSTERING LTD,Childrens Services,Children's Services,Foster Carer Agency Fees,,02/07/2021,1641.1,321100,Social Community Care Supplies & Services - Children
5422082,THREE CIRCLES FOSTERING LTD,Childrens Services,Children's Services,Foster Carer Agency Fees,,02/07/2021,3478.37,321100,Social Community Care Supplies & Services - Children
5422081,THREE CIRCLES FOSTERING LTD,Childrens Services,Children's Services,Foster Carer Agency Fees,,02/07/2021,5546.79,321100,Social Community Care Supplies & Services - Children
5422075,Home Instead Senior Care,Adult Social Care,Adults,Homecare Fees,,02/07/2021,1712.5,321000,Social Community Care Supplies & Services - Adult
5422424,THE ADOLESCENT & CHILDRENS TRUST,Childrens Services,Children's Services,Foster Carer Agency Fees,,02/07/2021,3180.6,321100,Social Community Care Supplies & Services - Children
5425305,Hyde Accessible Transport Limited,Education,Children's Services,Transport Of Pupils,,05/07/2021,1620,360000,Public Transport
5425260,Hyde Accessible Transport Limited,Education,Children's Services,Transport Of Pupils,,05/07/2021,1620,360000,Public Transport
5425238,Hyde Accessible Transport Limited,Education,Children's Services,Transport Of Pupils,,05/07/2021,2250,360000,Public Transport
5425257,Hyde Accessible Transport Limited,Education,Children's Services,Transport Of Post 16 Pupils,,05/07/2021,1620,360000,Public Transport
5425240,Hyde Accessible Transport Limited,Education,Children's Services,Transport Of Pupils,,05/07/2021,2250,360000,Public Transport
5425245,Hyde Accessible Transport Limited,Education,Children's Services,Transport Of Pupils,,05/07/2021,1620,360000,Public Transport
5425264,Hyde Accessible Transport Limited,Education,Children's Services,Transport Of Pupils,,05/07/2021,945,360000,Public Transport
5425287,Hyde Accessible Transport Limited,Education,Children's Services,Transport Of Pupils,,05/07/2021,1155,360000,Public Transport
5425298,Hyde Accessible Transport Limited,Education,Children's Services,Transport Of Pupils,,05/07/2021,1260,360000,Public Transport
5425275,Hyde Accessible Transport Limited,Education,Children's Services,Transport Of Pupils,,05/07/2021,1260,360000,Public Transport
5425256,Hyde Accessible Transport Limited,Education,Children's Services,Transport Of Pupils,,05/07/2021,1260,360000,Public Transport
5425262,Hyde Accessible Transport Limited,Education,Children's Services,Transport Of Post 16 Pupils,,05/07/2021,1250,360000,Public Transport
5425266,Hyde Accessible Transport Limited,Education,Children's Services,Transport Of Pupils,,05/07/2021,945,360000,Public Transport
5425279,Hyde Accessible Transport Limited,Education,Children's Services,Transport Of Ola Pupils,,05/07/2021,2115,360000,Public Transport
5425255,Hyde Accessible Transport Limited,Education,Children's Services,Transport Of Ola Pupils,,05/07/2021,2115,360000,Public Transport
5425293,Hyde Accessible Transport Limited,Education,Children's Services,Transport Of Pupils,,05/07/2021,1980,360000,Public Transport
5425280,Hyde Accessible Transport Limited,Operations and Neighbourhoods,Operations and Neighbourhoods,Hired Transport,,05/07/2021,1980,360000,Public Transport
5425263,Hyde Accessible Transport Limited,Education,Children's Services,Transport Of Pupils,,05/07/2021,1980,360000,Public Transport
5425268,Hyde Accessible Transport Limited,Operations and Neighbourhoods,Operations and Neighbourhoods,Hired Transport,,05/07/2021,1875,360000,Public Transport
5425283,Hyde Accessible Transport Limited,Operations and Neighbourhoods,Operations and Neighbourhoods,Hired Transport,,05/07/2021,1870,360000,Public Transport
5425241,Hyde Accessible Transport Limited,Education,Children's Services,Transport Of Pupils,,05/07/2021,2250,360000,Public Transport
5425246,Hyde Accessible Transport Limited,Education,Children's Services,Transport Of Ola Pupils,,05/07/2021,1692,360000,Public Transport
5425295,Hyde Accessible Transport Limited,Education,Children's Services,Transport Of Pupils,,05/07/2021,3124,360000,Public Transport
5425292,Hyde Accessible Transport Limited,Operations and Neighbourhoods,Operations and Neighbourhoods,Hired Transport,,05/07/2021,2750,360000,Public Transport
5425282,Hyde Accessible Transport Limited,Operations and Neighbourhoods,Operations and Neighbourhoods,Hired Transport,,05/07/2021,2750,360000,Public Transport
5425289,Hyde Accessible Transport Limited,Operations and Neighbourhoods,Operations and Neighbourhoods,Hired Transport,,05/07/2021,900,360000,Public Transport
5425243,Hyde Accessible Transport Limited,Education,Children's Services,Transport Of Pupils,,05/07/2021,2250,360000,Public Transport
5425248,Hyde Accessible Transport Limited,Education,Children's Services,Transport Of Pupils,,05/07/2021,2250,360000,Public Transport
5425252,Hyde Accessible Transport Limited,Education,Children's Services,Transport Of Pupils,,05/07/2021,2250,360000,Public Transport
5425269,Hyde Accessible Transport Limited,Education,Children's Services,Transport Of Pupils,,05/07/2021,2250,360000,Public Transport
5425302,Hyde Accessible Transport Limited,Education,Children's Services,Transport Of Pupils,,05/07/2021,2250,360000,Public Transport
5425304,Hyde Accessible Transport Limited,Education,Children's Services,Transport Of Pupils,,05/07/2021,2250,360000,Public Transport
5425242,Hyde Accessible Transport Limited,Education,Children's Services,Transport Of Pupils,,05/07/2021,2025,360000,Public Transport
5425249,Hyde Accessible Transport Limited,Education,Children's Services,Transport Of Pupils,,05/07/2021,2025,360000,Public Transport
5425253,Hyde Accessible Transport Limited,Education,Children's Services,Transport Of Pupils,,05/07/2021,2025,360000,Public Transport
5425258,Hyde Accessible Transport Limited,Education,Children's Services,Transport Of Pupils,,05/07/2021,2025,360000,Public Transport
5425265,Hyde Accessible Transport Limited,Education,Children's Services,Transport Of Pupils,,05/07/2021,2025,360000,Public Transport
5425276,Hyde Accessible Transport Limited,Education,Children's Services,Transport Of Post 16 Pupils,,05/07/2021,2025,360000,Public Transport
5425294,Hyde Accessible Transport Limited,Operations and Neighbourhoods,Operations and Neighbourhoods,Hired Transport,,05/07/2021,1410,360000,Public Transport
5425288,Hyde Accessible Transport Limited,Operations and Neighbourhoods,Operations and Neighbourhoods,Hired Transport,,05/07/2021,560,360000,Public Transport
5425278,Hyde Accessible Transport Limited,Education,Children's Services,Transport Of Ola Pupils,,05/07/2021,2430,360000,Public Transport
5425299,Hyde Accessible Transport Limited,Education,Children's Services,Transport Of Ola Pupils,,05/07/2021,2430,360000,Public Transport
5425247,Hyde Accessible Transport Limited,Education,Children's Services,Transport Of Ola Pupils,,05/07/2021,2853,360000,Public Transport
5425272,Hyde Accessible Transport Limited,Education,Children's Services,Transport Of Post 16 Pupils,,05/07/2021,825,360000,Public Transport
5425271,Hyde Accessible Transport Limited,Operations and Neighbourhoods,Operations and Neighbourhoods,Hired Transport,,05/07/2021,720,360000,Public Transport
5425250,Hyde Accessible Transport Limited,Education,Children's Services,Transport Of Ola Pupils,,05/07/2021,2331,360000,Public Transport
5424641,E PETCH PRINTERS LTD,Policy and Communications,Governance,Printing And Stationery,,05/07/2021,515,190000,Facilities & Management Services
5425286,Hyde Accessible Transport Limited,Operations and Neighbourhoods,Operations and Neighbourhoods,Hired Transport,,05/07/2021,1222.5,360000,Public Transport
5425297,Hyde Accessible Transport Limited,Education,Children's Services,Transport Of Pupils,,05/07/2021,2700,360000,Public Transport
5425300,Hyde Accessible Transport Limited,Education,Children's Services,Transport Of Pupils,,05/07/2021,1800,360000,Public Transport
5425301,Hyde Accessible Transport Limited,Education,Children's Services,Transport Of Pupils,,05/07/2021,2331,360000,Public Transport
5425281,Hyde Accessible Transport Limited,Operations and Neighbourhoods,Operations and Neighbourhoods,Hired Transport,,05/07/2021,2538,360000,Public Transport
5425259,Hyde Accessible Transport Limited,Education,Children's Services,Transport Of Ola Pupils,,05/07/2021,2538,360000,Public Transport
5425614,L & R ROADLINES LIMITED,Engineers Client,Director of Place,Engineers Recharge - Risk Management (Internal),,05/07/2021,294.86,391411,"Works - Construction, Repair & Maintenance"
5425614,L & R ROADLINES LIMITED,(blank),(blank),Other Works,,05/07/2021,1204.72,391411,"Works - Construction, Repair & Maintenance"
5425614,L & R ROADLINES LIMITED,Operations and Neighbourhoods,Operations and Neighbourhoods,Building Works,,05/07/2021,787.14,391411,"Works - Construction, Repair & Maintenance"
5425614,L & R ROADLINES LIMITED,Operations and Neighbourhoods,Operations and Neighbourhoods,Engineers Recharge - Risk Management (Internal),,05/07/2021,59.28,391411,"Works - Construction, Repair & Maintenance"
5425239,Hyde Accessible Transport Limited,Education,Children's Services,Transport Of Pupils,,05/07/2021,1620,360000,Public Transport
5425610,ATKINS LIMITED,(blank),(blank),Engineers - Internal Recharge,,05/07/2021,7180.52,180000,Environmental Services
5425610,ATKINS LIMITED,Operations and Neighbourhoods,Operations and Neighbourhoods,Engineers - Internal Recharge,,05/07/2021,851,180000,Environmental Services
5425225,Bloom Procurement Services Limited,Tameside Investment Partnership,Director of Place,Consultancies,,05/07/2021,16773.75,150000,Consultancy
5423529,High Tech Roofing,Housing,Director of Place,Mandatory Adaptations Grant (DFG),,05/07/2021,5340,UNCLASS,Unclassifiable
5425459,L & R ROADLINES LIMITED,Engineers Client,Director of Place,Road Marking Works,,05/07/2021,2348.84,391411,"Works - Construction, Repair & Maintenance"
5425459,L & R ROADLINES LIMITED,Operations and Neighbourhoods,Operations and Neighbourhoods,Engineers Works,,05/07/2021,249.86,391411,"Works - Construction, Repair & Maintenance"
5425459,L & R ROADLINES LIMITED,Operations and Neighbourhoods,Operations and Neighbourhoods,Road Markings,,05/07/2021,172.4,391411,"Works - Construction, Repair & Maintenance"
5425022,PRD PROPERTY SERVICES LTD,Governance,Governance,Legal Fees,,05/07/2021,6260,190000,Facilities & Management Services
5425290,Hyde Accessible Transport Limited,Education,Children's Services,Transport Of Pupils,,05/07/2021,1650,360000,Public Transport
5424881,Dukinfield Medical Practice,Population Health,Population Health,Local Enhanced Services,,05/07/2021,1309.5,321000,Social Community Care Supplies & Services - Adult
5424389,INSPIREDSPACES TAMESIDE LTD,Asset & Investment Partnership Management,Growth,PFI FM Fees and Insurance Costs,,05/07/2021,32641.9,390000,"Works - Construction, Repair & Maintenance"
5422571,CITY LIFT SERVICES (NW) LTD,Adult Social Care,Adults,General Equipment Repair & Maintenance,,05/07/2021,1360,390000,"Works - Construction, Repair & Maintenance"
5422572,CITY LIFT SERVICES (NW) LTD,Adult Social Care,Adults,General Equipment Repair & Maintenance,,05/07/2021,640,390000,"Works - Construction, Repair & Maintenance"
5422567,CITY LIFT SERVICES (NW) LTD,Adult Social Care,Adults,General Equipment Repair & Maintenance,,05/07/2021,640,390000,"Works - Construction, Repair & Maintenance"
5422568,CITY LIFT SERVICES (NW) LTD,Adult Social Care,Adults,General Equipment Repair & Maintenance,,05/07/2021,740,390000,"Works - Construction, Repair & Maintenance"
5422561,CITY LIFT SERVICES (NW) LTD,Adult Social Care,Adults,General Equipment Repair & Maintenance,,05/07/2021,3005,390000,"Works - Construction, Repair & Maintenance"
5422574,CITY LIFT SERVICES (NW) LTD,Adult Social Care,Adults,General Equipment Repair & Maintenance,,05/07/2021,680,390000,"Works - Construction, Repair & Maintenance"
5424870,ASHTON PIONEER HOMES,Operations and Neighbourhoods,Operations and Neighbourhoods,Miscellaneous Expenses,,05/07/2021,4022.17,329999,Social Community Care Supplies & Services
5422454,TELEFONICA O2 (UK) LTD,Digital Tameside,Finance & IT,Mobile Telephones,,05/07/2021,6570,270000,Information Communication Technology
5424991,CYCLESCHEME LTD,(blank),(blank),Debits,,05/07/2021,1791.67,-999999,Unclassifiable
5425489,MOSSLEY PRIVATE HIRE,Education,Children's Services,Transport Of Pupils,,05/07/2021,1540,360000,Public Transport
5424312,BRITISH GAS TRADING LTD,Childrens Services,Children's Services,Cash Grants,,05/07/2021,814.77,370000,Utilities
5424585,GW THEATRE COMPANY LTD,Education,Children's Services,Professional Services,,05/07/2021,1500,290000,Arts & Leisure Services
5424336,Bloom Procurement Services Limited,(blank),(blank),External  Consultants,,05/07/2021,4830,150000,Consultancy
5425251,Hyde Accessible Transport Limited,Education,Children's Services,Transport Of Pupils,,05/07/2021,1800,360000,Public Transport
5425487,Redacted,Education,Children's Services,Transport Of Pupils,Business Payment,06/07/2021,2750,UNCLASS,Unclassifiable
5425484,Redacted,Education,Children's Services,Transport Of Post 16 Pupils,Business Payment,06/07/2021,1687.5,UNCLASS,Unclassifiable
5423659,MEDACS HEALTHCARE,Adult Social Care,Adults,Homecare Fees,,06/07/2021,19175.64,150000,Consultancy
5423060,NEXUS MOVE LIMITED PREVIOUSLY RADIO CABS (ASHTON)LTD,Childrens Services,Children's Services,Transport Of Pupils,,06/07/2021,553.76,360000,Public Transport
5425486,Redacted,Education,Children's Services,Transport Of Pupils,Business Payment,06/07/2021,2250,UNCLASS,Unclassifiable
5425485,Redacted,Education,Children's Services,Transport Of Pupils,Business Payment,06/07/2021,2250,UNCLASS,Unclassifiable
5424351,QUALITY PROTECTS CHILDREN LTD,Childrens Services,Children's Services,Childrens Homes Outside Local Authority Fees,,06/07/2021,31000,-999999,Unclassifiable
5425208,MANCHESTER METROPOLITAN UNIVERSITY,People and Workforce Development,Governance,Training Course Costs,,06/07/2021,800,260000,Human Resources
5425207,MANCHESTER METROPOLITAN UNIVERSITY,People and Workforce Development,Governance,Training Course Costs,,06/07/2021,800,260000,Human Resources
5425206,MANCHESTER METROPOLITAN UNIVERSITY,People and Workforce Development,Governance,Training Course Costs,,06/07/2021,800,260000,Human Resources
5423385,MANCHESTER METROPOLITAN UNIVERSITY,People and Workforce Development,Governance,Training Course Costs,,06/07/2021,800,260000,Human Resources
5423384,MANCHESTER METROPOLITAN UNIVERSITY,People and Workforce Development,Governance,Training Course Costs,,06/07/2021,800,260000,Human Resources
5423668,MEDACS HEALTHCARE,Adult Social Care,Adults,Homecare Fees,,06/07/2021,26859.09,150000,Consultancy
5408752,MEDACS HEALTHCARE,Adult Social Care,Adults,Homecare Fees,,06/07/2021,146220.71,150000,Consultancy
5423663,MEDACS HEALTHCARE,Adult Social Care,Adults,Homecare Fees,,06/07/2021,19435.6,150000,Consultancy
5423660,MEDACS HEALTHCARE,Adult Social Care,Adults,Homecare Fees,,06/07/2021,18769.74,150000,Consultancy
5423661,MEDACS HEALTHCARE,Adult Social Care,Adults,Homecare Fees,,06/07/2021,18989.66,150000,Consultancy
5423665,MEDACS HEALTHCARE,Adult Social Care,Adults,Homecare Fees,,06/07/2021,19537.07,150000,Consultancy
5425949,Carrington West Ltd,Place,Growth,Professional Services,,06/07/2021,900.9,-999999,Unclassifiable
5424409,Bloom Procurement Services Limited,GMPF (FX),GMPF (FX),Computer Hardware Maintenance Costs,,06/07/2021,10400,150000,Consultancy
5425488,Redacted,Education,Children's Services,Transport Of Pupils,Business Payment,06/07/2021,3300,UNCLASS,Unclassifiable
5425285,Hyde Accessible Transport Limited,Education,Children's Services,Transport Of Pupils,,06/07/2021,2200,360000,Public Transport
5423657,MEDACS HEALTHCARE,Adult Social Care,Adults,Homecare Fees,,06/07/2021,19063.46,150000,Consultancy
470914,AGGREGATE INDUSTRIES UK LIMITED,Operations and Neighbourhoods,Operations and Neighbourhoods,General Materials,,07/07/2021,10583.96,230000,Highway Equipment & Materials
470914,EAGLE CIVIL ENGINEERING LTD,Operations and Neighbourhoods,Operations and Neighbourhoods,Sub-contractor Services,,07/07/2021,31948.9,391411,"Works - Construction, Repair & Maintenance"
470914,KEN TAYLOR SUPPLIES LTD,Operations and Neighbourhoods,Operations and Neighbourhoods,General Materials,,07/07/2021,1108.55,-999999,Unclassifiable
470914,PG FABRICATIONS,Multiple Heads of Service,Multiple Strategic Directorates,Tax Retained Sub Contractors,,07/07/2021,-218,390000,"Works - Construction, Repair & Maintenance"
470914,PG FABRICATIONS,Operations and Neighbourhoods,Operations and Neighbourhoods,General Materials,,07/07/2021,630,390000,"Works - Construction, Repair & Maintenance"
470914,PG FABRICATIONS,Operations and Neighbourhoods,Operations and Neighbourhoods,Sub-contractor Services,,07/07/2021,540,390000,"Works - Construction, Repair & Maintenance"
470914,TARMAC CENTRAL LIMITED,Operations and Neighbourhoods,Operations and Neighbourhoods,General Materials,,07/07/2021,2598.63,230000,Highway Equipment & Materials
470914,BRAMHALL SURFACING LTD,Operations and Neighbourhoods,Operations and Neighbourhoods,General Materials,,07/07/2021,17100,390000,"Works - Construction, Repair & Maintenance"
470914,Saint-Gobain Building Distribution Limited t/a Benchmark Building Supplies,Operations and Neighbourhoods,Operations and Neighbourhoods,General Materials,,07/07/2021,995.27,100000,Building Construction Materials
470914,MAIN STREET SIGNS LIMITED,Operations and Neighbourhoods,Operations and Neighbourhoods,General Materials,,07/07/2021,549.9,-999999,Unclassifiable
470914,NORTHWEST UTILITY SOLUTIONS LTD,Operations and Neighbourhoods,Operations and Neighbourhoods,General Materials,,07/07/2021,7200,370000,Utilities
470914,NORTHWEST UTILITY SOLUTIONS LTD,Operations and Neighbourhoods,Operations and Neighbourhoods,Sub-contractor Services,,07/07/2021,3200,370000,Utilities
470914,TRAFFIC DIRECT LTD,Operations and Neighbourhoods,Operations and Neighbourhoods,Sub-contractor Services,,07/07/2021,1280,350000,Street & Traffic Management
470914,MALLATITE LTD,Civil Engineers,Director of Place,Debits Goods Received,,07/07/2021,3685,230000,Highway Equipment & Materials
470914,MALLATITE LTD,Operations and Neighbourhoods,Operations and Neighbourhoods,General Materials,,07/07/2021,39,230000,Highway Equipment & Materials
470914,Bloom Procurement Services Limited,(blank),(blank),Street Lighting Works,,07/07/2021,18030.6,150000,Consultancy
470914,ROWAN ASHWORTH LIMITED,Operations and Neighbourhoods,Operations and Neighbourhoods,General Materials,,07/07/2021,15300,-999999,Unclassifiable
470914,ROSGAL CIVIL ENGINEERING LTD,Operations and Neighbourhoods,Operations and Neighbourhoods,General Materials,,07/07/2021,13434,230000,Highway Equipment & Materials
470914,ACORN LIGHTING SERVICES LTD,Operations and Neighbourhoods,Operations and Neighbourhoods,Sub-contractor Services,,07/07/2021,32570,230000,Highway Equipment & Materials
470914,METCRAFT LIGHTING LTD,Operations and Neighbourhoods,Operations and Neighbourhoods,General Materials,,12/07/2021,703,231400,Highway Equipment & Materials
5422638,ULVERSCROFT LARGE PRINT  BOOKS LTD,Operations and Neighbourhoods,Operations and Neighbourhoods,Purchase Books,,07/07/2021,1853.26,170000,Education
5422582,BANNER GROUP LIMITED,Operations and Neighbourhoods,Operations and Neighbourhoods,Printing Recharges,,07/07/2021,964.8,340000,Stationery
5422410,CAPSTONE FOSTER CARE,Childrens Services,Children's Services,Foster Carer Agency Fees,,07/07/2021,3203.4,321000,Social Community Care Supplies & Services - Adult
5425767,ABLE CARE AND SUPPORT SERVICES LTD,Adult Social Care,Adults,Homecare Fees,,07/07/2021,12550.61,321000,Social Community Care Supplies & Services - Adult
5422964,S&M PLUMBING AND HEATING,Place,Growth,Other Accommodation Related Costs,,07/07/2021,525,102200,Building Construction Materials
5424411,PLATINUM STAIRLIFTS LIMITED,Housing,Director of Place,Mandatory Adaptations Grant (DFG),,07/07/2021,3525,321000,Social Community Care Supplies & Services - Adult
5424412,PLATINUM STAIRLIFTS LIMITED,Housing,Director of Place,Mandatory Adaptations Grant (DFG),,07/07/2021,3814.56,321000,Social Community Care Supplies & Services - Adult
5422580,DEKKO WINDOW SYSTEMS LTD,Place,Growth,Gas,,07/07/2021,505.7,370000,Utilities
5422575,DEKKO WINDOW SYSTEMS LTD,Place,Growth,Gas,,07/07/2021,716.98,370000,Utilities
5422577,DEKKO WINDOW SYSTEMS LTD,Place,Growth,Gas,,07/07/2021,600.03,370000,Utilities
5422579,DEKKO WINDOW SYSTEMS LTD,Place,Growth,Gas,,07/07/2021,732.18,370000,Utilities
5422608,FORENSIC TESTING SERVICE LTD,Childrens Services,Children's Services,Professional Medical Services,,07/07/2021,900.3,180000,Environmental Services
5425768,ABLE CARE AND SUPPORT SERVICES LTD,Adult Social Care,Adults,Homecare Fees,,07/07/2021,12486.04,321000,Social Community Care Supplies & Services - Adult
5422584,Oasis Adolescent Services,Childrens Services,Children's Services,Childrens Homes Outside Local Authority Fees,,07/07/2021,21428.7,-999999,Unclassifiable
5422585,Oasis Adolescent Services,Childrens Services,Children's Services,Childrens Homes Outside Local Authority Fees,,07/07/2021,2800,-999999,Unclassifiable
5424896,WIGAN MBC,Education,Children's Services,Other Local Authorities Fees,,07/07/2021,1791.67,UNCLASS,Unclassifiable
5423845,CREATIVE SUPPORT LTD,Adult Social Care,Adults,Independent Sector Care Fees,,07/07/2021,84528.09,321000,Social Community Care Supplies & Services - Adult
5422627,BARNARDO'S,Childrens Services,Children's Services,Foster Carer Agency Fees,,07/07/2021,3723.14,-999999,Unclassifiable
5425954,GROSVENOR MEDICAL CENTRE,Population Health,Population Health,Local Enhanced Services,,07/07/2021,619.7,310000,Healthcare
5424419,JACKSON & TAYLOR LTD,Housing,Director of Place,Mandatory Adaptations Grant (DFG),,07/07/2021,4292.2,390000,"Works - Construction, Repair & Maintenance"
5422645,BEDSPACE RESOURCE LTD,Childrens Services,Children's Services,Living With Formal Support,,07/07/2021,500,250000,Housing Management
5422648,ASKEWS  AND HOLTS LIBRARY SERVICES LTD,Operations and Neighbourhoods,Operations and Neighbourhoods,Purchase Books,,07/07/2021,931.14,170000,Education
5422644,VALE  ENGINEERING(YORK)LTD,Operations and Neighbourhoods,Operations and Neighbourhoods,Professional Weedspraying Services,,07/07/2021,810,-999999,Unclassifiable
5422641,Sight and Sound Technology LTD,GMPF (FX),GMPF (FX),Computer Hardware Maintenance Costs,,07/07/2021,970,-999999,Unclassifiable
5425075,ISW CSC Limited,Childrens Services,Children's Services,Living With Formal Support,,07/07/2021,2680,260000,Human Resources
5425075,ISW CSC Limited,Childrens Services,Children's Services,Semi independent - Weekly Living Allowances,,07/07/2021,117.8,260000,Human Resources
5425974,NSL LIMITED,Operations and Neighbourhoods,Operations and Neighbourhoods,NSL Fees,,07/07/2021,50484.03,350000,Street & Traffic Management
5422559,Nurtured Future Living Ltd,Childrens Services,Children's Services,Childrens Homes Outside Local Authority Fees,,07/07/2021,12000,322003,Social Community Care Supplies & Services - Children
5425159,Positive Care Solutions Ltd,Childrens Services,Children's Services,Childrens Homes Outside Local Authority Fees,,07/07/2021,7300,261000,Human Resources
5425273,Wellbeing Property Solutions Ltd,Childrens Services,Children's Services,Childrens Homes Outside Local Authority Fees,,07/07/2021,700,261000,Human Resources
5422550,Three Angels Healthcare,Adult Social Care,Adults,Homecare Fees,,07/07/2021,1761.5,-999999,Unclassifiable
5422548,Three Angels Healthcare,Adult Social Care,Adults,Homecare Fees,,07/07/2021,1761.5,-999999,Unclassifiable
5422546,Three Angels Healthcare,Adult Social Care,Adults,Homecare Fees,,07/07/2021,1761.5,-999999,Unclassifiable
5422551,Three Angels Healthcare,Adult Social Care,Adults,Homecare Fees,,07/07/2021,1761.5,-999999,Unclassifiable
5422545,GREENLEAF HEALTH & SOCIAL CARE,Adult Social Care,Adults,Homecare Fees,,07/07/2021,3931.84,250000,Housing Management
5422525,Redacted,Childrens Services,Children's Services,Living With Formal Support,,07/07/2021,8485.71,-999999,Unclassifiable
5422528,Redacted,Childrens Services,Children's Services,Living With Formal Support,,07/07/2021,5485.71,-999999,Unclassifiable
5422526,Redacted,Childrens Services,Children's Services,Living With Formal Support,,07/07/2021,5485.71,-999999,Unclassifiable
5422527,Redacted,Childrens Services,Children's Services,Living With Formal Support,,07/07/2021,5485.71,-999999,Unclassifiable
5422527,Redacted,Childrens Services,Children's Services,Semi independent - Weekly Living Allowances,,07/07/2021,253.71,-999999,Unclassifiable
5422542,Pennine Medical Supplies Ltd T/A Pennine Workwear,Operations and Neighbourhoods,Operations and Neighbourhoods,Protective Clothing,,07/07/2021,1366.6,MEDICAL,Medical
5422537,Zeno Ltd,Adult Social Care,Adults,Homecare Fees,,07/07/2021,10256.66,310000,Healthcare
5425071,ISW CSC Limited,Childrens Services,Children's Services,Living With Formal Support,,07/07/2021,1530,260000,Human Resources
5425082,ISW CSC Limited,Childrens Services,Children's Services,Living With Formal Support,,07/07/2021,1960,260000,Human Resources
5425082,ISW CSC Limited,Childrens Services,Children's Services,Semi independent - Weekly Living Allowances,,07/07/2021,117.8,260000,Human Resources
5425083,ISW CSC Limited,Childrens Services,Children's Services,Living With Formal Support,,07/07/2021,2320,260000,Human Resources
5425083,ISW CSC Limited,Childrens Services,Children's Services,Semi independent - Weekly Living Allowances,,07/07/2021,117.8,260000,Human Resources
5425069,ISW CSC Limited,Childrens Services,Children's Services,Living With Formal Support,,07/07/2021,2320,260000,Human Resources
5425069,ISW CSC Limited,Childrens Services,Children's Services,Semi independent - Weekly Living Allowances,,07/07/2021,117.8,260000,Human Resources
5426139,AD HOC CHAPS PAYMENT,Multiple Heads of Service,Multiple Strategic Directorates,Debits Superann Local Govt,,07/07/2021,535935.91,400002,Chaps Payments
5426139,AD HOC CHAPS PAYMENT,(blank),(blank),Debits Superann Local Govt,,07/07/2021,1346.19,400002,Chaps Payments
5426141,Diversity Matters North West,Contingency,Contingency,COVID-19 Infection Control Fund,,07/07/2021,3453.14,190000,Facilities & Management Services
5426152,The Anthony Seddon Fund,Contingency,Contingency,COVID-19 Infection Control Fund,,07/07/2021,1726.57,201799,Financial Services
5426145,Redacted,Contingency,Contingency,COVID-19 Infection Control Fund,,07/07/2021,19040.54,170000,Education
5426155,COMFORT CALL LIMITED,Contingency,Contingency,COVID-19 Infection Control Fund,,07/07/2021,32896.34,310000,Healthcare
5426151,ABLE CARE AND SUPPORT SERVICES LTD,Contingency,Contingency,COVID-19 Infection Control Fund,,07/07/2021,20850.21,321000,Social Community Care Supplies & Services - Adult
5426144,Optima Health and Social Care Ltd,Contingency,Contingency,COVID-19 Infection Control Fund,,07/07/2021,1098.99,UNCLASS,Unclassifiable
5426153,CARELINE HOMECARE LTD,Contingency,Contingency,COVID-19 Infection Control Fund,,07/07/2021,35406.89,321000,Social Community Care Supplies & Services - Adult
5426143,"TAMESIDE, OLDHAM AND GLOSSOP MIND",Contingency,Contingency,COVID-19 Infection Control Fund,,07/07/2021,5755.23,321000,Social Community Care Supplies & Services - Adult
5426148,AD HOC CHAPS PAYMENT,Operations and Neighbourhoods,Operations and Neighbourhoods,Other Accommodation Related Costs,,07/07/2021,790,400002,Chaps Payments
5426150,AD HOC CHAPS PAYMENT,Operations and Neighbourhoods,Operations and Neighbourhoods,Other Accommodation Related Costs,,07/07/2021,790,400002,Chaps Payments
5425074,ISW CSC Limited,Childrens Services,Children's Services,Living With Formal Support,,07/07/2021,1960,260000,Human Resources
5425063,ISW CSC Limited,Childrens Services,Children's Services,Living With Formal Support,,07/07/2021,2500,260000,Human Resources
5425073,ISW CSC Limited,Childrens Services,Children's Services,Living With Formal Support,,07/07/2021,2500,260000,Human Resources
5425084,ISW CSC Limited,Childrens Services,Children's Services,Living With Formal Support,,07/07/2021,828.56,260000,Human Resources
5425079,ISW CSC Limited,Childrens Services,Children's Services,Living With Formal Support,,07/07/2021,1380,260000,Human Resources
5425067,ISW CSC Limited,Childrens Services,Children's Services,Living With Formal Support,,07/07/2021,2500,260000,Human Resources
5425067,ISW CSC Limited,Childrens Services,Children's Services,Semi independent - Weekly Living Allowances,,07/07/2021,117.8,260000,Human Resources
5425062,ISW CSC Limited,Childrens Services,Children's Services,Living With Formal Support,,07/07/2021,2140,260000,Human Resources
5425064,ISW CSC Limited,Childrens Services,Children's Services,Living With Formal Support,,07/07/2021,2140,260000,Human Resources
5425070,ISW CSC Limited,Childrens Services,Children's Services,Living With Formal Support,,07/07/2021,1700,260000,Human Resources
5425060,ISW CSC Limited,Childrens Services,Children's Services,Living With Formal Support,,07/07/2021,1120,260000,Human Resources
5426142,Extrahand Care Services Ltd,Contingency,Contingency,COVID-19 Infection Control Fund,,07/07/2021,1318.78,321000,Social Community Care Supplies & Services - Adult
5422621,MERIDIAN HEALTH CARE LTD TAS GUIDE LANE,Contingency,Contingency,Nursing Home Long Stay Fees,,07/07/2021,10125.26,321000,Social Community Care Supplies & Services - Adult
5422618,YASHWIN CONSULTANCY LIMITED,Adult Social Care,Adults,Professional Medical Services,,07/07/2021,5017,310000,Healthcare
5422558,FOSTERING SOLUTIONS LTD,Childrens Services,Children's Services,Foster Carer Agency Fees,,07/07/2021,2829.77,321000,Social Community Care Supplies & Services - Adult
5422549,FOSTERING SOLUTIONS LTD,Childrens Services,Children's Services,Foster Carer Agency Fees,,07/07/2021,2890.76,321000,Social Community Care Supplies & Services - Adult
5422573,Tynetec a group brand of Legrand Electric Ltd,Adult Social Care,Adults,IT Equipment,,07/07/2021,3976.5,UNCLASS,Unclassifiable
5422543,FOSTERING SOLUTIONS LTD,Childrens Services,Children's Services,Foster Carer Agency Fees,,07/07/2021,3191.53,321000,Social Community Care Supplies & Services - Adult
5422534,FOSTERING SOLUTIONS LTD,Childrens Services,Children's Services,Foster Carer Agency Fees,,07/07/2021,3379.25,321000,Social Community Care Supplies & Services - Adult
5422540,FOSTERING SOLUTIONS LTD,Childrens Services,Children's Services,Foster Carer Agency Fees,,07/07/2021,3230.93,321000,Social Community Care Supplies & Services - Adult
5422554,FOSTERING SOLUTIONS LTD,Childrens Services,Children's Services,Foster Carer Agency Fees,,07/07/2021,3236.75,321000,Social Community Care Supplies & Services - Adult
5422552,FOSTERING SOLUTIONS LTD,Childrens Services,Children's Services,Foster Carer Agency Fees,,07/07/2021,2890.76,321000,Social Community Care Supplies & Services - Adult
5422538,FOSTERING SOLUTIONS LTD,Childrens Services,Children's Services,Foster Carer Agency Fees,,07/07/2021,3414.9,321000,Social Community Care Supplies & Services - Adult
5422547,FOSTERING SOLUTIONS LTD,Childrens Services,Children's Services,Foster Carer Agency Fees,,07/07/2021,3195.99,321000,Social Community Care Supplies & Services - Adult
5422557,FOSTERING SOLUTIONS LTD,Childrens Services,Children's Services,Foster Carer Agency Fees,,07/07/2021,2829.77,321000,Social Community Care Supplies & Services - Adult
5422533,FOSTERING SOLUTIONS LTD,Childrens Services,Children's Services,Foster Carer Agency Fees,,07/07/2021,3042.9,321000,Social Community Care Supplies & Services - Adult
5422562,TRANSPORT FOR GREATER MANCHESTER,(blank),(blank),Engineers -External,,07/07/2021,1388.55,360000,Public Transport
5422564,ZZ DUP HAS TECHNOLOGY LTD,Adult Social Care,Adults,Computer Software Maintenance Costs,,07/07/2021,2529.36,UNCLASS,Unclassifiable
5422535,FOSTERING SOLUTIONS LTD,Childrens Services,Children's Services,Foster Carer Agency Fees,,07/07/2021,3414.9,321000,Social Community Care Supplies & Services - Adult
5422628,POSITIVE STEPS OLDHAM,Place,Growth,Professional Services,,07/07/2021,36986.3,261400,Human Resources
5422631,The Pathways Group Ltd,Childrens Services,Children's Services,Living With Formal Support,,07/07/2021,3905.33,321000,Social Community Care Supplies & Services - Adult
5422576,Tynetec a group brand of Legrand Electric Ltd,Adult Social Care,Adults,IT Equipment,,07/07/2021,1629.6,UNCLASS,Unclassifiable
5422615,MERIDIAN HEALTH CARE LTD TAS GUIDE LANE,Contingency,Contingency,Nursing Home Long Stay Fees,,07/07/2021,3544.76,321000,Social Community Care Supplies & Services - Adult
5424044,CREATIVE SUPPORT LTD,Adult Social Care,Adults,Homecare Fees,,08/07/2021,159940.84,321000,Social Community Care Supplies & Services - Adult
5424033,CREATIVE SUPPORT LTD,Adult Social Care,Adults,Independent Sector Care Fees,,08/07/2021,45468,321000,Social Community Care Supplies & Services - Adult
5422752,EQUIFAX LTD,Hosted Services,Hosted Services,Professional Services,,08/07/2021,1164.72,200000,Financial Services
3250820,ARNOLD PLANT HIRE LTD,Operations and Neighbourhoods,Operations and Neighbourhoods,Additional Hire,,08/07/2021,1506.75,UNCLASS,Unclassifiable
3250820,BURNT TREE GROUP LIMITED,Operations and Neighbourhoods,Operations and Neighbourhoods,Additional Hire,,08/07/2021,4592.01,380000,Vehicle Management
3250820,BURNT TREE GROUP LIMITED,Operations and Neighbourhoods,Operations and Neighbourhoods,Replacement Hire,,08/07/2021,1102.2,380000,Vehicle Management
3250820,DENNIS EAGLE LTD,Transport,Director of Place,Debits Goods Received,,08/07/2021,2702.36,380000,Vehicle Management
3250820,DENNIS EAGLE LTD,Operations and Neighbourhoods,Operations and Neighbourhoods,General Materials,,08/07/2021,2160.78,380000,Vehicle Management
3250820,DENNIS EAGLE LTD,Operations and Neighbourhoods,Operations and Neighbourhoods,Sub-contractor Services,,08/07/2021,181.25,380000,Vehicle Management
3250820,G B OILS TA CARLTON FUELS,Transport,Director of Place,Diesel Fuel,,08/07/2021,18739.8,380000,Vehicle Management
3250820,GUNN JCB LTD,Operations and Neighbourhoods,Operations and Neighbourhoods,Sub-contractor Services,,08/07/2021,760,380000,Vehicle Management
3250820,A & J MOTORSPARES,Transport,Director of Place,Debits Goods Received,,08/07/2021,1289.1,380000,Vehicle Management
3250820,A & J MOTORSPARES,Operations and Neighbourhoods,Operations and Neighbourhoods,General Equipment Purchase,,08/07/2021,22,380000,Vehicle Management
3250820,A & J MOTORSPARES,Operations and Neighbourhoods,Operations and Neighbourhoods,General Materials,,08/07/2021,491.13,380000,Vehicle Management
3250820,Teletrac Navman UK LTD (in corporating Navman Wireless UK LTD),Operations and Neighbourhoods,Operations and Neighbourhoods,General Equipment Repair & Maintenance,,08/07/2021,5385.33,360000,Public Transport
3250820,LEEDS COMMERCIAL LTD T/A LC VEHICLE HIRE,Operations and Neighbourhoods,Operations and Neighbourhoods,Additional Hire,,08/07/2021,4290,380000,Vehicle Management
3250820,RIVERSIDE TRUCK RENTAL LIMITED,Operations and Neighbourhoods,Operations and Neighbourhoods,Additional Hire,,08/07/2021,7876,380000,Vehicle Management
3250820,JDS TRUCKS LIMITED,Transport,Director of Place,Debits Goods Received,,08/07/2021,1011.37,381000,Vehicle Management
3250820,GARIC LTD,Operations and Neighbourhoods,Operations and Neighbourhoods,Additional Hire,,08/07/2021,2675.2,-999999,Unclassifiable
3250820,WHALE TANKERS LTD,Operations and Neighbourhoods,Operations and Neighbourhoods,Sub-contractor Services,,08/07/2021,924.85,380000,Vehicle Management
3250820,RRG GROUP  LTD,Operations and Neighbourhoods,Operations and Neighbourhoods,General Materials,,08/07/2021,1423.05,380000,Vehicle Management
3250820,RRG GROUP  LTD,Operations and Neighbourhoods,Operations and Neighbourhoods,Sub-contractor Services,,08/07/2021,1939.38,380000,Vehicle Management
3250820,Crescent Motors Dukinfield Ltd,Operations and Neighbourhoods,Operations and Neighbourhoods,Sub-contractor Services,,08/07/2021,1362.49,381400,Vehicle Management
3250820,WASTE PARTS UK LTD,Transport,Director of Place,Debits Goods Received,,08/07/2021,1954,182200,Unclassifiable
3250820,A.R.B. SALES LTD,Operations and Neighbourhoods,Operations and Neighbourhoods,General Equipment Purchase,,08/07/2021,918,390000,"Works - Construction, Repair & Maintenance"
3250820,AIRMATIC COMPRESSORS LIMITED,Operations and Neighbourhoods,Operations and Neighbourhoods,General Equipment Repair & Maintenance,,08/07/2021,837.8,180000,Environmental Services
5422804,PROGRESSIVE CARE LTD,Childrens Services,Children's Services,Childrens Homes Outside Local Authority Fees,,08/07/2021,764.29,321000,Social Community Care Supplies & Services - Adult
5424039,CREATIVE SUPPORT LTD,Adult Social Care,Adults,Homecare Fees,,08/07/2021,180926.35,321000,Social Community Care Supplies & Services - Adult
5422729,TEACHING PERSONNEL LTD,Individual Schools Budget,Children's Services,Agency Staff,,08/07/2021,607.48,260000,Human Resources
5425005,TAMESIDE SPORTS TRUST,Individual Schools Budget,Children's Services,"Activity (Materials, Trips)",,08/07/2021,1908,290000,Arts & Leisure Services
5422728,CROMWELL POLYTHENE LTD.,Operations and Neighbourhoods,Operations and Neighbourhoods,Purchase Plastic Sacks,,08/07/2021,5166,-999999,Unclassifiable
5422796,M-R-S COMMUNICATIONS LTD,Operations and Neighbourhoods,Operations and Neighbourhoods,Security Services,,08/07/2021,2080,270000,Information Communication Technology
5424625,STOCKPORT MBC,Place,Growth,Agency Staff,,08/07/2021,5859,321100,Social Community Care Supplies & Services - Children
5422792,Exclusec Security Solutions Ltd,Operations and Neighbourhoods,Operations and Neighbourhoods,Security Services,,08/07/2021,22176,-999999,Unclassifiable
5422746,Next Stage 'A Way Forward' Youth Development LTD,Childrens Services,Children's Services,Living With Formal Support,,08/07/2021,4805,321100,Social Community Care Supplies & Services - Children
5422790,Next Stage 'A Way Forward' Youth Development LTD,Childrens Services,Children's Services,Living With Formal Support,,08/07/2021,775,321100,Social Community Care Supplies & Services - Children
5426065,Oxygen Finance Limited,People and Workforce Development,Governance,Professional Services,,08/07/2021,5372.15,200000,Financial Services
5422763,Redacted,Operations and Neighbourhoods,Operations and Neighbourhoods,Professional Entertainment Services,,08/07/2021,1200,290000,Arts & Leisure Services
5424117,MEDACS HEALTHCARE,Adult Social Care,Adults,Homecare Fees,,08/07/2021,19394.09,150000,Consultancy
5424118,MEDACS HEALTHCARE,Adult Social Care,Adults,Homecare Fees,,08/07/2021,19300.18,150000,Consultancy
5424720,INSPIREDSPACES TAMESIDE LTD,Place,Growth,Facilities Management Services,,08/07/2021,346246.94,390000,"Works - Construction, Repair & Maintenance"
5424720,INSPIREDSPACES TAMESIDE LTD,Place,Growth,Fees,,08/07/2021,2769.98,390000,"Works - Construction, Repair & Maintenance"
5424639,INSPIREDSPACES TAMESIDE LTD,Asset & Investment Partnership Management,Growth,Utilities,,08/07/2021,4702.78,390000,"Works - Construction, Repair & Maintenance"
5424127,Gallagher Bassett International Ltd,Multiple Heads of Service,Multiple Strategic Directorates,Employers Liability Insurance Claims,,08/07/2021,260,-999999,Unclassifiable
5424127,Gallagher Bassett International Ltd,Multiple Heads of Service,Multiple Strategic Directorates,Public Liability Insurance Claims,,08/07/2021,5269.27,-999999,Unclassifiable
5424127,Gallagher Bassett International Ltd,Multiple Heads of Service,Multiple Strategic Directorates,Transport Insurance Claims,,08/07/2021,10738.22,-999999,Unclassifiable
5424127,Gallagher Bassett International Ltd,Finance,Finance & IT,Transport Insurance,,08/07/2021,222.11,-999999,Unclassifiable
5422711,Brook,Population Health,Population Health,Professional Services,,08/07/2021,937.4,-999999,Unclassifiable
5426071,Positive Care Solutions Ltd,Childrens Services,Children's Services,Childrens Homes Outside Local Authority Fees,,08/07/2021,8700,261000,Human Resources
5425161,Positive Care Solutions Ltd,Childrens Services,Children's Services,Childrens Homes Outside Local Authority Fees,,08/07/2021,8700,261000,Human Resources
5426068,Positive Care Solutions Ltd,Childrens Services,Children's Services,Childrens Homes Outside Local Authority Fees,,08/07/2021,7300,261000,Human Resources
5426083,Wellbeing Property Solutions Ltd,Childrens Services,Children's Services,Childrens Homes Outside Local Authority Fees,,08/07/2021,700,261000,Human Resources
5426072,Wellbeing Property Solutions Ltd,Childrens Services,Children's Services,Childrens Homes Outside Local Authority Fees,,08/07/2021,700,261000,Human Resources
5425274,Wellbeing Property Solutions Ltd,Childrens Services,Children's Services,Childrens Homes Outside Local Authority Fees,,08/07/2021,700,261000,Human Resources
5422703,Engage Support LTD,Childrens Services,Children's Services,Living With Formal Support,,08/07/2021,9180,-999999,Unclassifiable
5426030,Sky High Achievers Ashton,Childrens Services,Children's Services,Nursery Services,,08/07/2021,658.2,321100,Social Community Care Supplies & Services - Children
5422697,Newsquest Ltd T/A LOCALiQ,Childrens Services,Children's Services,"Marketing, Publicity and Recruitment",,08/07/2021,1750,192400,Facilities & Management Services
5422694,Digital Gaps (Public Sector) Limited,Hosted Services,Hosted Services,Professional Consultancy Services,,08/07/2021,2925,-999999,Unclassifiable
5422691,ihasco ltd,Individual Schools Budget,Children's Services,Training Course Costs,,08/07/2021,750,261500,Human Resources
5422670,iCare Solutions,Adult Social Care,Adults,Homecare Fees,,08/07/2021,12133.69,310000,Healthcare
5422676,iCare Solutions,Adult Social Care,Adults,Homecare Fees,,08/07/2021,12995.33,310000,Healthcare
5422675,iCare Solutions,Adult Social Care,Adults,Homecare Fees,,08/07/2021,12791.36,310000,Healthcare
5425068,ISW CSC Limited,Childrens Services,Children's Services,Living With Formal Support,,08/07/2021,2320,260000,Human Resources
5425068,ISW CSC Limited,Childrens Services,Children's Services,Semi independent - Weekly Living Allowances,,08/07/2021,117.8,260000,Human Resources
5425078,ISW CSC Limited,Childrens Services,Children's Services,Living With Formal Support,,08/07/2021,2420,260000,Human Resources
5425078,ISW CSC Limited,Childrens Services,Children's Services,Semi independent - Weekly Living Allowances,,08/07/2021,117.8,260000,Human Resources
5425077,ISW CSC Limited,Childrens Services,Children's Services,Living With Formal Support,,08/07/2021,2204,260000,Human Resources
5425077,ISW CSC Limited,Childrens Services,Children's Services,Semi independent - Weekly Living Allowances,,08/07/2021,117.8,260000,Human Resources
5422663,Hillgate Health Group Limited,Childrens Services,Children's Services,Living With Formal Support,,08/07/2021,2159.36,-999999,Unclassifiable
5422663,Hillgate Health Group Limited,Childrens Services,Children's Services,Semi independent - Weekly Living Allowances,,08/07/2021,59.2,-999999,Unclassifiable
5422662,Hillgate Health Group Limited,Childrens Services,Children's Services,Living With Formal Support,,08/07/2021,2159.36,-999999,Unclassifiable
5422662,Hillgate Health Group Limited,Childrens Services,Children's Services,Semi independent - Weekly Living Allowances,,08/07/2021,59.2,-999999,Unclassifiable
5422661,Hillgate Health Group Limited,Childrens Services,Children's Services,Living With Formal Support,,08/07/2021,2159.36,-999999,Unclassifiable
5422661,Hillgate Health Group Limited,Childrens Services,Children's Services,Semi independent - Weekly Living Allowances,,08/07/2021,59.2,-999999,Unclassifiable
5422659,Hillgate Health Group Limited,Childrens Services,Children's Services,Living With Formal Support,,08/07/2021,2159.36,-999999,Unclassifiable
5422659,Hillgate Health Group Limited,Childrens Services,Children's Services,Semi independent - Weekly Living Allowances,,08/07/2021,59.2,-999999,Unclassifiable
5426031,Sky High Achievers Ashton,Childrens Services,Children's Services,Nursery Services,,08/07/2021,658.2,321100,Social Community Care Supplies & Services - Children
5426028,Sky High Achievers Ashton,Childrens Services,Children's Services,Nursery Services,,08/07/2021,658.2,321100,Social Community Care Supplies & Services - Children
5422713,SICC Productions,(blank),(blank),Professional Entertainment Services,,08/07/2021,4995,UNCLASS,Unclassifiable
5423264,Redacted,(blank),(blank),Professional Entertainment Services,,08/07/2021,4995,UNCLASS,Unclassifiable
5424937,STEP AHEAD RESOURCE SERVICES,Adult Social Care,Adults,Homecare Fees,,08/07/2021,1226.16,321000,Social Community Care Supplies & Services - Adult
5422775,FAMILY CARE FOSTERING LTD,Childrens Services,Children's Services,Foster Carer Agency Fees,,08/07/2021,4594.51,321100,Social Community Care Supplies & Services - Children
5422776,FAMILY CARE FOSTERING LTD,Childrens Services,Children's Services,Foster Carer Agency Fees,,08/07/2021,3491.89,321100,Social Community Care Supplies & Services - Children
5425978,FAMILY CARE FOSTERING LTD,Childrens Services,Children's Services,Foster Carer Agency Fees,,08/07/2021,3379.24,321100,Social Community Care Supplies & Services - Children
5422772,CITY LIFT SERVICES (NW) LTD,Adult Social Care,Adults,General Equipment Repair & Maintenance,,08/07/2021,2180,390000,"Works - Construction, Repair & Maintenance"
5422725,Reach Publishing Services Limited,Childrens Services,Children's Services,"Marketing, Publicity and Recruitment",,08/07/2021,1282.3,908001,Public Bodies
5422723,SOLON SECURITY LTD,Operations and Neighbourhoods,Operations and Neighbourhoods,Security Equipment,,08/07/2021,1885,321100,Social Community Care Supplies & Services - Children
5424930,STEP AHEAD RESOURCE SERVICES,Adult Social Care,Adults,Homecare Fees,,08/07/2021,1553.14,321000,Social Community Care Supplies & Services - Adult
5424929,STEP AHEAD RESOURCE SERVICES,Adult Social Care,Adults,Homecare Fees,,08/07/2021,1553.14,321000,Social Community Care Supplies & Services - Adult
5422630,FAMILY CARE FOSTERING LTD,Childrens Services,Children's Services,Foster Carer Agency Fees,,08/07/2021,4446.3,321100,Social Community Care Supplies & Services - Children
5424916,STEP AHEAD RESOURCE SERVICES,Adult Social Care,Adults,Homecare Fees,,08/07/2021,1553.14,321000,Social Community Care Supplies & Services - Adult
5424947,STEP AHEAD RESOURCE SERVICES,Adult Social Care,Adults,Homecare Fees,,08/07/2021,1226.16,321000,Social Community Care Supplies & Services - Adult
5424944,STEP AHEAD RESOURCE SERVICES,Adult Social Care,Adults,Homecare Fees,,08/07/2021,1226.16,321000,Social Community Care Supplies & Services - Adult
5424941,STEP AHEAD RESOURCE SERVICES,Adult Social Care,Adults,Homecare Fees,,08/07/2021,1226.16,321000,Social Community Care Supplies & Services - Adult
5424939,STEP AHEAD RESOURCE SERVICES,Adult Social Care,Adults,Homecare Fees,,08/07/2021,1226.16,321000,Social Community Care Supplies & Services - Adult
5422715,Strategy for Change,Hosted Services,Hosted Services,Indirect Employee Pay Expenditure,,08/07/2021,2400,UNCLASS,Unclassifiable
5422716,Claire Tymon Consultancy,(blank),(blank),Professional Entertainment Services,,08/07/2021,4995,UNCLASS,Unclassifiable
5425081,ISW CSC Limited,Childrens Services,Children's Services,Living With Formal Support,,08/07/2021,1980,260000,Human Resources
5422698,SAFEHOUSES NORTH LIMITED,Childrens Services,Children's Services,Foster Carer Agency Fees,,08/07/2021,3477.17,321100,Social Community Care Supplies & Services - Children
5422696,SAFEHOUSES NORTH LIMITED,Childrens Services,Children's Services,Foster Carer Agency Fees,,08/07/2021,3456.64,321100,Social Community Care Supplies & Services - Children
5424917,STEP AHEAD RESOURCE SERVICES,Adult Social Care,Adults,Homecare Fees,,08/07/2021,1553.14,321000,Social Community Care Supplies & Services - Adult
5422702,Curated Place,(blank),(blank),Professional Entertainment Services,,08/07/2021,4995,-999999,Unclassifiable
5422677,Randstad Public Services Limited,Individual Schools Budget,Children's Services,Agency Staff,,08/07/2021,517.5,170000,Education
5426036,CYCLESCHEME LTD,(blank),(blank),Debits,,08/07/2021,4200,-999999,Unclassifiable
5424932,STEP AHEAD RESOURCE SERVICES,Adult Social Care,Adults,Homecare Fees,,08/07/2021,1226.16,321000,Social Community Care Supplies & Services - Adult
5424936,STEP AHEAD RESOURCE SERVICES,Adult Social Care,Adults,Homecare Fees,,08/07/2021,1226.16,321000,Social Community Care Supplies & Services - Adult
5424931,STEP AHEAD RESOURCE SERVICES,Adult Social Care,Adults,Homecare Fees,,08/07/2021,1226.16,321000,Social Community Care Supplies & Services - Adult
5425383,TAMESIDE SPORTS TRUST,Adult Social Care,Adults,Professional Services,,09/07/2021,1060,290000,Arts & Leisure Services
5425343,TAMESIDE SPORTS TRUST,Adult Social Care,Adults,Professional Services,,09/07/2021,1391.25,290000,Arts & Leisure Services
5425402,TAMESIDE SPORTS TRUST,Adult Social Care,Adults,Professional Services,,09/07/2021,1391.25,290000,Arts & Leisure Services
5425417,TAMESIDE SPORTS TRUST,Childrens Services,Children's Services,Community Based Activities,,09/07/2021,615.6,290000,Arts & Leisure Services
5425367,TAMESIDE SPORTS TRUST,Adult Social Care,Adults,Professional Services,,09/07/2021,530,290000,Arts & Leisure Services
5423305,D.A. LANGUAGES LTD,(blank),(blank),Professional Services,,09/07/2021,1248,260000,Human Resources
5426340,Redacted,Childrens Services,Children's Services,Childrens Homes Outside Local Authority Fees,Redacted Supplier,09/07/2021,18600,321100,Social Community Care Supplies & Services - Children
5425587,J & R TAXIS LTD,Education,Children's Services,Transport Of Ola Pupils,,09/07/2021,1560,360000,Public Transport
5422955,SWIIS FOSTER CARE LTD,Childrens Services,Children's Services,Foster Carer Agency Fees,,09/07/2021,1694.98,321100,Social Community Care Supplies & Services - Children
5422958,SWIIS FOSTER CARE LTD,Childrens Services,Children's Services,Foster Carer Agency Fees,,09/07/2021,722.47,321100,Social Community Care Supplies & Services - Children
5422956,SWIIS FOSTER CARE LTD,Childrens Services,Children's Services,Foster Carer Agency Fees,,09/07/2021,760.48,321100,Social Community Care Supplies & Services - Children
5422941,SWIIS FOSTER CARE LTD,Childrens Services,Children's Services,Foster Carer Agency Fees,,09/07/2021,863.03,321100,Social Community Care Supplies & Services - Children
5422959,SWIIS FOSTER CARE LTD,Childrens Services,Children's Services,Foster Carer Agency Fees,,09/07/2021,863.03,321100,Social Community Care Supplies & Services - Children
5422968,SWIIS FOSTER CARE LTD,Childrens Services,Children's Services,Foster Carer Agency Fees,,09/07/2021,863.03,321100,Social Community Care Supplies & Services - Children
5422974,SWIIS FOSTER CARE LTD,Childrens Services,Children's Services,Foster Carer Agency Fees,,09/07/2021,863.03,321100,Social Community Care Supplies & Services - Children
5425412,TAMESIDE SPORTS TRUST,Childrens Services,Children's Services,Community Based Activities,,09/07/2021,39000,290000,Arts & Leisure Services
5425680,E PETCH PRINTERS LTD,Policy and Communications,Governance,Printing And Stationery,,09/07/2021,760,190000,Facilities & Management Services
5423269,SWIIS FOSTER CARE LTD,Childrens Services,Children's Services,Foster Carer Agency Fees,,09/07/2021,863.03,321100,Social Community Care Supplies & Services - Children
5422957,SWIIS FOSTER CARE LTD,Childrens Services,Children's Services,Foster Carer Agency Fees,,09/07/2021,711.76,321100,Social Community Care Supplies & Services - Children
5425404,TAMESIDE SPORTS TRUST,Childrens Services,Children's Services,Community Based Activities,,09/07/2021,615.6,290000,Arts & Leisure Services
5422952,Redacted,Childrens Services,Children's Services,Legal Fees,,09/07/2021,500,280000,Legal Services
5425631,ROYALE MINICOACHES,Education,Children's Services,Transport Of Pupils,,09/07/2021,2288,UNCLASS,Unclassifiable
5422950,Redacted,Childrens Services,Children's Services,Legal Fees,,09/07/2021,541.67,280000,Legal Services
5425373,Viva Minibus LTD,Education,Children's Services,Transport Of Pupils,,09/07/2021,1980,230000,Highway Equipment & Materials
5425375,Viva Minibus LTD,Education,Children's Services,Transport Of Pupils,,09/07/2021,1980,230000,Highway Equipment & Materials
5425378,Viva Minibus LTD,Education,Children's Services,Transport Of Pupils,,09/07/2021,2240,230000,Highway Equipment & Materials
5425382,Arrow Cabs LTD,Education,Children's Services,Transport Of Ola Pupils,,09/07/2021,3422.5,360000,Public Transport
5425389,Arrow Cabs LTD,Education,Children's Services,Transport Of Ola Pupils,,09/07/2021,3150,360000,Public Transport
5425729,Adlard Transport LTD,Education,Children's Services,Transport Of Pupils,,09/07/2021,2200,360000,Public Transport
5425316,Joes Travel LTD,Education,Children's Services,Transport Of Pupils,,09/07/2021,2227.5,360000,Public Transport
5425319,Joes Travel LTD,Education,Children's Services,Transport Of Ola Pupils,,09/07/2021,1440,360000,Public Transport
5425325,Joes Travel LTD,Education,Children's Services,Transport Of Post 16 Pupils,,09/07/2021,1120,360000,Public Transport
5425594,NMA Travel LTD,Education,Children's Services,Transport Of Pupils,,09/07/2021,2124,360000,Public Transport
5425592,NMA Travel LTD,Education,Children's Services,Transport Of Pupils,,09/07/2021,2232,360000,Public Transport
5423159,Redacted,Operations and Neighbourhoods,Operations and Neighbourhoods,Professional Entertainment Services,,09/07/2021,2550,-999999,Unclassifiable
5422931,Redacted,Childrens Services,Children's Services,Legal Fees,,09/07/2021,500,280000,Legal Services
5426500,CIPFA BUSINESS LIMITED,Finance,Finance & IT,Subscriptions,,09/07/2021,4570,200000,Financial Services
5423267,XMA LIMITED,Digital Tameside,Finance & IT,IT Equipment,,09/07/2021,551.85,270000,Information Communication Technology
5423237,MOSSCARE HOUSING LTD,Childrens Services,Children's Services,Living With Formal Support,,09/07/2021,725.44,321000,Social Community Care Supplies & Services - Adult
5423025,Redacted,Childrens Services,Children's Services,Legal Fees,,09/07/2021,700,-999999,Unclassifiable
5423028,Redacted,Childrens Services,Children's Services,Legal Fees,,09/07/2021,600,-999999,Unclassifiable
5423238,ADULLAM HOMES HOUSING ASSOC LTD,Operations and Neighbourhoods,Operations and Neighbourhoods,Supporting People Gross Contract,,09/07/2021,63250,321000,Social Community Care Supplies & Services - Adult
5423239,ADULLAM HOMES HOUSING ASSOC LTD,Operations and Neighbourhoods,Operations and Neighbourhoods,Supporting People Gross Contract,,09/07/2021,8000,321000,Social Community Care Supplies & Services - Adult
5423076,Redacted,Childrens Services,Children's Services,Legal Fees,,09/07/2021,1543.75,UNCLASS,Unclassifiable
5423079,Redacted,Childrens Services,Children's Services,Legal Fees,,09/07/2021,1500,280000,Legal Services
5423080,Redacted,Childrens Services,Children's Services,Legal Fees,,09/07/2021,600,280000,Legal Services
5423078,Redacted,Childrens Services,Children's Services,Legal Fees,,09/07/2021,850,280000,Legal Services
5425385,TAMESIDE SPORTS TRUST,Adult Social Care,Adults,Professional Services,,09/07/2021,1113,290000,Arts & Leisure Services
5425388,TAMESIDE SPORTS TRUST,Adult Social Care,Adults,Professional Services,,09/07/2021,1113,290000,Arts & Leisure Services
5425379,TAMESIDE SPORTS TRUST,Adult Social Care,Adults,Professional Services,,09/07/2021,795,290000,Arts & Leisure Services
5425396,TAMESIDE SPORTS TRUST,Adult Social Care,Adults,Professional Services,,09/07/2021,795,290000,Arts & Leisure Services
5425353,TAMESIDE SPORTS TRUST,Adult Social Care,Adults,Professional Services,,09/07/2021,1325,290000,Arts & Leisure Services
5425365,TAMESIDE SPORTS TRUST,Adult Social Care,Adults,Professional Services,,09/07/2021,1325,290000,Arts & Leisure Services
5425542,STAMFORD CARS UK LTD,Education,Children's Services,Transport Of Ola Pupils,,09/07/2021,1800,360000,Public Transport
5425482,STAMFORD CARS UK LTD,Education,Children's Services,Transport Of Pupils,,09/07/2021,1710,360000,Public Transport
5425491,STAMFORD CARS UK LTD,Education,Children's Services,Transport Of Pupils,,09/07/2021,1710,360000,Public Transport
5425492,STAMFORD CARS UK LTD,Education,Children's Services,Transport Of Pupils,,09/07/2021,1710,360000,Public Transport
5425519,STAMFORD CARS UK LTD,Education,Children's Services,Transport Of Pupils,,09/07/2021,1710,360000,Public Transport
5425532,STAMFORD CARS UK LTD,Education,Children's Services,Transport Of Pupils,,09/07/2021,1710,360000,Public Transport
5425536,STAMFORD CARS UK LTD,Education,Children's Services,Transport Of Pupils,,09/07/2021,1710,360000,Public Transport
5425557,STAMFORD CARS UK LTD,Education,Children's Services,Transport Of Pupils,,09/07/2021,1710,360000,Public Transport
5425480,STAMFORD CARS UK LTD,Education,Children's Services,Transport Of Ola Pupils,,09/07/2021,1620,360000,Public Transport
5425555,STAMFORD CARS UK LTD,Education,Children's Services,Transport Of Ola Pupils,,09/07/2021,1620,360000,Public Transport
5425559,STAMFORD CARS UK LTD,Operations and Neighbourhoods,Operations and Neighbourhoods,Transport Of Pupils,,09/07/2021,1620,360000,Public Transport
5425560,STAMFORD CARS UK LTD,Education,Children's Services,Transport Of Ola Pupils,,09/07/2021,1620,360000,Public Transport
5425545,STAMFORD CARS UK LTD,Education,Children's Services,Transport Of Ola Pupils,,09/07/2021,2970,360000,Public Transport
5425550,STAMFORD CARS UK LTD,Education,Children's Services,Transport Of Ola Pupils,,09/07/2021,2655,360000,Public Transport
5425579,STAMFORD CARS UK LTD,Operations and Neighbourhoods,Operations and Neighbourhoods,Hired Transport,,09/07/2021,561.25,360000,Public Transport
5425538,STAMFORD CARS UK LTD,Education,Children's Services,Transport Of Ola Pupils,,09/07/2021,1800,360000,Public Transport
5425483,STAMFORD CARS UK LTD,Education,Children's Services,Transport Of Pupils,,09/07/2021,1711,360000,Public Transport
5425574,STAMFORD CARS UK LTD,Operations and Neighbourhoods,Operations and Neighbourhoods,Hired Transport,,09/07/2021,1520,360000,Public Transport
5425505,STAMFORD CARS UK LTD,Education,Children's Services,Transport Of Post 16 Pupils,,09/07/2021,1065,360000,Public Transport
5425584,STAMFORD CARS UK LTD,Operations and Neighbourhoods,Operations and Neighbourhoods,Hired Transport,,09/07/2021,1440,360000,Public Transport
5425540,STAMFORD CARS UK LTD,Education,Children's Services,Transport Of Ola Pupils,,09/07/2021,1440,360000,Public Transport
5425547,STAMFORD CARS UK LTD,Education,Children's Services,Transport Of Pupils,,09/07/2021,1430,360000,Public Transport
5425581,STAMFORD CARS UK LTD,Operations and Neighbourhoods,Operations and Neighbourhoods,Hired Transport,,09/07/2021,765,360000,Public Transport
5425577,STAMFORD CARS UK LTD,Operations and Neighbourhoods,Operations and Neighbourhoods,Hired Transport,,09/07/2021,660,360000,Public Transport
5425531,STAMFORD CARS UK LTD,Education,Children's Services,Transport Of Ola Pupils,,09/07/2021,585,360000,Public Transport
5425571,STAMFORD CARS UK LTD,Operations and Neighbourhoods,Operations and Neighbourhoods,Hired Transport,,09/07/2021,585,360000,Public Transport
5425563,STAMFORD CARS UK LTD,Operations and Neighbourhoods,Operations and Neighbourhoods,Hired Transport,,09/07/2021,1305,360000,Public Transport
5425551,STAMFORD CARS UK LTD,Operations and Neighbourhoods,Operations and Neighbourhoods,Hired Transport,,09/07/2021,1175,360000,Public Transport
5425548,STAMFORD CARS UK LTD,Education,Children's Services,Transport Of Ola Pupils,,09/07/2021,2340,360000,Public Transport
5425511,STAMFORD CARS UK LTD,Education,Children's Services,Transport Of Ola Pupils,,09/07/2021,1170,360000,Public Transport
5425508,STAMFORD CARS UK LTD,Education,Children's Services,Transport Of Post 16 Pupils,,09/07/2021,1170,360000,Public Transport
5422954,Redacted,Childrens Services,Children's Services,Legal Fees,,09/07/2021,500,280000,Legal Services
5425479,STAMFORD CARS UK LTD,Education,Children's Services,Transport Of Ola Pupils,,09/07/2021,1840,360000,Public Transport
5425493,STAMFORD CARS UK LTD,Education,Children's Services,Transport Of Ola Pupils,,09/07/2021,1170,360000,Public Transport
5425497,STAMFORD CARS UK LTD,Education,Children's Services,Transport Of Pupils,,09/07/2021,900,360000,Public Transport
5423009,PHOENIX SOFTWARE LTD,Digital Tameside,Finance & IT,Computer Software,,09/07/2021,4192.5,270000,Information Communication Technology
5423444,HOPWOOD HALL COLLEGE,Education,Children's Services,Other Local Authorities Fees,,09/07/2021,3839,170000,Education
5423153,CHILD ACTION NORTHWEST,Adult Social Care,Adults,Professional Services,,09/07/2021,858.48,-999999,Unclassifiable
5423048,MEDLOCK VALE MEDICAL PRACTICE,Population Health,Population Health,Local Enhanced Services,,09/07/2021,699.6,310000,Healthcare
5422993,Redacted,Childrens Services,Children's Services,Legal Fees,,09/07/2021,850,321000,Social Community Care Supplies & Services - Adult
5422995,Redacted,Childrens Services,Children's Services,Legal Fees,,09/07/2021,600,321000,Social Community Care Supplies & Services - Adult
5423000,TAMESIDE ARTS LTD,Adult Social Care,Adults,Professional Services,,09/07/2021,3401.68,290000,Arts & Leisure Services
5423015,TAMESIDE ARTS LTD,Adult Social Care,Adults,Professional Services,,09/07/2021,3300.64,290000,Arts & Leisure Services
5425576,STAMFORD CARS UK LTD,Operations and Neighbourhoods,Operations and Neighbourhoods,Hired Transport,,09/07/2021,1980,360000,Public Transport
5425569,STAMFORD CARS UK LTD,Operations and Neighbourhoods,Operations and Neighbourhoods,Hired Transport,,09/07/2021,720,360000,Public Transport
5425572,STAMFORD CARS UK LTD,Operations and Neighbourhoods,Operations and Neighbourhoods,Transport Of Pupils,,09/07/2021,1050,360000,Public Transport
5425546,STAMFORD CARS UK LTD,Education,Children's Services,Transport Of Pupils,,09/07/2021,1040,360000,Public Transport
5425561,STAMFORD CARS UK LTD,Operations and Neighbourhoods,Operations and Neighbourhoods,Hired Transport,,09/07/2021,1210,360000,Public Transport
5423452,BEDSPACE RESOURCE LTD,Childrens Services,Children's Services,Living With Formal Support,,09/07/2021,500,250000,Housing Management
5425552,STAMFORD CARS UK LTD,Education,Children's Services,Transport Of Pupils,,09/07/2021,900,360000,Public Transport
5425573,STAMFORD CARS UK LTD,Operations and Neighbourhoods,Operations and Neighbourhoods,Hired Transport,,09/07/2021,616,360000,Public Transport
5425578,STAMFORD CARS UK LTD,Operations and Neighbourhoods,Operations and Neighbourhoods,Hired Transport,,09/07/2021,616.25,360000,Public Transport
5425527,STAMFORD CARS UK LTD,Education,Children's Services,Transport Of Pupils,,09/07/2021,855,360000,Public Transport
5425534,STAMFORD CARS UK LTD,Education,Children's Services,Transport Of Pupils,,09/07/2021,855,360000,Public Transport
5425501,STAMFORD CARS UK LTD,Education,Children's Services,Transport Of Pupils,,09/07/2021,1080,360000,Public Transport
5425523,STAMFORD CARS UK LTD,Education,Children's Services,Transport Of Pupils,,09/07/2021,1080,360000,Public Transport
5425478,STAMFORD CARS UK LTD,Education,Children's Services,Transport Of Ola Pupils,,09/07/2021,1395,360000,Public Transport
5425494,STAMFORD CARS UK LTD,Education,Children's Services,Transport Of Ola Pupils,,09/07/2021,1395,360000,Public Transport
5425515,STAMFORD CARS UK LTD,Education,Children's Services,Transport Of Post 16 Pupils,,09/07/2021,1395,360000,Public Transport
5425566,STAMFORD CARS UK LTD,Operations and Neighbourhoods,Operations and Neighbourhoods,Transport Of Pupils,,09/07/2021,1395,360000,Public Transport
5425554,STAMFORD CARS UK LTD,Education,Children's Services,Transport Of Pupils,,09/07/2021,1485,360000,Public Transport
5425481,STAMFORD CARS UK LTD,Education,Children's Services,Transport Of Pupils,,09/07/2021,2090,360000,Public Transport
5425495,STAMFORD CARS UK LTD,Education,Children's Services,Transport Of Ola Pupils,,09/07/2021,1845,360000,Public Transport
5425642,M J DELANEY & CO LTD,Operations and Neighbourhoods,Operations and Neighbourhoods,Painting Works,,09/07/2021,1400,390000,"Works - Construction, Repair & Maintenance"
5426425,ZZ-lower hey boarding kennels & cattery,Contingency,Contingency,COVID-19 Additional Restrictions Support - Discretionary,,09/07/2021,1550,UNCLASS,Unclassifiable
5422963,Redacted,Childrens Services,Children's Services,Legal Fees,,09/07/2021,1200,280000,Legal Services
5422970,Redacted,Childrens Services,Children's Services,Legal Fees,,09/07/2021,500,280000,Legal Services
5422971,Redacted,Childrens Services,Children's Services,Legal Fees,,09/07/2021,500,280000,Legal Services
5422973,Redacted,Childrens Services,Children's Services,Legal Fees,,09/07/2021,850,400000,Non 3rd Party spend  
5422976,Redacted,Childrens Services,Children's Services,Legal Fees,,09/07/2021,600,400000,Non 3rd Party spend  
5422979,Redacted,Childrens Services,Children's Services,Legal Fees,,09/07/2021,1625,400000,Non 3rd Party spend  
5425668,NHS Pensions,Population Health,Population Health,Professional Services,,09/07/2021,1338.29,-999999,Unclassifiable
5422986,Redacted,Childrens Services,Children's Services,Legal Fees,,09/07/2021,700,UNCLASS,Unclassifiable
5422989,Redacted,Childrens Services,Children's Services,Legal Fees,,09/07/2021,700,UNCLASS,Unclassifiable
5422991,QUAYS HOUSING LTD,Operations and Neighbourhoods,Operations and Neighbourhoods,Non-Authority Accommodation Rental,,09/07/2021,680.04,321060,Social Community Care Supplies & Services - Adult
5423020,Redacted,Childrens Services,Children's Services,Legal Fees,,09/07/2021,550,UNCLASS,Unclassifiable
5423139,Manchester CBT Ltd,Childrens Services,Children's Services,Professional Services,,09/07/2021,1320,UNCLASS,Unclassifiable
5426413,ZZ-Hair Industry,Contingency,Contingency,COVID-19 Additional Restrictions Support - Discretionary,,09/07/2021,1550,UNCLASS,Unclassifiable
5426419,ZZ-Bluebells,Contingency,Contingency,COVID-19 Additional Restrictions Support - Discretionary,,09/07/2021,1550,UNCLASS,Unclassifiable
5422969,Redacted,Childrens Services,Children's Services,Legal Fees,,09/07/2021,700,280000,Legal Services
5426447,Redacted,Contingency,Contingency,COVID-19 Additional Restrictions Support - Discretionary,,09/07/2021,1550,UNCLASS,Unclassifiable
5426432,ZZ-Banter Media Ltd,Contingency,Contingency,COVID-19 Additional Restrictions Support - Discretionary,,09/07/2021,1550,-999999,Unclassifiable
5426437,ZZ-Young Creative Limited,Contingency,Contingency,COVID-19 Additional Restrictions Support - Discretionary,,09/07/2021,1550,UNCLASS,Unclassifiable
5426367,The LTE Group,Education,Children's Services,Post 16 FE College Fees,,09/07/2021,44208.23,UNCLASS,Unclassifiable
5423143,CATHOLIC BLIND INSTITUTE,Education,Children's Services,Non-Maintained School Fees,,09/07/2021,9170,321100,Social Community Care Supplies & Services - Children
5423031,WF Education Group Limited t/a Gresswell,Operations and Neighbourhoods,Operations and Neighbourhoods,General Equipment Purchase,,09/07/2021,2350,170000,Education
5425663,GREENSCAPE,Adult Social Care,Adults,Professional Services,,09/07/2021,842,390000,"Works - Construction, Repair & Maintenance"
5425665,GREENSCAPE,Adult Social Care,Adults,Professional Services,,09/07/2021,842,390000,"Works - Construction, Repair & Maintenance"
5423034,TMP UK LTD,Place,Growth,"Marketing, Publicity and Recruitment",,09/07/2021,1522.6,260000,Human Resources
5423251,TRANSPORT FOR GREATER MANCHESTER,(blank),(blank),External  Consultants,,09/07/2021,627.5,360000,Public Transport
5425976,AUTISM INITIATIVES (UK),Adult Social Care,Adults,Professional Bailiff Services,,09/07/2021,927.88,321100,Social Community Care Supplies & Services - Children
5423272,AUTISM INITIATIVES (UK),Adult Social Care,Adults,Homecare Fees,,09/07/2021,2962.56,321100,Social Community Care Supplies & Services - Children
5423273,AUTISM INITIATIVES (UK),Adult Social Care,Adults,Homecare Fees,,09/07/2021,2962.56,321100,Social Community Care Supplies & Services - Children
5422967,Redacted,Childrens Services,Children's Services,Legal Fees,,09/07/2021,850,280000,Legal Services
5422908,Redacted,Childrens Services,Children's Services,Legal Fees,,09/07/2021,6200,280000,Legal Services
5425509,Redacted,Operations and Neighbourhoods,Operations and Neighbourhoods,Hired Transport,Business Payment,09/07/2021,1155,UNCLASS,Unclassifiable
5425510,Redacted,Operations and Neighbourhoods,Operations and Neighbourhoods,Hired Transport,Business Payment,09/07/2021,2451,UNCLASS,Unclassifiable
5422886,Pickering Psychology Services Limited,Childrens Services,Children's Services,Professional Child Services,,09/07/2021,831.36,280000,Legal Services
5422887,Redacted,Childrens Services,Children's Services,Legal Fees,,09/07/2021,500,-999999,Unclassifiable
5422890,Redacted,Childrens Services,Children's Services,Legal Fees,,09/07/2021,600,280000,Legal Services
5423318,Medgen Limited,Contingency,Contingency,Homecare Fees,,09/07/2021,836.56,260000,Human Resources
5422894,E4Law Limited trading as Lextox,Childrens Services,Children's Services,Professional Medical Services,,09/07/2021,503.5,280000,Legal Services
5422896,Redacted,Childrens Services,Children's Services,Legal Fees,,09/07/2021,850,280000,Legal Services
5422898,The Compost Bag Company Ltd,Operations and Neighbourhoods,Operations and Neighbourhoods,Purchase Plastic Sacks,,09/07/2021,6480,182014,Environmental Services
5422904,Redacted,Childrens Services,Children's Services,Legal Fees,,09/07/2021,1200,280000,Legal Services
5422907,Redacted,Childrens Services,Children's Services,Legal Fees,,09/07/2021,1000,280000,Legal Services
5422900,Redacted,Childrens Services,Children's Services,Legal Fees,,09/07/2021,1100,280000,Legal Services
5422965,Redacted,Childrens Services,Children's Services,Legal Fees,,09/07/2021,600,280000,Legal Services
5422902,Redacted,Childrens Services,Children's Services,Legal Fees,,09/07/2021,600,280000,Legal Services
5422913,Redacted,Childrens Services,Children's Services,Legal Fees,,09/07/2021,500,280000,Legal Services
5422916,Redacted,Childrens Services,Children's Services,Legal Fees,,09/07/2021,850,200000,Financial Services
5422918,Redacted,Childrens Services,Children's Services,Legal Fees,,09/07/2021,600,200000,Financial Services
5422920,Redacted,Childrens Services,Children's Services,Legal Fees,,09/07/2021,600,200000,Financial Services
5422942,YOUNG PEOPLE FIRST LIMITED,Childrens Services,Children's Services,Living With Formal Support,,09/07/2021,2730,321100,Social Community Care Supplies & Services - Children
5422940,YOUNG PEOPLE FIRST LIMITED,Childrens Services,Children's Services,Living With Formal Support,,09/07/2021,850,321100,Social Community Care Supplies & Services - Children
5423149,ROC Northwest Limited,Education,Children's Services,Independent School Fees,,09/07/2021,4166.85,321100,Social Community Care Supplies & Services - Children
5423148,ROC Northwest Limited,Education,Children's Services,Independent School Fees,,09/07/2021,5000.22,321100,Social Community Care Supplies & Services - Children
5422961,Redacted,Childrens Services,Children's Services,Legal Fees,,09/07/2021,500,280000,Legal Services
5422847,G2V Recruitment Group Limited t/a Vivid Resourcing,Place,Growth,Agency Staff,,09/07/2021,2000,280000,Legal Services
5422849,G2V Recruitment Group Limited t/a Vivid Resourcing,Place,Growth,Recruitment Campaign,,09/07/2021,2275,280000,Legal Services
5426271,Cromwood Housing Ltd,Operations and Neighbourhoods,Operations and Neighbourhoods,Other Accommodation Related Costs,,09/07/2021,29710.66,250000,Housing Management
5426223,Cromwood Housing Ltd,Operations and Neighbourhoods,Operations and Neighbourhoods,Other Accommodation Related Costs,,09/07/2021,42164.98,250000,Housing Management
5422945,Head Heart Hands in Practise,People and Workforce Development,Governance,Training Course Costs,,09/07/2021,2295,190000,Facilities & Management Services
5425141,TAMESIDE AND GLOSSOP INTEGRATED CARE NHS FOUNDATION TRUST,Adult Social Care,Adults,External Secondments,,09/07/2021,3950.48,310000,Healthcare
5422972,SWIIS FOSTER CARE LTD,Childrens Services,Children's Services,Foster Carer Agency Fees,,09/07/2021,863.03,321100,Social Community Care Supplies & Services - Children
5423261,UK CONTAINER MAINTENANCE LTD,Operations and Neighbourhoods,Operations and Neighbourhoods,Purchase Wheeled Bins,,09/07/2021,2185,390000,"Works - Construction, Repair & Maintenance"
5425625,THE FAMILY UNIT LTD,Childrens Services,Children's Services,Living With Formal Support,,09/07/2021,10320,321000,Social Community Care Supplies & Services - Adult
5425625,THE FAMILY UNIT LTD,Childrens Services,Children's Services,Semi independent - Weekly Living Allowances,,09/07/2021,236.8,321000,Social Community Care Supplies & Services - Adult
5423184,AECOM LTD,(blank),(blank),External  Consultants,,09/07/2021,1660.21,-999999,Unclassifiable
5423183,AECOM LTD,(blank),(blank),External  Consultants,,09/07/2021,11244,-999999,Unclassifiable
5423074,Redacted,Childrens Services,Children's Services,Legal Fees,,09/07/2021,572.92,321100,Social Community Care Supplies & Services - Children
5423425,CYGNET HEALTH CARE LTD,Education,Children's Services,Independent School Fees,,09/07/2021,2310,310000,Healthcare
5423242,ACORN CARE & EDUCATION LTD (SALES),Education,Children's Services,Transport Of Ola Pupils,,09/07/2021,1140,321100,Social Community Care Supplies & Services - Children
5423426,ACORN CARE & EDUCATION LTD (SALES),Education,Children's Services,Independent School Fees,,09/07/2021,6000,321100,Social Community Care Supplies & Services - Children
5423390,ACORN CARE & EDUCATION LTD (SALES),Education,Children's Services,Independent School Fees,,09/07/2021,11624.27,321100,Social Community Care Supplies & Services - Children
5423391,ACORN CARE & EDUCATION LTD (SALES),Education,Children's Services,Independent School Fees,,09/07/2021,23685.67,321100,Social Community Care Supplies & Services - Children
5425628,ABLE CARE AND SUPPORT SERVICES LTD,Adult Social Care,Adults,Homecare Fees,,09/07/2021,21579.25,321000,Social Community Care Supplies & Services - Adult
5424413,PLATINUM STAIRLIFTS LIMITED,Housing,Director of Place,Mandatory Adaptations Grant (DFG),,09/07/2021,6401.68,321000,Social Community Care Supplies & Services - Adult
5425637,NEW CHARTER HOUSING TRUST GROUP,Adult Social Care,Adults,Non-Authority Accommodation Rental,,09/07/2021,5541.15,-999999,Unclassifiable
5425640,NEW CHARTER HOUSING TRUST GROUP,Adult Social Care,Adults,Non-Authority Accommodation Rental,,09/07/2021,5760.1,-999999,Unclassifiable
5423166,UK CONTAINER MAINTENANCE LTD,Operations and Neighbourhoods,Operations and Neighbourhoods,Purchase Wheeled Bins,,09/07/2021,1265,390000,"Works - Construction, Repair & Maintenance"
5423017,F.A.C.T.,Childrens Services,Children's Services,Community Based Activities,,09/07/2021,13240,321100,Social Community Care Supplies & Services - Children
5424246,CARELINE HOMECARE LTD,Adult Social Care,Adults,Homecare Fees,,09/07/2021,33840.51,321000,Social Community Care Supplies & Services - Adult
5424244,CARELINE HOMECARE LTD,Adult Social Care,Adults,Homecare Fees,,09/07/2021,34395.49,321000,Social Community Care Supplies & Services - Adult
5424203,CARELINE HOMECARE LTD,Adult Social Care,Adults,Homecare Fees,,09/07/2021,23794.92,321000,Social Community Care Supplies & Services - Adult
5423260,ROUTES HEALTHCARE (NORTH) LIMITED,Adult Social Care,Adults,Homecare Fees,,09/07/2021,7113.87,321100,Social Community Care Supplies & Services - Children
5423071,ROUTES HEALTHCARE (NORTH) LIMITED,Adult Social Care,Adults,Homecare Fees,,09/07/2021,7009.46,321100,Social Community Care Supplies & Services - Children
5423072,Redacted,Childrens Services,Children's Services,Legal Fees,,09/07/2021,3437.5,321100,Social Community Care Supplies & Services - Children
5425708,STEPPING STONES CHILDRENS HOMES LTD,Childrens Services,Children's Services,Childrens Homes Outside Local Authority Fees,,09/07/2021,28000,321100,Social Community Care Supplies & Services - Children
5425707,STEPPING STONES CHILDRENS HOMES LTD,Childrens Services,Children's Services,Childrens Homes Outside Local Authority Fees,,09/07/2021,13200,321100,Social Community Care Supplies & Services - Children
5425706,STEPPING STONES CHILDRENS HOMES LTD,Childrens Services,Children's Services,Childrens Homes Outside Local Authority Fees,,09/07/2021,17596,321100,Social Community Care Supplies & Services - Children
5425709,STEPPING STONES CHILDRENS HOMES LTD,Childrens Services,Children's Services,Childrens Homes Outside Local Authority Fees,,09/07/2021,17596,321100,Social Community Care Supplies & Services - Children
5423163,Oxford Innovation LTD - ASHTON OLD BATHS,Place,Growth,Professional Services,,09/07/2021,17392.94,190000,Facilities & Management Services
5423171,DHL Parcel UK Ltd (UK Mail),Exchequer,Governance,Printing And Stationery,,09/07/2021,3051.02,300000,Mail Services
5422926,Redacted,Childrens Services,Children's Services,Legal Fees,,09/07/2021,600,280000,Legal Services
5425626,THE FAMILY UNIT LTD,Childrens Services,Children's Services,Living With Formal Support,,09/07/2021,9480,321000,Social Community Care Supplies & Services - Adult
5425626,THE FAMILY UNIT LTD,Childrens Services,Children's Services,Semi independent - Weekly Living Allowances,,09/07/2021,236.8,321000,Social Community Care Supplies & Services - Adult
5422944,Redacted,Childrens Services,Children's Services,Legal Fees,,09/07/2021,600,280000,Legal Services
5422997,Redacted,Childrens Services,Children's Services,Legal Fees,,09/07/2021,700,-999999,Unclassifiable
5423347,QA LIMITED,GMPF (FX),GMPF (FX),Training Course Costs,,09/07/2021,1787,260000,Human Resources
5424864,OAKFIELDS CHILDRENS CARE,Childrens Services,Children's Services,Childrens Homes Outside Local Authority Fees,,09/07/2021,19960,321100,Social Community Care Supplies & Services - Children
5423151,Randstad Public Services Limited,Education,Children's Services,Agency Staff,,09/07/2021,572.5,170000,Education
5425589,Redacted,Education,Children's Services,Transport Of Pupils,Business Payment,09/07/2021,2394,360000,Public Transport
5425590,Redacted,Education,Children's Services,Transport Of Pupils,Business Payment,09/07/2021,1494,360000,Public Transport
5425704,Redacted,Education,Children's Services,Transport Of Post 16 Pupils,Business Payment,09/07/2021,1620,360000,Public Transport
5426224,FUSION CARE,Adult Social Care,Adults,Homecare Fees,,09/07/2021,2431.88,321100,Social Community Care Supplies & Services - Children
5423351,LK CONSULT LIMITED,Operations and Neighbourhoods,Operations and Neighbourhoods,External  Consultants,,09/07/2021,1125,150000,Consultancy
5423360,G4S CASH SOLUTIONS (UK) LIMITED,Finance,Finance & IT,Security Services,,09/07/2021,740.59,190000,Facilities & Management Services
5425588,Redacted,Education,Children's Services,Transport Of Pupils,Business Payment,09/07/2021,1944,360000,Public Transport
5423002,Redacted,Childrens Services,Children's Services,Legal Fees,,09/07/2021,600,-999999,Unclassifiable
5423004,Redacted,Childrens Services,Children's Services,Legal Fees,,09/07/2021,600,-999999,Unclassifiable
5422975,VISION FOR EDUCATION LIMITED,Education,Children's Services,Professional Services,,09/07/2021,2511,170000,Education
5422980,VISION FOR EDUCATION LIMITED,Education,Children's Services,Professional Services,,09/07/2021,1432,170000,Education
5423418,INCOM SYSTEMS COMMUNICATION LTD,Adult Social Care,Adults,Building Repairs,,09/07/2021,906.78,270000,Information Communication Technology
5423012,Tynetec a group brand of Legrand Electric Ltd,Adult Social Care,Adults,IT Equipment,,09/07/2021,5554.6,UNCLASS,Unclassifiable
5426228,FUSION CARE,Adult Social Care,Adults,Homecare Fees,,09/07/2021,2840.6,321100,Social Community Care Supplies & Services - Children
5424462,Inspired Spaces (ProjectCo1) LTD,Asset & Investment Partnership Management,Growth,Free School Meal Costs,,09/07/2021,5468.24,390000,"Works - Construction, Repair & Maintenance"
5422999,Redacted,Childrens Services,Children's Services,Legal Fees,,09/07/2021,600,-999999,Unclassifiable
5424225,COMFORT CALL LIMITED,Adult Social Care,Adults,Homecare Fees,,09/07/2021,37304.42,310000,Healthcare
5424226,COMFORT CALL LIMITED,Adult Social Care,Adults,Homecare Fees,,09/07/2021,38248.33,310000,Healthcare
5425466,Park Lane Minibuses LTD,Education,Children's Services,Transport Of Pupils,,09/07/2021,2069.28,360000,Public Transport
5425636,THE FAMILY UNIT LTD,Childrens Services,Children's Services,Living With Formal Support,,09/07/2021,3600,321000,Social Community Care Supplies & Services - Adult
5425636,THE FAMILY UNIT LTD,Childrens Services,Children's Services,Semi independent - Weekly Living Allowances,,09/07/2021,236.8,321000,Social Community Care Supplies & Services - Adult
5425617,THE FAMILY UNIT LTD,Childrens Services,Children's Services,Living With Formal Support,,09/07/2021,3600,321000,Social Community Care Supplies & Services - Adult
5423410,PROFILE SECURITY SERVICES LIMITED,Operations and Neighbourhoods,Operations and Neighbourhoods,General Materials,,09/07/2021,6395.61,190000,Facilities & Management Services
5423346,QA LIMITED,GMPF (FX),GMPF (FX),Training Course Costs,,09/07/2021,1847,260000,Human Resources
5425381,TAMESIDE SPORTS TRUST,Adult Social Care,Adults,Professional Services,,09/07/2021,1060,290000,Arts & Leisure Services
5426511,THE SUNFLOWER CHILDRENS CENTRE,Childrens Services,Children's Services,Project Expenditure Home Office,,12/07/2021,720,321100,Social Community Care Supplies & Services - Children
5426326,CROMWELL POLYTHENE LTD.,Operations and Neighbourhoods,Operations and Neighbourhoods,Purchase Plastic Sacks,,12/07/2021,5166,-999999,Unclassifiable
5424422,K P DODD CONSTRUCTION LTD,Housing,Director of Place,Mandatory Adaptations Grant (DFG),,12/07/2021,5341.64,399999,"Works - Construction, Repair & Maintenance"
5424346,CREATIVE SUPPORT LTD,Adult Social Care,Adults,Homecare Fees,,12/07/2021,14367.25,321000,Social Community Care Supplies & Services - Adult
5425951,THE BROOKE SURGERY,Population Health,Population Health,Local Enhanced Services,,12/07/2021,819.7,150000,Consultancy
5426510,M G DOMESTIC,Adult Social Care,Adults,"Fixtures, Fittings & Furniture Purchase",,12/07/2021,1379.13,160000,Domestic Goods
5425928,STAMFORD CARS UK LTD,Education,Children's Services,Transport Of Pupils,,12/07/2021,1020,360000,Public Transport
5425972,HOMES FOR LIFE LTD,Adult Social Care,Adults,Non-Authority Accommodation Rental,,12/07/2021,965.34,-999999,Unclassifiable
5426507,ZZ-UK Preservations Ltd,Contingency,Contingency,COVID-19 Additional Restrictions Support - Discretionary,,12/07/2021,1550,UNCLASS,Unclassifiable
5426512,Redacted,Contingency,Contingency,COVID-19 Additional Restrictions Support - Discretionary,,12/07/2021,1550,UNCLASS,Unclassifiable
5426476,ZZ-Lets Talk Tripe,Contingency,Contingency,COVID-19 Additional Restrictions Support - Discretionary,,12/07/2021,1550,UNCLASS,Unclassifiable
5426505,ZZ-I & M Williams Ltd,Contingency,Contingency,COVID-19 Additional Restrictions Support - Discretionary,,12/07/2021,1550,UNCLASS,Unclassifiable
5426516,Redacted,Contingency,Contingency,COVID-19 Additional Restrictions Support - Discretionary,,12/07/2021,1550,UNCLASS,Unclassifiable
5424874,Pure Care Homes Ltd,Childrens Services,Children's Services,Childrens Homes Outside Local Authority Fees,,12/07/2021,15642.9,321000,Social Community Care Supplies & Services - Adult
5423328,Zoho Corporation B.V,Digital Tameside,Finance & IT,Computer Software,,12/07/2021,1066,270000,Information Communication Technology
5425786,Montrose Recruitment Limited TA Montrose Living,Childrens Services,Children's Services,Living With Formal Support,,12/07/2021,4474.43,321100,Social Community Care Supplies & Services - Children
5425786,Montrose Recruitment Limited TA Montrose Living,Childrens Services,Children's Services,Semi independent - Weekly Living Allowances,,12/07/2021,252.43,321100,Social Community Care Supplies & Services - Children
5424637,Strenger,Tameside Investment Partnership,Director of Place,External  Consultants,,12/07/2021,900,UNCLASS,Unclassifiable
5426226,FUSION CARE,Adult Social Care,Adults,Residential Home Long Stay Fees,,12/07/2021,7147.32,321100,Social Community Care Supplies & Services - Children
5426213,WILDE CONSULTING ENGINEERS,Engineers Client,Director of Place,Engineers -External,,13/07/2021,3515.4,150000,Consultancy
5426213,WILDE CONSULTING ENGINEERS,(blank),(blank),Engineers -External,,13/07/2021,4104.32,150000,Consultancy
5426213,WILDE CONSULTING ENGINEERS,Operations and Neighbourhoods,Operations and Neighbourhoods,Engineers Works,,13/07/2021,14920,150000,Consultancy
5426213,WILDE CONSULTING ENGINEERS,District Assemblies,"Community,Environmental,Adult and Health Services",Engineers -External,,13/07/2021,1158.55,150000,Consultancy
5412313,GREATER MANCHESTER COMBINED AUTHORITY,Operations and Neighbourhoods,Operations and Neighbourhoods,Passenger Transport Levy,,13/07/2021,692494,-999999,Unclassifiable
5412295,GREATER MANCHESTER COMBINED AUTHORITY,Operations and Neighbourhoods,Operations and Neighbourhoods,Passenger Transport Levy,,13/07/2021,844834,-999999,Unclassifiable
5426216,WILDE CONSULTING ENGINEERS,Tameside Investment Partnership,Director of Place,Engineers -External,,13/07/2021,49204.8,150000,Consultancy
5425011,Exclusive Secure Care Services,Childrens Services,Children's Services,"Childrens Allowances (Weekly,Xmas,Festive,Clothing)",,13/07/2021,859,321100,Social Community Care Supplies & Services - Children
5425703,STEPPING STONES CHILDRENS HOMES LTD,Childrens Services,Children's Services,Childrens Homes Outside Local Authority Fees,,13/07/2021,13720,321100,Social Community Care Supplies & Services - Children
5425965,HOMESHINE CLEANERS LTD,Adult Social Care,Adults,Homecare Fees,,13/07/2021,1220,130000,Cleaning & Janitorial
5426668,QUEST MEDIA NETWORKS LTD,Place,Growth,Statutory Advertising,,13/07/2021,540,-999999,Unclassifiable
5423352,FIRST COAT DECORATORS,Adult Social Care,Adults,"Fixtures, Fittings & Furniture Purchase",,13/07/2021,545,390000,"Works - Construction, Repair & Maintenance"
5426452,SMT Projects,Place,Growth,Professional Services,,13/07/2021,1377,-999999,Unclassifiable
5426448,KL2 (Kappa Lambda Squared Limited),Operations and Neighbourhoods,Operations and Neighbourhoods,Computer Hardware Maintenance Costs,,13/07/2021,9975,190000,Facilities & Management Services
5425123,Bloom Procurement Services Limited,Tameside Investment Partnership,Director of Place,Professional Services,,13/07/2021,21578.95,150000,Consultancy
5426673,LIQUIDLOGIC LTD,People and Workforce Development,Governance,Computer Software,,13/07/2021,8000,270000,Information Communication Technology
5425705,STEPPING STONES CHILDRENS HOMES LTD,Childrens Services,Children's Services,Childrens Homes Outside Local Authority Fees,,13/07/2021,27440,321100,Social Community Care Supplies & Services - Children
5426287,PLATINUM STAIRLIFTS LIMITED,Housing,Director of Place,Mandatory Adaptations Grant (DFG),,14/07/2021,1881.25,321000,Social Community Care Supplies & Services - Adult
5426279,PLATINUM STAIRLIFTS LIMITED,Housing,Director of Place,Mandatory Adaptations Grant (DFG),,14/07/2021,1875,321000,Social Community Care Supplies & Services - Adult
5426257,PLATINUM STAIRLIFTS LIMITED,Housing,Director of Place,Mandatory Adaptations Grant (DFG),,14/07/2021,3825,321000,Social Community Care Supplies & Services - Adult
5426402,PLATINUM STAIRLIFTS LIMITED,Housing,Director of Place,Mandatory Adaptations Grant (DFG),,14/07/2021,3856.68,321000,Social Community Care Supplies & Services - Adult
5426430,PLATINUM STAIRLIFTS LIMITED,Housing,Director of Place,Mandatory Adaptations Grant (DFG),,14/07/2021,2225,321000,Social Community Care Supplies & Services - Adult
5426424,PLATINUM STAIRLIFTS LIMITED,Housing,Director of Place,Mandatory Adaptations Grant (DFG),,14/07/2021,2087.5,321000,Social Community Care Supplies & Services - Adult
5426261,PLATINUM STAIRLIFTS LIMITED,Housing,Director of Place,Mandatory Adaptations Grant (DFG),,14/07/2021,3525,321000,Social Community Care Supplies & Services - Adult
5426232,PLATINUM STAIRLIFTS LIMITED,Housing,Director of Place,Mandatory Adaptations Grant (DFG),,14/07/2021,2325,321000,Social Community Care Supplies & Services - Adult
5426433,PLATINUM STAIRLIFTS LIMITED,Housing,Director of Place,Mandatory Adaptations Grant (DFG),,14/07/2021,2150,321000,Social Community Care Supplies & Services - Adult
5426285,PLATINUM STAIRLIFTS LIMITED,Housing,Director of Place,Mandatory Adaptations Grant (DFG),,14/07/2021,1725,321000,Social Community Care Supplies & Services - Adult
5426269,PLATINUM STAIRLIFTS LIMITED,Housing,Director of Place,Mandatory Adaptations Grant (DFG),,14/07/2021,5662.5,321000,Social Community Care Supplies & Services - Adult
5426401,PLATINUM STAIRLIFTS LIMITED,Housing,Director of Place,Mandatory Adaptations Grant (DFG),,14/07/2021,6513.75,321000,Social Community Care Supplies & Services - Adult
5423514,Mark Hancock Limited,Education,Children's Services,Professional Services,,14/07/2021,6600,170000,Education
5423428,AGRICULTURAL AND RURAL CENTRE CIC,Education,Children's Services,Independent School Fees,,14/07/2021,960,170000,Education
5423475,Redacted,Education,Children's Services,Professional Services,,14/07/2021,3300,311600,Healthcare
5424464,INSPIREDSPACES TAMESIDE (PROJECTCO2) LTD,Asset & Investment Partnership Management,Growth,Food & Refreshments,,14/07/2021,879.34,170000,Education
5424464,INSPIREDSPACES TAMESIDE (PROJECTCO2) LTD,Asset & Investment Partnership Management,Growth,Free School Meal Costs,,14/07/2021,15873.54,170000,Education
5426292,PLATINUM STAIRLIFTS LIMITED,Housing,Director of Place,Mandatory Adaptations Grant (DFG),,14/07/2021,1875,321000,Social Community Care Supplies & Services - Adult
5426297,PLATINUM STAIRLIFTS LIMITED,Housing,Director of Place,Mandatory Adaptations Grant (DFG),,14/07/2021,1875,321000,Social Community Care Supplies & Services - Adult
5426264,PLATINUM STAIRLIFTS LIMITED,Housing,Director of Place,Mandatory Adaptations Grant (DFG),,14/07/2021,3637.5,321000,Social Community Care Supplies & Services - Adult
5423524,TUDOR (UK) LTD T/A TUDOR ENVIRONMENTAL,Operations and Neighbourhoods,Operations and Neighbourhoods,Network Equipment/Setup,,14/07/2021,769.1,240000,Horticultural
5422394,ORACLE CARE LTD,Childrens Services,Children's Services,Childrens Homes Outside Local Authority Fees,,14/07/2021,19500,321100,Social Community Care Supplies & Services - Children
5423545,The Networking People (TNP) Ltd,Digital Tameside,Finance & IT,Professional Services,,14/07/2021,4800,270000,Information Communication Technology
5423473,S & M Builders,(blank),(blank),Professional Services,,14/07/2021,5350,390000,"Works - Construction, Repair & Maintenance"
5423557,Change Grow Live,Population Health,Population Health,Professional Services,,14/07/2021,272416,321000,Social Community Care Supplies & Services - Adult
5423558,Change Grow Live,Population Health,Population Health,Professional Services,,14/07/2021,272416,321000,Social Community Care Supplies & Services - Adult
5424891,Smartway Health and Social Care Limited,Adult Social Care,Adults,Homecare Fees,,14/07/2021,5638.86,321000,Social Community Care Supplies & Services - Adult
5425338,Smartway Health and Social Care Limited,Adult Social Care,Adults,Homecare Fees,,14/07/2021,6055.11,321000,Social Community Care Supplies & Services - Adult
5391215,Options Autism (4) LTD,Childrens Services,Children's Services,Childrens Homes Outside Local Authority Fees,,14/07/2021,20482.14,170000,Education
5423586,SMS Coaching LTD,Education,Children's Services,Non-Maintained School Fees,,14/07/2021,6400,-999999,Unclassifiable
5423483,Redacted,Education,Children's Services,Independent School Fees,Redacted Supplier,14/07/2021,3325,321100,Social Community Care Supplies & Services - Children
5423563,Origin Amenity Solutions Ltd,Operations and Neighbourhoods,Operations and Neighbourhoods,Professional Weedspraying Services,,14/07/2021,3360,UNCLASS,Unclassifiable
5423567,ASKEWS  AND HOLTS LIBRARY SERVICES LTD,Operations and Neighbourhoods,Operations and Neighbourhoods,Purchase Books,,14/07/2021,2041.3,170000,Education
5423527,MHR International UK Limited,People and Workforce Development,Governance,Computer Software,,14/07/2021,2808,270000,Information Communication Technology
5426277,JACKSON & TAYLOR LTD,Housing,Director of Place,Mandatory Adaptations Grant (DFG),,14/07/2021,4951.4,390000,"Works - Construction, Repair & Maintenance"
5426283,JACKSON & TAYLOR LTD,Housing,Director of Place,Mandatory Adaptations Grant (DFG),,14/07/2021,3817,390000,"Works - Construction, Repair & Maintenance"
5423584,KBW Barristers Chambers,Childrens Services,Children's Services,Legal Fees,,14/07/2021,600,280000,Legal Services
5425460,Bloom Procurement Services Limited,Tameside Investment Partnership,Director of Place,External  Consultants,,14/07/2021,110718.1,150000,Consultancy
5423478,CFS CARE LIMITED,Childrens Services,Children's Services,Living With Formal Support,,14/07/2021,1100,321100,Social Community Care Supplies & Services - Children
5423478,CFS CARE LIMITED,Childrens Services,Children's Services,Semi independent - Weekly Living Allowances,,14/07/2021,58.9,321100,Social Community Care Supplies & Services - Children
5423537,Kenworthys Chambers,Childrens Services,Children's Services,Legal Fees,,14/07/2021,550,280000,Legal Services
5423539,Kenworthys Chambers,Childrens Services,Children's Services,Legal Fees,,14/07/2021,550,280000,Legal Services
5423575,Kenworthys Chambers,Childrens Services,Children's Services,Legal Fees,,14/07/2021,550,280000,Legal Services
5423576,Kenworthys Chambers,Childrens Services,Children's Services,Legal Fees,,14/07/2021,550,280000,Legal Services
5423578,Kenworthys Chambers,Childrens Services,Children's Services,Legal Fees,,14/07/2021,550,280000,Legal Services
5423536,Kenworthys Chambers,Childrens Services,Children's Services,Legal Fees,,14/07/2021,1300,280000,Legal Services
5423535,Kenworthys Chambers,Childrens Services,Children's Services,Legal Fees,,14/07/2021,750,280000,Legal Services
5423577,Kenworthys Chambers,Childrens Services,Children's Services,Legal Fees,,14/07/2021,700,280000,Legal Services
5423519,Kenworthys Chambers,Childrens Services,Children's Services,Legal Fees,,14/07/2021,700,280000,Legal Services
5423574,Kenworthys Chambers,Childrens Services,Children's Services,Legal Fees,,14/07/2021,700,280000,Legal Services
5423526,Kenworthys Chambers,Childrens Services,Children's Services,Legal Fees,,14/07/2021,1500,280000,Legal Services
5423551,Kenworthys Chambers,Childrens Services,Children's Services,Legal Fees,,14/07/2021,1050,280000,Legal Services
5423555,KBW Barristers Chambers,Childrens Services,Children's Services,Legal Fees,,14/07/2021,700,280000,Legal Services
5423560,Nurtured Future Living Ltd,Childrens Services,Children's Services,Childrens Homes Outside Local Authority Fees,,14/07/2021,12000,322003,Social Community Care Supplies & Services - Children
5423548,Kenworthys Chambers,Childrens Services,Children's Services,Legal Fees,,14/07/2021,550,280000,Legal Services
5423556,RJB Stone Ltd T/A Sass & Belle,Operations and Neighbourhoods,Operations and Neighbourhoods,General Materials,,14/07/2021,501,UNCLASS,Unclassifiable
5426699,Redacted,Housing,Director of Place,Mandatory Adaptations Grant (DFG),,14/07/2021,4100,UNCLASS,Unclassifiable
5423547,Kenworthys Chambers,Childrens Services,Children's Services,Legal Fees,,14/07/2021,700,280000,Legal Services
5423579,DOMAIN CARE NORTH WEST LTD,Adult Social Care,Adults,Homecare Fees,,14/07/2021,1771.08,321100,Social Community Care Supplies & Services - Children
5423497,BOOTS UK LTD,Population Health,Population Health,Local Enhanced Services,,14/07/2021,556.05,150000,Consultancy
5423491,BOOTS UK LTD,Population Health,Population Health,Local Enhanced Services,,14/07/2021,763.85,150000,Consultancy
5423520,Randstad Public Services Limited,Education,Children's Services,Agency Staff,,14/07/2021,572.5,170000,Education
5423518,Randstad Public Services Limited,Education,Children's Services,Agency Staff,,14/07/2021,572.5,170000,Education
5426720,ACCCOUNTING OFFICER HOME OFFICE,Hosted Services,Hosted Services,Professional Services,,14/07/2021,11904.08,200000,Financial Services
5426722,ACCCOUNTING OFFICER HOME OFFICE,Hosted Services,Hosted Services,Professional Services,,14/07/2021,4729.06,200000,Financial Services
5425407,OLDHAM COUNCIL,People and Workforce Development,Governance,Professional Consultancy Services,,14/07/2021,8069,-999999,Unclassifiable
5423477,Timeout Childrens Homes Ltd,Childrens Services,Children's Services,Childrens Homes Outside Local Authority Fees,,14/07/2021,15979.88,UNCLASS,Unclassifiable
5423533,Pennine Medical Supplies Ltd T/A Pennine Workwear,Operations and Neighbourhoods,Operations and Neighbourhoods,Protective Clothing,,14/07/2021,837.25,MEDICAL,Medical
5423581,Pennine Learning Associates,Education,Children's Services,Professional Services,,14/07/2021,2625,-999999,Unclassifiable
5423549,Kenworthys Chambers,Childrens Services,Children's Services,Legal Fees,,14/07/2021,700,280000,Legal Services
5423525,VIP-SYSTEM LIMITED,Operations and Neighbourhoods,Operations and Neighbourhoods,Printing And Stationery,,14/07/2021,541.03,380000,Vehicle Management
470915,AGGREGATE INDUSTRIES UK LIMITED,Operations and Neighbourhoods,Operations and Neighbourhoods,General Materials,,15/07/2021,5241.02,230000,Highway Equipment & Materials
470915,ARNOLD PLANT HIRE LTD,Operations and Neighbourhoods,Operations and Neighbourhoods,General Materials,,15/07/2021,2025,UNCLASS,Unclassifiable
470915,EAGLE CIVIL ENGINEERING LTD,Operations and Neighbourhoods,Operations and Neighbourhoods,Sub-contractor Services,,15/07/2021,42196.97,391411,"Works - Construction, Repair & Maintenance"
470915,KEN TAYLOR SUPPLIES LTD,Operations and Neighbourhoods,Operations and Neighbourhoods,General Materials,,15/07/2021,1198,-999999,Unclassifiable
470915,TARMAC CENTRAL LIMITED,Operations and Neighbourhoods,Operations and Neighbourhoods,General Materials,,15/07/2021,1176.28,230000,Highway Equipment & Materials
470915,WILDE CONSULTING ENGINEERS,Operations and Neighbourhoods,Operations and Neighbourhoods,Sub-contractor Services,,15/07/2021,6502.5,150000,Consultancy
470915,WOLSELEY UK LTD,Civil Engineers,Director of Place,Debits Goods Received,,15/07/2021,2067.71,230000,Highway Equipment & Materials
470915,HSS HIRE SERVICE GROUP  PLC,Operations and Neighbourhoods,Operations and Neighbourhoods,General Materials,,15/07/2021,670.8,380000,Vehicle Management
470915,BRIDGE ELECTRICALSUPPLIES LTD,Civil Engineers,Director of Place,Debits Goods Received,,15/07/2021,756,100000,Building Construction Materials
470915,TOTALLY LOCAL COMPANY LIMITED,Civil Engineers,Director of Place,Debits Goods Received,,15/07/2021,1783.8,190000,Facilities & Management Services
470915,TOTALLY LOCAL COMPANY LIMITED,Operations and Neighbourhoods,Operations and Neighbourhoods,Tipping Facility Fees,,15/07/2021,820,190000,Facilities & Management Services
470915,NORTHWEST UTILITY SOLUTIONS LTD,Operations and Neighbourhoods,Operations and Neighbourhoods,Sub-contractor Services,,15/07/2021,4800,370000,Utilities
470915,TRAFFIC DIRECT LTD,Operations and Neighbourhoods,Operations and Neighbourhoods,Sub-contractor Services,,15/07/2021,7913.5,350000,Street & Traffic Management
470915,TRAFFIC DIRECT LTD,Operations and Neighbourhoods,Operations and Neighbourhoods,Traffic Signs,,15/07/2021,580,350000,Street & Traffic Management
470915,MALLATITE LTD,(blank),(blank),Traffic Signs,,15/07/2021,28360.94,230000,Highway Equipment & Materials
470915,COMPASS MINERALS UK LTD,Civil Engineers,Director of Place,Debits Goods Received,,15/07/2021,8804.74,230000,Highway Equipment & Materials
470915,ST JOHN AMBULANCE,Operations and Neighbourhoods,Operations and Neighbourhoods,Training Course Costs,,15/07/2021,810,UNCLASS,Unclassifiable
470915,MANCHESTER PLANT TRAINING LTD,Operations and Neighbourhoods,Operations and Neighbourhoods,Training Course Costs,,15/07/2021,3355,260000,Human Resources
470915,ROSGAL CIVIL ENGINEERING LTD,Operations and Neighbourhoods,Operations and Neighbourhoods,General Materials,,15/07/2021,16019,230000,Highway Equipment & Materials
470915,KELTIC LTD,Operations and Neighbourhoods,Operations and Neighbourhoods,General Materials,,15/07/2021,558.95,140000,Clothing
470915,SPEEDY ASSET SERVICES LTD,Operations and Neighbourhoods,Operations and Neighbourhoods,General Materials,,22/07/2021,537.72,100000,Building Construction Materials
3250821,ARNOLD PLANT HIRE LTD,Operations and Neighbourhoods,Operations and Neighbourhoods,Additional Hire,,15/07/2021,4054.4,UNCLASS,Unclassifiable
3250821,AEBI SCHMIDT UK LTD,Operations and Neighbourhoods,Operations and Neighbourhoods,General Materials,,15/07/2021,507.77,380000,Vehicle Management
3250821,PETER DOUGLASS PLATFORMS,Operations and Neighbourhoods,Operations and Neighbourhoods,Additional Hire,,15/07/2021,1584,380000,Vehicle Management
3250821,PETER DOUGLASS PLATFORMS,Operations and Neighbourhoods,Operations and Neighbourhoods,Replacement Hire,,15/07/2021,1584,380000,Vehicle Management
3250821,North West Training Academy Ltd,Operations and Neighbourhoods,Operations and Neighbourhoods,Training Course Costs,,15/07/2021,1000,261500,Human Resources
3250821,Crescent Motors Dukinfield Ltd,Operations and Neighbourhoods,Operations and Neighbourhoods,Sub-contractor Services,,15/07/2021,1222.12,381400,Vehicle Management
5422408,CAPSTONE FOSTER CARE,Childrens Services,Children's Services,Foster Carer Agency Fees,,15/07/2021,1388.14,321000,Social Community Care Supplies & Services - Adult
5423685,CREATIVE SUPPORT LTD,Adult Social Care,Adults,Homecare Fees,,15/07/2021,19013.67,321000,Social Community Care Supplies & Services - Adult
5423662,NPOWER LIMITED,Place,Growth,Electricity,,15/07/2021,48687.79,370000,Utilities
5425984,FENTONS MINIBUSES LTD,Education,Children's Services,Transport Of Ola Pupils,,15/07/2021,1657.5,360000,Public Transport
5426273,K P DODD CONSTRUCTION LTD,Housing,Director of Place,Mandatory Adaptations Grant (DFG),,15/07/2021,4780,399999,"Works - Construction, Repair & Maintenance"
5423687,CREATIVE SUPPORT LTD,Adult Social Care,Adults,Homecare Fees,,15/07/2021,657.31,321000,Social Community Care Supplies & Services - Adult
5421627,WORKS 4U SUPPORT SERVICES LIMITED,Individual Schools Budget,Children's Services,Professional Child Services,,15/07/2021,4320,260000,Human Resources
5414654,ACORN CARE & EDUCATION LTD (SALES),Childrens Services,Children's Services,Childrens Homes Outside Local Authority Fees,,15/07/2021,18500,321100,Social Community Care Supplies & Services - Children
5414656,ACORN CARE & EDUCATION LTD (SALES),Childrens Services,Children's Services,Childrens Homes Outside Local Authority Fees,,15/07/2021,20482.14,321100,Social Community Care Supplies & Services - Children
5414653,ACORN CARE & EDUCATION LTD (SALES),Childrens Services,Children's Services,Childrens Homes Outside Local Authority Fees,,15/07/2021,20482.14,321100,Social Community Care Supplies & Services - Children
5400840,ACORN CARE & EDUCATION LTD (SALES),Childrens Services,Children's Services,Childrens Homes Outside Local Authority Fees,,15/07/2021,20482.14,321100,Social Community Care Supplies & Services - Children
5414652,ACORN CARE & EDUCATION LTD (SALES),Childrens Services,Children's Services,Childrens Homes Outside Local Authority Fees,,15/07/2021,19821.43,321100,Social Community Care Supplies & Services - Children
5426032,PROVIDENCE FURNITURE,Adult Social Care,Adults,"Fixtures, Fittings & Furniture Purchase",,15/07/2021,1225,210000,Furniture & Soft Furnishings
5423713,Tynetec a group brand of Legrand Electric Ltd,Adult Social Care,Adults,IT Equipment,,15/07/2021,2410,UNCLASS,Unclassifiable
5426037,TAMESIDE AND GLOSSOP INTEGRATED CARE NHS FOUNDATION TRUST,Hosted Services,Hosted Services,Professional Services,,15/07/2021,2612689.05,310000,Healthcare
5426038,WORKS 4U SUPPORT SERVICES LIMITED,Education,Children's Services,Independent School Fees,,15/07/2021,2600,260000,Human Resources
5421631,WORKS 4U SUPPORT SERVICES LIMITED,Individual Schools Budget,Children's Services,Professional Child Services,,15/07/2021,1180,260000,Human Resources
5423759,NEW HORIZONS (STOCKPORT) LTD,Childrens Services,Children's Services,Childrens Homes Outside Local Authority Fees,,15/07/2021,14142.9,321100,Social Community Care Supplies & Services - Children
5426961,ZZ-Trident Car Wrapping,Contingency,Contingency,COVID-19 Additional Restrictions Support - Discretionary,,15/07/2021,1550,UNCLASS,Unclassifiable
5426950,ZZ-ZZ-The Sweet Station,Contingency,Contingency,COVID-19 Additional Restrictions Support - Discretionary,,15/07/2021,1550,UNCLASS,Unclassifiable
5426977,ZZ-ZZ-COATED STEEL PRODUCTS LTD,Contingency,Contingency,COVID-19 Additional Restrictions Support - Discretionary,,15/07/2021,1550,UNCLASS,Unclassifiable
5423765,Redacted,(blank),(blank),Professional Entertainment Services,,15/07/2021,4995,UNCLASS,Unclassifiable
5423768,Nola House Tutoring,Education,Children's Services,Independent School Fees,,15/07/2021,1050,171011,Education
5423774,CARTER BROWN - THE EXPERT SERVICE LIMITED,Childrens Services,Children's Services,Professional Child Services,,15/07/2021,859.35,280000,Legal Services
5423486,KBW Barristers Chambers,Childrens Services,Children's Services,Legal Fees,,15/07/2021,600,280000,Legal Services
5423630,Kenworthys Chambers,Childrens Services,Children's Services,Legal Fees,,15/07/2021,610,280000,Legal Services
5423626,Kenworthys Chambers,Childrens Services,Children's Services,Legal Fees,,15/07/2021,1320,280000,Legal Services
5426251,Truancy Call Limited t/a Contact Group,Education,Children's Services,Professional Statistical Services,,15/07/2021,24910.47,321100,Social Community Care Supplies & Services - Children
5423776,YOUNG PEOPLE FIRST LIMITED,Childrens Services,Children's Services,Living With Formal Support,,15/07/2021,850,321100,Social Community Care Supplies & Services - Children
5423775,YOUNG PEOPLE FIRST LIMITED,Childrens Services,Children's Services,Living With Formal Support,,15/07/2021,2730,321100,Social Community Care Supplies & Services - Children
5423767,Randstad HR Solution Ltd T/A Student Worker Support,Education,Children's Services,Independent School Fees,,15/07/2021,960,321000,Social Community Care Supplies & Services - Adult
5423769,Randstad HR Solution Ltd T/A Student Worker Support,Education,Children's Services,Independent School Fees,,15/07/2021,1600,321000,Social Community Care Supplies & Services - Adult
5424661,Inspire Scotland Limited,Childrens Services,Children's Services,Childrens Homes Outside Local Authority Fees,,15/07/2021,4821.43,321100,Social Community Care Supplies & Services - Children
5423778,HC Assessment Ltd,Adult Social Care,Adults,Professional Services,,15/07/2021,2485.8,260000,Human Resources
5423780,Pickering Psychology Services Limited,Childrens Services,Children's Services,Professional Child Services,,15/07/2021,593.7,280000,Legal Services
5423651,FOSTER CARE ASSOCIATES LTD (FCA),Childrens Services,Children's Services,Foster Carer Agency Fees,,15/07/2021,3899.7,321000,Social Community Care Supplies & Services - Adult
5423688,MYERSCOUGH COLLEGE,Education,Children's Services,Post 16 FE College Fees,,15/07/2021,2368,908001,Public Bodies
5421276,GREATER MANCHESTER COMBINED AUTHORITY,(blank),(blank),Professional Services,,15/07/2021,1431.15,-999999,Unclassifiable
5421277,GREATER MANCHESTER COMBINED AUTHORITY,(blank),(blank),Professional Services,,15/07/2021,1407.82,-999999,Unclassifiable
5423653,FOSTER CARE ASSOCIATES LTD (FCA),Childrens Services,Children's Services,Foster Carer Agency Fees,,15/07/2021,5816.4,321000,Social Community Care Supplies & Services - Adult
5426003,FENTONS TAXIS,Education,Children's Services,Transport Of Pupils,,15/07/2021,1755,360000,Public Transport
5423635,FOSTERING PEOPLE LTD,Childrens Services,Children's Services,Foster Carer Agency Fees,,15/07/2021,3149.62,321100,Social Community Care Supplies & Services - Children
5424623,MEDACS HEALTHCARE,Adult Social Care,Adults,Homecare Fees,,15/07/2021,18723.61,150000,Consultancy
5388212,Options Autism (4) LTD,Childrens Services,Children's Services,Childrens Homes Outside Local Authority Fees,,15/07/2021,20014.29,170000,Education
5388815,Options Autism (4) LTD,Childrens Services,Children's Services,Childrens Homes Outside Local Authority Fees,,15/07/2021,20681.43,170000,Education
5391257,Options Autism (4) LTD,Childrens Services,Children's Services,Childrens Homes Outside Local Authority Fees,,15/07/2021,23125,170000,Education
5426894,Safehands Liverpool LTD,Childrens Services,Children's Services,Living With Formal Support,,15/07/2021,2078.55,321100,Social Community Care Supplies & Services - Children
5423693,XMA LIMITED,Digital Tameside,Finance & IT,IT Equipment,,15/07/2021,2375.95,270000,Information Communication Technology
5423656,FOSTER CARE ASSOCIATES LTD (FCA),Childrens Services,Children's Services,Foster Carer Agency Fees,,15/07/2021,3809.4,321000,Social Community Care Supplies & Services - Adult
5423654,FOSTER CARE ASSOCIATES LTD (FCA),Childrens Services,Children's Services,Foster Carer Agency Fees,,15/07/2021,3304.5,321000,Social Community Care Supplies & Services - Adult
5423639,FOSTER CARE ASSOCIATES LTD (FCA),Childrens Services,Children's Services,Foster Carer Agency Fees,,15/07/2021,3302.85,321000,Social Community Care Supplies & Services - Adult
5423649,FOSTER CARE ASSOCIATES LTD (FCA),Childrens Services,Children's Services,Foster Carer Agency Fees,,15/07/2021,3899.7,321000,Social Community Care Supplies & Services - Adult
5423641,FOSTER CARE ASSOCIATES LTD (FCA),Childrens Services,Children's Services,Foster Carer Agency Fees,,15/07/2021,3132.6,321000,Social Community Care Supplies & Services - Adult
5425455,Safehands Liverpool LTD,Childrens Services,Children's Services,Living With Formal Support,,15/07/2021,2502.75,321100,Social Community Care Supplies & Services - Children
5424054,CARETECH COMMUNITY SERVICES LIMITED,Adult Social Care,Adults,Residential Home Long Stay Fees,,16/07/2021,7287,321000,Social Community Care Supplies & Services - Adult
5423920,CARETECH COMMUNITY SERVICES LIMITED,Adult Social Care,Adults,Residential Home Long Stay Fees,,16/07/2021,3671.96,321000,Social Community Care Supplies & Services - Adult
5424093,CARETECH COMMUNITY SERVICES LIMITED,Adult Social Care,Adults,Residential Home Long Stay Fees,,16/07/2021,6992.05,321000,Social Community Care Supplies & Services - Adult
5424086,CARETECH COMMUNITY SERVICES LIMITED,Adult Social Care,Adults,Residential Home Long Stay Fees,,16/07/2021,6992.05,321000,Social Community Care Supplies & Services - Adult
5424051,CARETECH COMMUNITY SERVICES LIMITED,Adult Social Care,Adults,Residential Home Long Stay Fees,,16/07/2021,6066.3,321000,Social Community Care Supplies & Services - Adult
5424060,CARETECH COMMUNITY SERVICES LIMITED,Adult Social Care,Adults,Residential Home Long Stay Fees,,16/07/2021,9837.6,321000,Social Community Care Supplies & Services - Adult
5424043,CARETECH COMMUNITY SERVICES LIMITED,Adult Social Care,Adults,Residential Home Long Stay Fees,,16/07/2021,9837.6,321000,Social Community Care Supplies & Services - Adult
5424110,CARETECH COMMUNITY SERVICES LIMITED,Adult Social Care,Adults,Residential Home Long Stay Fees,,16/07/2021,7287,321000,Social Community Care Supplies & Services - Adult
5424071,CARETECH COMMUNITY SERVICES LIMITED,Adult Social Care,Adults,Residential Home Long Stay Fees,,16/07/2021,7287,321000,Social Community Care Supplies & Services - Adult
5424104,CARETECH COMMUNITY SERVICES LIMITED,Adult Social Care,Adults,Residential Home Long Stay Fees,,16/07/2021,7529.9,321000,Social Community Care Supplies & Services - Adult
5424083,CARETECH COMMUNITY SERVICES LIMITED,Adult Social Care,Adults,Residential Home Long Stay Fees,,16/07/2021,7529.9,321000,Social Community Care Supplies & Services - Adult
5424077,CARETECH COMMUNITY SERVICES LIMITED,Adult Social Care,Adults,Residential Home Long Stay Fees,,16/07/2021,5673.6,321000,Social Community Care Supplies & Services - Adult
5424080,CARETECH COMMUNITY SERVICES LIMITED,Adult Social Care,Adults,Residential Home Long Stay Fees,,16/07/2021,3764.95,321000,Social Community Care Supplies & Services - Adult
5424097,CARETECH COMMUNITY SERVICES LIMITED,Adult Social Care,Adults,Residential Home Long Stay Fees,,16/07/2021,4461.3,321000,Social Community Care Supplies & Services - Adult
5424058,CARETECH COMMUNITY SERVICES LIMITED,Adult Social Care,Adults,Residential Home Long Stay Fees,,16/07/2021,4164,321000,Social Community Care Supplies & Services - Adult
5424109,CARETECH COMMUNITY SERVICES LIMITED,Adult Social Care,Adults,Residential Home Long Stay Fees,,16/07/2021,4164,321000,Social Community Care Supplies & Services - Adult
5424108,CARETECH COMMUNITY SERVICES LIMITED,Adult Social Care,Adults,Residential Home Long Stay Fees,,16/07/2021,4632.6,321000,Social Community Care Supplies & Services - Adult
5424057,CARETECH COMMUNITY SERVICES LIMITED,Adult Social Care,Adults,Residential Home Long Stay Fees,,16/07/2021,4632.6,321000,Social Community Care Supplies & Services - Adult
5424107,CARETECH COMMUNITY SERVICES LIMITED,Adult Social Care,Adults,Residential Home Long Stay Fees,,16/07/2021,2316.3,321000,Social Community Care Supplies & Services - Adult
5424112,CARETECH COMMUNITY SERVICES LIMITED,Adult Social Care,Adults,Residential Home Long Stay Fees,,16/07/2021,2316.3,321000,Social Community Care Supplies & Services - Adult
5423947,CARETECH COMMUNITY SERVICES LIMITED,Adult Social Care,Adults,Residential Home Long Stay Fees,,16/07/2021,3123,321000,Social Community Care Supplies & Services - Adult
5424052,CARETECH COMMUNITY SERVICES LIMITED,Adult Social Care,Adults,Residential Home Long Stay Fees,,16/07/2021,3123,321000,Social Community Care Supplies & Services - Adult
5424066,CARETECH COMMUNITY SERVICES LIMITED,Adult Social Care,Adults,Residential Home Long Stay Fees,,16/07/2021,3123,321000,Social Community Care Supplies & Services - Adult
5424074,CARETECH COMMUNITY SERVICES LIMITED,Adult Social Care,Adults,Residential Home Long Stay Fees,,16/07/2021,4787.02,321000,Social Community Care Supplies & Services - Adult
5424085,CARETECH COMMUNITY SERVICES LIMITED,Adult Social Care,Adults,Residential Home Long Stay Fees,,16/07/2021,4787.02,321000,Social Community Care Supplies & Services - Adult
5424063,CARETECH COMMUNITY SERVICES LIMITED,Adult Social Care,Adults,Residential Home Long Stay Fees,,16/07/2021,4302.8,321000,Social Community Care Supplies & Services - Adult
5423921,CARETECH COMMUNITY SERVICES LIMITED,Adult Social Care,Adults,Residential Home Long Stay Fees,,16/07/2021,4323.64,321000,Social Community Care Supplies & Services - Adult
5424096,CARETECH COMMUNITY SERVICES LIMITED,Adult Social Care,Adults,Residential Home Long Stay Fees,,16/07/2021,5725.5,321000,Social Community Care Supplies & Services - Adult
5423994,CARETECH COMMUNITY SERVICES LIMITED,Adult Social Care,Adults,Residential Home Long Stay Fees,,16/07/2021,6766.5,321000,Social Community Care Supplies & Services - Adult
5424089,CARETECH COMMUNITY SERVICES LIMITED,Adult Social Care,Adults,Residential Home Long Stay Fees,,16/07/2021,6766.5,321000,Social Community Care Supplies & Services - Adult
5424091,CARETECH COMMUNITY SERVICES LIMITED,Adult Social Care,Adults,Residential Home Long Stay Fees,,16/07/2021,6766.5,321000,Social Community Care Supplies & Services - Adult
5423876,UK FOSTERING LTD,Childrens Services,Children's Services,Foster Carer Agency Fees,,16/07/2021,3302.74,321100,Social Community Care Supplies & Services - Children
5423919,CARETECH COMMUNITY SERVICES LIMITED,Adult Social Care,Adults,Residential Home Long Stay Fees,,16/07/2021,9181.64,321000,Social Community Care Supplies & Services - Adult
5424064,CARETECH COMMUNITY SERVICES LIMITED,Adult Social Care,Adults,Residential Home Long Stay Fees,,16/07/2021,6268.51,321000,Social Community Care Supplies & Services - Adult
5424084,CARETECH COMMUNITY SERVICES LIMITED,Adult Social Care,Adults,Residential Home Long Stay Fees,,16/07/2021,5862.72,321000,Social Community Care Supplies & Services - Adult
5424078,CARETECH COMMUNITY SERVICES LIMITED,Adult Social Care,Adults,Residential Home Long Stay Fees,,16/07/2021,4610.01,321000,Social Community Care Supplies & Services - Adult
5424050,CARETECH COMMUNITY SERVICES LIMITED,Adult Social Care,Adults,Residential Home Long Stay Fees,,16/07/2021,3227.1,321000,Social Community Care Supplies & Services - Adult
5423874,UK FOSTERING LTD,Childrens Services,Children's Services,Foster Carer Agency Fees,,16/07/2021,3407.83,321100,Social Community Care Supplies & Services - Children
5424124,TUDOR (UK) LTD T/A TUDOR ENVIRONMENTAL,Operations and Neighbourhoods,Operations and Neighbourhoods,General Equipment Purchase,,16/07/2021,626.9,240000,Horticultural
5426094,Park Lane Minibuses LTD,Education,Children's Services,Transport Of Pupils,,16/07/2021,1530,360000,Public Transport
5424098,CARETECH COMMUNITY SERVICES LIMITED,Adult Social Care,Adults,Residential Home Long Stay Fees,,16/07/2021,10165.52,321000,Social Community Care Supplies & Services - Adult
5426098,Park Lane Minibuses LTD,Education,Children's Services,Transport Of Pupils,,16/07/2021,1530,360000,Public Transport
5426109,Park Lane Minibuses LTD,Education,Children's Services,Transport Of Pupils,,16/07/2021,1440,360000,Public Transport
5426103,Park Lane Minibuses LTD,Education,Children's Services,Transport Of Pupils,,16/07/2021,2316.24,360000,Public Transport
5423885,NEW BRIDGE HORIZONS,Adult Social Care,Adults,Homecare Fees,,16/07/2021,2335,321000,Social Community Care Supplies & Services - Adult
5423881,NEW BRIDGE HORIZONS,Adult Social Care,Adults,Homecare Fees,,16/07/2021,1625,321000,Social Community Care Supplies & Services - Adult
5423883,NEW BRIDGE HORIZONS,Adult Social Care,Adults,Homecare Fees,,16/07/2021,1968,321000,Social Community Care Supplies & Services - Adult
5423886,NEW BRIDGE HORIZONS,Adult Social Care,Adults,Homecare Fees,,16/07/2021,1868,321000,Social Community Care Supplies & Services - Adult
5423884,NEW BRIDGE HORIZONS,Adult Social Care,Adults,Homecare Fees,,16/07/2021,1800,321000,Social Community Care Supplies & Services - Adult
5424230,CITY LIFT SERVICES (NW) LTD,Adult Social Care,Adults,General Equipment Repair & Maintenance,,16/07/2021,1840,390000,"Works - Construction, Repair & Maintenance"
5424219,CITY LIFT SERVICES (NW) LTD,Adult Social Care,Adults,General Equipment Repair & Maintenance,,16/07/2021,620,390000,"Works - Construction, Repair & Maintenance"
5424229,CITY LIFT SERVICES (NW) LTD,Adult Social Care,Adults,General Equipment Repair & Maintenance,,16/07/2021,520,390000,"Works - Construction, Repair & Maintenance"
5424119,TURNING POINT,Adult Social Care,Adults,Homecare Fees,,16/07/2021,1851.25,321000,Social Community Care Supplies & Services - Adult
5424217,Redacted,Education,Children's Services,Professional Services,,16/07/2021,1100,311600,Healthcare
5424218,Redacted,Education,Children's Services,Professional Services,,16/07/2021,1100,311600,Healthcare
5426091,Park Lane Minibuses LTD,Education,Children's Services,Transport Of Post 16 Pupils,,16/07/2021,1665,360000,Public Transport
5424212,GRANART LIMITED,Operations and Neighbourhoods,Operations and Neighbourhoods,Plaques,,16/07/2021,882,120000,Cemetery & Crematorium
5424213,GRANART LIMITED,Operations and Neighbourhoods,Operations and Neighbourhoods,Plaques,,16/07/2021,6383,120000,Cemetery & Crematorium
5423844,FORENSIC TESTING SERVICE LTD,Childrens Services,Children's Services,Professional Services,,16/07/2021,3046.8,180000,Environmental Services
5423842,FORENSIC TESTING SERVICE LTD,Childrens Services,Children's Services,Professional Medical Services,,16/07/2021,1113.3,180000,Environmental Services
5423949,Onward Homes,Place,Growth,Contributions,,16/07/2021,5568.25,190000,Facilities & Management Services
5423950,Onward Homes,Place,Growth,Contributions,,16/07/2021,5568.25,190000,Facilities & Management Services
5423946,Onward Homes,Place,Growth,Contributions,,16/07/2021,5568.25,190000,Facilities & Management Services
5423948,Onward Homes,Place,Growth,Contributions,,16/07/2021,5568.25,190000,Facilities & Management Services
5425881,INSPIREDSPACES TAMESIDE LTD,(blank),(blank),Fees,,16/07/2021,152980.08,390000,"Works - Construction, Repair & Maintenance"
5425884,INSPIREDSPACES TAMESIDE LTD,(blank),(blank),Building Works,,16/07/2021,46599.09,390000,"Works - Construction, Repair & Maintenance"
5425882,INSPIREDSPACES TAMESIDE LTD,(blank),(blank),New Accommodation Works,,16/07/2021,86937.82,390000,"Works - Construction, Repair & Maintenance"
5425893,INSPIREDSPACES TAMESIDE LTD,Place,Growth,Fees,,16/07/2021,1954.02,390000,"Works - Construction, Repair & Maintenance"
5425893,INSPIREDSPACES TAMESIDE LTD,Place,Growth,Professional Services,,16/07/2021,97701.21,390000,"Works - Construction, Repair & Maintenance"
5425883,INSPIREDSPACES TAMESIDE LTD,(blank),(blank),Fees,,16/07/2021,196604.05,390000,"Works - Construction, Repair & Maintenance"
5425880,INSPIREDSPACES TAMESIDE LTD,Place,Growth,Fees,,16/07/2021,45.66,390000,"Works - Construction, Repair & Maintenance"
5425880,INSPIREDSPACES TAMESIDE LTD,Place,Growth,Repairs & Maintenance Heavy Catering Equipment,,16/07/2021,2282.78,390000,"Works - Construction, Repair & Maintenance"
5423105,Water Plus,Place,Growth,Water (Metered and Rates),,16/07/2021,511.26,370000,Utilities
5426212,WILDE CONSULTING ENGINEERS,Engineers Client,Director of Place,Engineers -External,,16/07/2021,2249.49,150000,Consultancy
5426212,WILDE CONSULTING ENGINEERS,(blank),(blank),Engineers -External,,16/07/2021,1103.02,150000,Consultancy
5426212,WILDE CONSULTING ENGINEERS,District Assemblies,"Community,Environmental,Adult and Health Services",Engineers -External,,16/07/2021,11166.25,150000,Consultancy
5423816,SWIIS FOSTER CARE LTD,Childrens Services,Children's Services,Foster Carer Agency Fees,,16/07/2021,863.03,321100,Social Community Care Supplies & Services - Children
5423826,SWIIS FOSTER CARE LTD,Childrens Services,Children's Services,Foster Carer Agency Fees,,16/07/2021,760.48,321100,Social Community Care Supplies & Services - Children
5423822,SWIIS FOSTER CARE LTD,Childrens Services,Children's Services,Foster Carer Agency Fees,,16/07/2021,1694.98,321100,Social Community Care Supplies & Services - Children
5424123,HILL DICKINSON LLP,Place,Growth,Legal Fees,,16/07/2021,875,280000,Legal Services
5426328,A & E FURNITURE LTD T.A THE PAVILION,Adult Social Care,Adults,"Fixtures, Fittings & Furniture Purchase",,16/07/2021,1199,210000,Furniture & Soft Furnishings
5423944,NPOWER LIMITED,Operations and Neighbourhoods,Operations and Neighbourhoods,Electricity,,16/07/2021,105524.88,370000,Utilities
5426101,AUTUMN (UK) 2017 LIMITED,Housing,Director of Place,Mandatory Adaptations Grant (DFG),,16/07/2021,3672,321000,Social Community Care Supplies & Services - Adult
5424242,PILAT HR SOLUTIONS,People and Workforce Development,Governance,Computer Software,,16/07/2021,1995,150000,Consultancy
5427062,HAMILTON PROPERTIES,Adult Social Care,Adults,Non-Authority Accommodation Rental,,16/07/2021,1565.96,250000,Housing Management
5424133,VAISALA LTD,Operations and Neighbourhoods,Operations and Neighbourhoods,Fees,,16/07/2021,5361.5,180000,Environmental Services
5423925,Water Plus,Operations and Neighbourhoods,Operations and Neighbourhoods,Water (Metered and Rates),,16/07/2021,2213.65,370000,Utilities
5423925,Water Plus,Place,Growth,Water (Metered and Rates),,16/07/2021,1028.51,370000,Utilities
5423795,Water Plus,Place,Growth,Water (Metered and Rates),,16/07/2021,3242.32,370000,Utilities
5424139,Water Plus,Operations and Neighbourhoods,Operations and Neighbourhoods,Water (Metered and Rates),,16/07/2021,1049.61,370000,Utilities
5424139,Water Plus,Place,Growth,Water (Metered and Rates),,16/07/2021,550.73,370000,Utilities
5422228,Water Plus,Place,Growth,Water (Metered and Rates),,16/07/2021,1386.16,370000,Utilities
5423936,Water Plus,Operations and Neighbourhoods,Operations and Neighbourhoods,Water (Metered and Rates),,16/07/2021,1863.94,370000,Utilities
5423936,Water Plus,Place,Growth,Water (Metered and Rates),,16/07/2021,1407.8,370000,Utilities
5423931,Water Plus,Operations and Neighbourhoods,Operations and Neighbourhoods,Water (Metered and Rates),,16/07/2021,868.68,370000,Utilities
5423931,Water Plus,Place,Growth,Water (Metered and Rates),,16/07/2021,292.75,370000,Utilities
5423583,Water Plus,Place,Growth,Water (Metered and Rates),,16/07/2021,651.98,370000,Utilities
5423106,Water Plus,Place,Growth,Water (Metered and Rates),,16/07/2021,10273.43,370000,Utilities
5424702,Water Plus,Place,Growth,Water (Metered and Rates),,16/07/2021,27701.48,370000,Utilities
5423647,Water Plus,Place,Growth,Water (Metered and Rates),,16/07/2021,843.82,370000,Utilities
5423650,Water Plus,Place,Growth,Water (Metered and Rates),,16/07/2021,788.27,370000,Utilities
5422224,Water Plus,Place,Growth,Water (Metered and Rates),,16/07/2021,691.66,370000,Utilities
5426189,ASHTON PIONEER HOMES,Operations and Neighbourhoods,Operations and Neighbourhoods,Miscellaneous Expenses,,16/07/2021,4022.17,329999,Social Community Care Supplies & Services
5422042,Water Plus,Operations and Neighbourhoods,Operations and Neighbourhoods,Water (Metered and Rates),,16/07/2021,1601.46,370000,Utilities
5422042,Water Plus,Place,Growth,Water (Metered and Rates),,16/07/2021,1171.94,370000,Utilities
5423807,ADT FIRE & SECURITY,Operations and Neighbourhoods,Operations and Neighbourhoods,Miscellaneous Expenses,,16/07/2021,1299.79,190000,Facilities & Management Services
5423655,Water Plus,Place,Growth,Water (Metered and Rates),,16/07/2021,586.36,370000,Utilities
5426099,DIRECT CARE (TAMESIDE) LTD,Adult Social Care,Adults,Homecare Fees,,16/07/2021,39978,321000,Social Community Care Supplies & Services - Adult
5423943,CARETECH COMMUNITY SERVICES LIMITED,Adult Social Care,Adults,Residential Home Long Stay Fees,,16/07/2021,5147.86,321000,Social Community Care Supplies & Services - Adult
5424105,CARETECH COMMUNITY SERVICES LIMITED,Adult Social Care,Adults,Residential Home Long Stay Fees,,16/07/2021,3643.5,321000,Social Community Care Supplies & Services - Adult
5424111,CARETECH COMMUNITY SERVICES LIMITED,Adult Social Care,Adults,Residential Home Long Stay Fees,,16/07/2021,2393.51,321000,Social Community Care Supplies & Services - Adult
5424137,ROUTES HEALTHCARE (NORTH) LIMITED,Adult Social Care,Adults,Homecare Fees,,16/07/2021,6976.94,321100,Social Community Care Supplies & Services - Children
5423873,RSK ADAS LTD,Hosted Services,Hosted Services,Postages,,16/07/2021,20,-999999,Unclassifiable
5423873,RSK ADAS LTD,Hosted Services,Hosted Services,Purchase General Office Equipment,,16/07/2021,1180,-999999,Unclassifiable
5423854,DHL Parcel UK Ltd (UK Mail),Exchequer,Governance,Printing And Stationery,,16/07/2021,1596.44,300000,Mail Services
5424116,Westbury Health Limited,Childrens Services,Children's Services,Professional Consultancy Services,,16/07/2021,652,280000,Legal Services
5426205,Dukinfield Medical Practice,Population Health,Population Health,Professional Consultancy Services,,16/07/2021,1050,321000,Social Community Care Supplies & Services - Adult
5426329,NMA Travel LTD,Childrens Services,Children's Services,Transport Of Pupils,,16/07/2021,1320,360000,Public Transport
5424279,Future Focused Care,Childrens Services,Children's Services,Childrens Homes Outside Local Authority Fees,,16/07/2021,19264.2,321100,Social Community Care Supplies & Services - Children
5424121,Redacted,Education,Children's Services,Professional Services,,16/07/2021,1100,321100,Social Community Care Supplies & Services - Children
5421447,ARCO LIMITED,Operations and Neighbourhoods,Operations and Neighbourhoods,Protective Clothing,,16/07/2021,1192.8,140000,Clothing
5423836,MOSSCARE HOUSING LTD,Childrens Services,Children's Services,Living With Formal Support,,16/07/2021,696.8,321000,Social Community Care Supplies & Services - Adult
5424067,CARETECH COMMUNITY SERVICES LIMITED,Adult Social Care,Adults,Residential Home Long Stay Fees,,16/07/2021,4981.8,321000,Social Community Care Supplies & Services - Adult
5426097,DIRECT CARE (TAMESIDE) LTD,Adult Social Care,Adults,Homecare Fees,,16/07/2021,40828.82,321000,Social Community Care Supplies & Services - Adult
5412266,GREATER MANCHESTER COMBINED AUTHORITY,Operations and Neighbourhoods,Operations and Neighbourhoods,Waste Levy - Domestic Waste Disposal Costs,,16/07/2021,1253000,-999999,Unclassifiable
5426330,HAUGHTON-THORNLEY MEDICAL CENTRE,Population Health,Population Health,Local Enhanced Services,,16/07/2021,1379.2,310000,Healthcare
5426246,TAMESIDE SPORTS TRUST,Place,Growth,Other Accommodation Related Costs,,16/07/2021,1946,290000,Arts & Leisure Services
5426243,TAMESIDE SPORTS TRUST,Place,Growth,Other Accommodation Related Costs,,16/07/2021,2000,290000,Arts & Leisure Services
5426238,TAMESIDE SPORTS TRUST,Place,Growth,Other Accommodation Related Costs,,16/07/2021,29808,290000,Arts & Leisure Services
5424115,F G MARSHALL LTD,Operations and Neighbourhoods,Operations and Neighbourhoods,Plaques,,16/07/2021,880.18,120000,Cemetery & Crematorium
5426210,TAMESIDE LINK,Adult Social Care,Adults,Voluntary Organisations Fees,,16/07/2021,25425.84,321000,Social Community Care Supplies & Services - Adult
5423846,CREATIVE SUPPORT LTD,Adult Social Care,Adults,Homecare Fees,,16/07/2021,15697.81,321000,Social Community Care Supplies & Services - Adult
5424895,CREATIVE SUPPORT LTD,Adult Social Care,Adults,Residential Home Long Stay Fees,,16/07/2021,1817.2,321000,Social Community Care Supplies & Services - Adult
5423843,CREATIVE SUPPORT LTD,Adult Social Care,Adults,Homecare Fees,,16/07/2021,13699.13,321000,Social Community Care Supplies & Services - Adult
5423848,CREATIVE SUPPORT LTD,Adult Social Care,Adults,Homecare Fees,,16/07/2021,14938.41,321000,Social Community Care Supplies & Services - Adult
5424053,Shorrocktrichem Ltd t/a Powercare,Operations and Neighbourhoods,Operations and Neighbourhoods,General Equipment Repair & Maintenance,,16/07/2021,595.9,130000,Cleaning & Janitorial
5424469,NOMIX-ENVIRO LTD,Operations and Neighbourhoods,Operations and Neighbourhoods,Professional Weedspraying Services,,16/07/2021,754.75,240000,Horticultural
5424470,NOMIX-ENVIRO LTD,Operations and Neighbourhoods,Operations and Neighbourhoods,Professional Weedspraying Services,,16/07/2021,1200,240000,Horticultural
5424031,CARETECH COMMUNITY SERVICES LIMITED,Adult Social Care,Adults,Residential Home Long Stay Fees,,16/07/2021,4981.8,321000,Social Community Care Supplies & Services - Adult
5426090,Park Lane Minibuses LTD,Operations and Neighbourhoods,Operations and Neighbourhoods,Hired Transport,,16/07/2021,4831.2,360000,Public Transport
5426914,CAPITA - NNDR REFUNDS,(blank),(blank),COVID-19 Restart Grant Non-essential Retail - RV less than or equal to 15k,,16/07/2021,24003,400000,Non 3rd Party spend  
5426914,CAPITA - NNDR REFUNDS,(blank),(blank),COVID-19 Restart Grant Hosp Accom Leisure Personal Gym - RV greater than 15k and less than 51k,,16/07/2021,12000,400000,Non 3rd Party spend  
5426914,CAPITA - NNDR REFUNDS,(blank),(blank),COVID-19 Restart Grant Hosp Accom Leisure Personal Gym - RV less than or equal to 15k,,16/07/2021,96000,400000,Non 3rd Party spend  
5426914,CAPITA - NNDR REFUNDS,(blank),(blank),COVID-19 Restart Grant Non-essential Retail - RV  greater than 15k and less than 51k,,16/07/2021,16000,400000,Non 3rd Party spend  
5426914,CAPITA - NNDR REFUNDS,(blank),(blank),COVID-19 Restart Grant Hosp Accom Leisure Personal Gym - RV greater than or equal to 51k,,16/07/2021,36000,400000,Non 3rd Party spend  
5426914,CAPITA - NNDR REFUNDS,Contingency,Contingency,COVID-19 Payments - RV less than or equal to 15k,,16/07/2021,7003.21,400000,Non 3rd Party spend  
5427177,BARCLAYCARD COMMERCIAL,Childrens Services,Children's Services,Procurement Hub Holding Account,,16/07/2021,16237.55,200000,Financial Services
5427177,BARCLAYCARD COMMERCIAL,Individual Schools Budget,Children's Services,Procurement Hub Holding Account,,16/07/2021,974.91,200000,Financial Services
5427177,BARCLAYCARD COMMERCIAL,Operations and Neighbourhoods,Operations and Neighbourhoods,Procurement Hub Holding Account,,16/07/2021,841.47,200000,Financial Services
5427177,BARCLAYCARD COMMERCIAL,Education,Children's Services,Procurement Hub Holding Account,,16/07/2021,8.65,200000,Financial Services
5427177,BARCLAYCARD COMMERCIAL,Hosted Services,Hosted Services,Procurement Hub Holding Account,,16/07/2021,1321.39,200000,Financial Services
5427177,BARCLAYCARD COMMERCIAL,Adult Social Care,Adults,Procurement Hub Holding Account,,16/07/2021,733.24,200000,Financial Services
5427177,BARCLAYCARD COMMERCIAL,Place,Growth,Procurement Hub Holding Account,,16/07/2021,38.02,200000,Financial Services
5427177,BARCLAYCARD COMMERCIAL,Digital Tameside,Finance & IT,Procurement Hub Holding Account,,16/07/2021,1231.36,200000,Financial Services
5427177,BARCLAYCARD COMMERCIAL,Policy and Communications,Governance,Procurement Hub Holding Account,,16/07/2021,171.99,200000,Financial Services
5427177,BARCLAYCARD COMMERCIAL,Finance,Finance & IT,Procurement Hub Holding Account,,16/07/2021,738.06,200000,Financial Services
5426316,CAPITA - NNDR REFUNDS,(blank),(blank),COVID-19 Restart Grant Non-essential Retail - RV less than or equal to 15k,,16/07/2021,16002,400000,Non 3rd Party spend  
5426316,CAPITA - NNDR REFUNDS,(blank),(blank),COVID-19 Restart Grant Hosp Accom Leisure Personal Gym - RV greater than 15k and less than 51k,,16/07/2021,36000,400000,Non 3rd Party spend  
5426316,CAPITA - NNDR REFUNDS,(blank),(blank),COVID-19 Restart Grant Hosp Accom Leisure Personal Gym - RV less than or equal to 15k,,16/07/2021,128000,400000,Non 3rd Party spend  
5426316,CAPITA - NNDR REFUNDS,(blank),(blank),COVID-19 Restart Grant Non-essential Retail - RV  greater than 15k and less than 51k,,16/07/2021,8000,400000,Non 3rd Party spend  
5426316,CAPITA - NNDR REFUNDS,(blank),(blank),COVID-19 Restart Grant Hosp Accom Leisure Personal Gym - RV greater than or equal to 51k,,16/07/2021,144000,400000,Non 3rd Party spend  
5426316,CAPITA - NNDR REFUNDS,(blank),(blank),COVID-19 Restart Grant Non-essential Retail - RV greater than or equal to 51k,,16/07/2021,6000,400000,Non 3rd Party spend  
5427150,AD HOC CHAPS PAYMENT,(blank),(blank),Food & Refreshments,,16/07/2021,20563.2,400002,Chaps Payments
5427154,AD HOC CHAPS PAYMENT,(blank),(blank),Food & Refreshments,,16/07/2021,445449.6,400002,Chaps Payments
5427143,AD HOC CHAPS PAYMENT,Finance,Finance & IT,Legal Fees,,16/07/2021,1700,400002,Chaps Payments
5427152,AD HOC CHAPS PAYMENT,(blank),(blank),Food & Refreshments,,16/07/2021,250890,400002,Chaps Payments
5427146,AD HOC CHAPS PAYMENT,(blank),(blank),Food & Refreshments,,16/07/2021,278894.4,400002,Chaps Payments
5426903,AD HOC CHAPS PAYMENT,Multiple Heads of Service,Multiple Strategic Directorates,Debits Superann Teachers,,16/07/2021,1182085.76,400002,Chaps Payments
5426906,AD HOC CHAPS PAYMENT,Operations and Neighbourhoods,Operations and Neighbourhoods,Other Accommodation Related Costs,,16/07/2021,990,400002,Chaps Payments
5426905,AD HOC CHAPS PAYMENT,(blank),(blank),Financial Assistance Payments,,16/07/2021,968,400002,Chaps Payments
5424081,Complete Care & Enablement Services LTD,Adult Social Care,Adults,Residential Home Long Stay Fees,,16/07/2021,5916.35,321000,Social Community Care Supplies & Services - Adult
5424055,Complete Care & Enablement Services LTD,Adult Social Care,Adults,Residential Home Long Stay Fees,,16/07/2021,5916.35,321000,Social Community Care Supplies & Services - Adult
5426919,HMCTS (FOR PAYMENT BY ACCOUNT),Childrens Services,Children's Services,Court Fees,,16/07/2021,35597,-999999,Unclassifiable
5424013,Complete Care & Enablement Services LTD,Adult Social Care,Adults,Residential Home Long Stay Fees,,16/07/2021,5725.5,321000,Social Community Care Supplies & Services - Adult
5426309,WORLDPAY,Finance,Finance & IT,National Giro,,16/07/2021,11553.7,200000,Financial Services
5426920,HMCTS (FOR PAYMENT BY ACCOUNT),Exchequer,Governance,Court Fees,,16/07/2021,545,-999999,Unclassifiable
5426918,HMCTS (FOR PAYMENT BY ACCOUNT),Exchequer,Governance,Court Fees,,16/07/2021,2632,-999999,Unclassifiable
5424041,Complete Care & Enablement Services LTD,Adult Social Care,Adults,Residential Home Long Stay Fees,,16/07/2021,5725.5,321000,Social Community Care Supplies & Services - Adult
5423958,SECURITY MONITORING CENTRES LTD,Place,Growth,Security Services,,16/07/2021,1059.09,190000,Facilities & Management Services
5427212,Carrington West Ltd,Place,Growth,Professional Services,,16/07/2021,900.9,-999999,Unclassifiable
5423889,Optima Health,People and Workforce Development,Governance,Fees,,16/07/2021,14569.23,311410,Healthcare
5424004,GREENLEAF HEALTH & SOCIAL CARE,Adult Social Care,Adults,Homecare Fees,,16/07/2021,4219.02,250000,Housing Management
5424290,Avoira Ltd,Digital Tameside,Finance & IT,Telephone Landline Costs,,16/07/2021,5636.08,-999999,Unclassifiable
5424008,Conduent Public Sector Limited,Operations and Neighbourhoods,Operations and Neighbourhoods,Computer Software,,16/07/2021,22351.68,UNCLASS,Unclassifiable
5423900,SURECARE TAMESIDE & OLDHAM,Adult Social Care,Adults,Homecare Fees,,16/07/2021,1548.8,111230,Catering
5423901,SURECARE TAMESIDE & OLDHAM,Adult Social Care,Adults,Homecare Fees,,16/07/2021,1548.82,111230,Catering
5424238,AGAINST VIOLENCE AND ABUSE (AVA),Population Health,Population Health,Contributions,,16/07/2021,10400,UNCLASS,Unclassifiable
5426171,AWBURN HOUSE MEDICAL PRACTICE,Population Health,Population Health,Local Enhanced Services,,16/07/2021,829,150000,Consultancy
5424014,One to One Crisis Intervention Ltd,Childrens Services,Children's Services,Childrens Homes Outside Local Authority Fees,,16/07/2021,5657.12,UNCLASS,Unclassifiable
5424017,Redacted,(blank),(blank),Professional Entertainment Services,,16/07/2021,4995,UNCLASS,Unclassifiable
5424019,Magdelene Group T/A Rose Project,Childrens Services,Children's Services,Professional Services,,16/07/2021,1650,UNCLASS,Unclassifiable
5424020,Redacted,Childrens Services,Children's Services,Professional Consultancy Services,Redacted Supplier,16/07/2021,1300,321100,Social Community Care Supplies & Services - Children
5427210,Carrington West Ltd,Place,Growth,Professional Services,,16/07/2021,900.9,-999999,Unclassifiable
5424239,KONICA MINOLTA BUSINESS SOLUTIONS (UK) LTD,Individual Schools Budget,Children's Services,Printing Recharges,,16/07/2021,527.97,270000,Information Communication Technology
5426258,GREENSCAPE,Adult Social Care,Adults,Professional Services,,16/07/2021,1145.12,390000,"Works - Construction, Repair & Maintenance"
5424070,Randstad Public Services Limited,Individual Schools Budget,Children's Services,Agency Staff,,16/07/2021,517.5,170000,Education
5426227,FUSION CARE,Childrens Services,Children's Services,Living With Formal Support,,16/07/2021,2635,321100,Social Community Care Supplies & Services - Children
5423966,SECURITY MONITORING CENTRES LTD,Place,Growth,Security Services,,16/07/2021,1093.08,190000,Facilities & Management Services
5423985,SECURITY MONITORING CENTRES LTD,Place,Growth,Security Services,,16/07/2021,544.55,190000,Facilities & Management Services
5423954,SECURITY MONITORING CENTRES LTD,Place,Growth,Security Services,,16/07/2021,668.04,190000,Facilities & Management Services
5423890,VISION FOR EDUCATION LIMITED,Education,Children's Services,Professional Services,,16/07/2021,1850,170000,Education
5423891,THE PLAY INSPECTION COMPANY LTD,Operations and Neighbourhoods,Operations and Neighbourhoods,General Materials,,16/07/2021,3525,-999999,Unclassifiable
5424866,Inspired Spaces (ProjectCo1) LTD,Asset & Investment Partnership Management,Growth,Free School Meal Costs,,16/07/2021,7563.2,390000,"Works - Construction, Repair & Maintenance"
5426940,0161 Project,Childrens Services,Children's Services,"Childrens Allowances (Weekly,Xmas,Festive,Clothing)",,16/07/2021,2700,171011,Education
5423989,PENNINE CARE NHS TRUST,Population Health,Population Health,Professional Services,,16/07/2021,35006.16,321000,Social Community Care Supplies & Services - Adult
5424087,Complete Care & Enablement Services LTD,Adult Social Care,Adults,Residential Home Long Stay Fees,,16/07/2021,5725.5,321000,Social Community Care Supplies & Services - Adult
5424088,Complete Care & Enablement Services LTD,Adult Social Care,Adults,Residential Home Long Stay Fees,,16/07/2021,5725.5,321000,Social Community Care Supplies & Services - Adult
5424101,Complete Care & Enablement Services LTD,Adult Social Care,Adults,Residential Home Long Stay Fees,,16/07/2021,5725.5,321000,Social Community Care Supplies & Services - Adult
5423922,Complete Care & Enablement Services LTD,Adult Social Care,Adults,Residential Home Long Stay Fees,,16/07/2021,4580.4,321000,Social Community Care Supplies & Services - Adult
5423923,Complete Care & Enablement Services LTD,Adult Social Care,Adults,Residential Home Long Stay Fees,,16/07/2021,4580.4,321000,Social Community Care Supplies & Services - Adult
5424159,We Support LTD,Adult Social Care,Adults,Homecare Fees,,16/07/2021,5493.6,321000,Social Community Care Supplies & Services - Adult
5426087,Social Work Solutions NW Limited,Adult Social Care,Adults,Professional Services,,16/07/2021,556.3,321000,Social Community Care Supplies & Services - Adult
5423879,The Compost Bag Company Ltd,Operations and Neighbourhoods,Operations and Neighbourhoods,Purchase Plastic Sacks,,16/07/2021,6480,182014,Environmental Services
5423984,Sandcastle Care LTD,Childrens Services,Children's Services,Childrens Homes Outside Local Authority Fees,,16/07/2021,6300,321000,Social Community Care Supplies & Services - Adult
5423975,Sandcastle Care LTD,Childrens Services,Children's Services,Childrens Homes Outside Local Authority Fees,,16/07/2021,25692.86,321000,Social Community Care Supplies & Services - Adult
5423980,Sandcastle Care LTD,Childrens Services,Children's Services,Childrens Homes Outside Local Authority Fees,,16/07/2021,25692.86,321000,Social Community Care Supplies & Services - Adult
5423982,Sandcastle Care LTD,Childrens Services,Children's Services,Childrens Homes Outside Local Authority Fees,,16/07/2021,25692.86,321000,Social Community Care Supplies & Services - Adult
5423986,Sandcastle Care LTD,Childrens Services,Children's Services,Childrens Homes Outside Local Authority Fees,,16/07/2021,25692.86,321000,Social Community Care Supplies & Services - Adult
5423977,Sandcastle Care LTD,Childrens Services,Children's Services,Childrens Homes Outside Local Authority Fees,,16/07/2021,18214.29,321000,Social Community Care Supplies & Services - Adult
5424069,Complete Care & Enablement Services LTD,Adult Social Care,Adults,Residential Home Long Stay Fees,,16/07/2021,5725.5,321000,Social Community Care Supplies & Services - Adult
5423992,PENNINE CARE NHS TRUST,Population Health,Population Health,Professional Services,,16/07/2021,176140.34,321000,Social Community Care Supplies & Services - Adult
5423988,PENNINE CARE NHS TRUST,Population Health,Population Health,Professional Services,,16/07/2021,16958.34,321000,Social Community Care Supplies & Services - Adult
5423863,G2V Recruitment Group Limited t/a Vivid Resourcing,Place,Growth,Agency Staff,,16/07/2021,2500,280000,Legal Services
5423867,G2V Recruitment Group Limited t/a Vivid Resourcing,Place,Growth,Recruitment Campaign,,16/07/2021,2600,280000,Legal Services
5423995,Deans Court Chambers,Adult Social Care,Adults,Legal Fees,,16/07/2021,1350,280000,Legal Services
5423998,Redacted,Childrens Services,Children's Services,Legal Fees,,16/07/2021,1550,280000,Legal Services
5423906,Oyster Partnership,Place,Growth,Agency Staff,,16/07/2021,2200,261313,Human Resources
5424266,Stepping Stone Projects,Childrens Services,Children's Services,Living With Formal Support,,16/07/2021,3049.52,-999999,Unclassifiable
5424269,Stepping Stone Projects,Childrens Services,Children's Services,Living With Formal Support,,16/07/2021,3049.52,-999999,Unclassifiable
5424270,Stepping Stone Projects,Childrens Services,Children's Services,Living With Formal Support,,16/07/2021,1200,-999999,Unclassifiable
5423899,Redacted,Childrens Services,Children's Services,Nursery Services,,16/07/2021,665.96,171040,Education
5423967,Complete Care & Enablement Services LTD,Adult Social Care,Adults,Residential Home Long Stay Fees,,16/07/2021,4580.4,321000,Social Community Care Supplies & Services - Adult
5424095,Complete Care & Enablement Services LTD,Adult Social Care,Adults,Residential Home Long Stay Fees,,16/07/2021,5916.35,321000,Social Community Care Supplies & Services - Adult
5427196,Wellbeing Property Solutions Ltd,Childrens Services,Children's Services,Childrens Homes Outside Local Authority Fees,,19/07/2021,700,261000,Human Resources
5426631,STAMFORD CARS UK LTD,Education,Children's Services,Transport Of Ola Pupils,,19/07/2021,2385,360000,Public Transport
5426629,STAMFORD CARS UK LTD,Education,Children's Services,Transport Of Pupils,,19/07/2021,1710,360000,Public Transport
5426655,GRIP STEEL  REINFORCEMENTS LTD,Operations and Neighbourhoods,Operations and Neighbourhoods,General Equipment Purchase,,19/07/2021,3270,120000,Cemetery & Crematorium
5425986,WIGAN MBC,Hosted Services,Hosted Services,Indirect Employee Pay Expenditure,,19/07/2021,82785.74,UNCLASS,Unclassifiable
5427257,GREATER MANCHESTER COMBINED AUTHORITY,Corporate Costs,Corporate Costs,Contributions,,19/07/2021,702000,-999999,Unclassifiable
5418160,MOSSCARE HOUSING LTD,Childrens Services,Children's Services,Living With Formal Support,,19/07/2021,745.84,321000,Social Community Care Supplies & Services - Adult
